Workbook

Sheet ORIGINAL PHOTO
L2: Create Date: | Q2: MARCH 15/2017 | X2: Main Brand Label : | AD2: YO & CO
L3: Vendor Name: | X3: SCREEN PRINT MAIN LABEL
L4: Vndr.Item No.: | AA4: GC Item No.:
L5: Size Range: | Q5: S-M-L-XL | AA5: Season: | AD5: Spring Summer 2018
L6: Description: | Q6: MEN'S LONG SLEEVE ZIP FRONT SCOOP HEM HOODIE WITH LINED HOOD
B7: APPAREL SPEC SHEET --MEN'S TOP | T7: REFERENCE # YCSS18-6000
B8: PHOTOS OF ORIGINAL SAMPLE
AL54: S-M-L
AL55: SM-LXL
AL56: S-M-L-XL
AL57: XXL-XXXL

Sheet Technical Sketch
L2: Create Date: | Q2: ='ORIGINAL PHOTO'!Q2:W2 -> MARCH 15/2017
L3: Vendor Name: | Q3: ='ORIGINAL PHOTO'!Q3:AI3 -> 0
L4: Vndr.Item No.: | Q4: ='ORIGINAL PHOTO'!Q4:W4 -> 0 | AA4: GC Item No.: | AE4: ='ORIGINAL PHOTO'!AE4:AI4 -> 0
L5: Size Range: | Q5: ='ORIGINAL PHOTO'!Q5:W5 -> S-M-L-XL | AA5: Season: | AD5: ='ORIGINAL PHOTO'!AD5:AI5 -> Spring Summer 2018
L6: Description: | Q6: ='ORIGINAL PHOTO'!Q6:AI6 -> MEN'S LONG SLEEVE ZIP FRONT SCOOP HEM HOODIE WITH LINED HOOD
B7: FIT FOR DEVELOPMENT SAMPLE / PHOTO / SALESMANS SAMPLES ONLY
T8: Date: | AN8: L
AN9: LXL
AN10: M
AN11: S
AN12: SM
AN13: XL
AN14: XXL
AN15: XXXL

Sheet Fabric, Trim, Sheet
L2: Create Date: | Q2: ='ORIGINAL PHOTO'!Q2:W2 -> MARCH 15/2017
L3: Vendor Name: | Q3: ='ORIGINAL PHOTO'!Q3:AI3 -> 0
L4: Vndr.Item No.: | Q4: ='ORIGINAL PHOTO'!Q4:W4 -> 0 | AA4: GC Item No.: | AE4: ='ORIGINAL PHOTO'!AE4:AI4 -> 0
L5: Size Range: | Q5: ='ORIGINAL PHOTO'!Q5:W5 -> S-M-L-XL | AA5: Season: | AD5: ='ORIGINAL PHOTO'!AD5:AI5 -> Spring Summer 2018
L6: Description: | Q6: ='ORIGINAL PHOTO'!Q6:AI6 -> MEN'S LONG SLEEVE ZIP FRONT SCOOP HEM HOODIE WITH LINED HOOD
B8: FABRIC DETAILS: | H8: FABRIC 1 | O8: COLOUR 1 | V8: FABRIC 2 | AC8: COLOUR 2
B9: Product Component: | H9: see front page | O9: see TECHNICAL page
B10: Fibre Content: | H10: see front page
B11: Description:
B12: Weight: | H12: 372 GSM - ORGINAL
B13: Construction:
B14: Yarn Count:
B15: Garment Finish:
B16: (wash, garment dye etc)
B17: Special Requests:
B20: TRIM DETAILS | H20: DESCRIPTION | Y20: SIZE | AC20: COLOUR
B21: Binding | H21: woven back neck tape with logo | Y21: 3/8" wide | AC21: tbc | AN21: Binding
B22: Buttons | AN22: Buttons
B23: Elastic | AN23: Elastic
B24: Fasteners | AN24: Fasteners
B25: Mobilon | AN25: Mobilon
B26: Piping | AN26: Piping
B27: Zipper - Front | H27: YKK - # 4 metal separating | AC27: black tape | AN27: Zipper
B28: Zipper - Pockets | H28: REVERED NYLON COIL | AC28: black tape
B29: Drawstring
B30: Toggle
B31: Rivets | H31: 2 - on hood drawcord tunnel opening | Y31: 11 mm | AC31: dark metal
B33: GARMENT CONSTRUCTION DETAILS
B34: LOCATION | H34: DESCRIPTION | AC34: ISO STANDARD
AN35: 2 Needle Bottom Cover Stitch
AN36: 2 Needle, 4 Thread Cover Stitch
AN37: 3 Needle Bottom Cover Stitch
AN38: 3 Thread OverEdge
AN39: 5 Needle, 5 Thread Cover Stitch
AN40: 5 Thread Safety Stitch
AN41: Lock Stitch
AN42: ZigZag Lock Stitch

Sheet Apparel Spec Sheet
L2: Create Date: | Q2: ='ORIGINAL PHOTO'!Q2:W2 -> MARCH 15/2017
L3: Vendor Name: | Q3: ='ORIGINAL PHOTO'!Q3:AI3 -> 0
L4: Vndr.Item No.: | Q4: ='ORIGINAL PHOTO'!Q4:W4 -> 0 | AA4: GC Item No.: | AE4: ='ORIGINAL PHOTO'!AE4:AI4 -> 0
L5: Size Range: | Q5: ='ORIGINAL PHOTO'!Q5:W5 -> S-M-L-XL | AA5: Season: | AD5: ='ORIGINAL PHOTO'!AD5:AI5 -> Spring Summer 2018
L6: Description: | Q6: ='ORIGINAL PHOTO'!Q6:AI6 -> MEN'S LONG SLEEVE ZIP FRONT SCOOP HEM HOODIE WITH LINED HOOD
B7: FIT FOR DEVELOPMENT SAMPLE / PHOTO / SALESMANS SAMPLES ONLY- SIZE S OR SM
B8: APPAREL SPEC SHEET --MEN'S TOP | T8: Date: | X8: NOV 10/2016 | AN8: L
B9: (Measurements on flat / inches) | P9: Original Sample | T9: Required Spec | X9: Comments | AG9: Tolerance + / - (on flat) | AN9: LXL
P10: L | T10: L | AN10: M
B11: BACK LENGTH FROM HSP ( TO LOWEST C.B.LEVEL) | P11: 28 | T11: 31.5 | X11: LENGTHEN | AG11: 0.375 | AN11: S
B12: FRONT LENGTH FROM HSP (TO LOWEST C.F. LEVEL) | P12: 28 | T12: 31.5 | X12: LENGTHEN | AG12: 0.375 | AN12: SM
B13: ACROSS FRONT AT MID ARMHOLE | P13: 16 | T13: 16 | AG13: 0.375 | AN13: XL
B14: ACROSS BACK AT MID ARMHOLE | P14: 17.25 | T14: 17.25 | AG14: 0.25 | AN14: XXL
B15: ACROSS SHOULDER | P15: 18.75 | T15: 18.75 | AG15: 0.375 | AN15: XXXL
B16: SHOULDER SLOPE DROP | AG16: 0.125
B17: BODY WIDTH OPTIONS
B18: CHEST - 1" BELOW ARMHOLE | P18: 23.5 | T18: 23.5 | AG18: 0.375
B19: SWEEP ( HEM STRAIGHT) | P19: 22 | T19: 22 | AG19: 0.375
B20: SWEEP HEM HEIGHT | P20: 3 | T20: 2 1/2 | X20: REDUCE | AG20: 0.375
B21: SHORT SLEEVE OPTIONS
B22: SLEEVE LENGTH FROM C.B. NECK | P22: 36.375 | T22: 36.375 | AG22: 0.5
B23: SLEEVE LENGTH ( TOP SLEEVE TO HEM) | P23: 27 | T23: 27 | AG23: 0.375
B24: ARMHOLE STRAIGHT | P24: 9.75 | T24: 9.75 | AG24: 0.25
B25: BICEP - 1" BELOW ARMHOLE | P25: 8.375 | T25: 8.375 | AG25: 0.25
B26: ELBOW ( MID SLEEVE ) | P26: 6.875 | T26: 6.875 | AG26: 0.25
B27: SLEEVE OPENING | P27: 4 | T27: 4 | AG27: 0.25
B28: SLEEVE HEM HEIGHT | P28: 3 | T28: 3 | AG28: 0
B29: NECK OPTIONS
B30: FRONT NECK DROP FROM HSP TO NECK SEAM | P30: 4.75 | T30: 4.75 | AG30: 0.25
B31: BACK NECK DROP FROM HSP TO NECK SEAM | P31: 0.875 | T31: 0.875 | AG31: 0.25
B32: BACK NECK WIDTH - SEAM TO SEAM | P32: 8 | T32: 8 | AG32: 0.25
B33: NECK TRIM HEIGHT | AG33: 0
B34: NECK STRETCH ( MINIMUM EXTENDED ) 12 OR 24 FULL | AG34: 0.375
B35: ZIPPER LENGTH | P35: 26.5 | T35: 30 | X35: LENGTHEN
B37: SHIRT TAIL DEPTH | T37: 2.25 | X37: RESHAPE TO SHIRT TAIL HEM
B39: FRONT SIDE SLIT LENGTH | P39: 6 | T39: 6 | AG39: 0
B40: BACK SIDE SLIT LENGTH | P40: 6 | T40: 6 | AG40: 0
B41: HOOD OPTIONS
B42: HOOD HEIGHT AT FACE ( TOP HEAD TO TOP ZIPPER ) | P42: 10.5 | T42: 10.5 | AG42: 0.25
B43: HOOD HEIGHT @ HSP TO TOP | P43: 13 | T43: 13 | AG43: 0.25
B44: HOOD WIDTH @ 6" BELOW TOP | P44: 10 | T44: 10 | AG44: 0.25
B45: HOOD CORD LENGTH ( TOTAL) X 1/8- 3/16" ROUND | P45: 49 | T45: 49 | AG45: 1
B46: HOOD NECK DEPTH AT C.F. | P46: 3.5 | T46: 3.5 | AG46: 0.125
B47: HOOD GARAGE WIDTH | P47: 3/4 | T47: 3/4 | AG47: 0
B48: POCKET OPTIONS
B49: POCKET LENGTH ON FRONT | P49: 7 | T49: 7 | AG49: 0.125
B52: PLEASE MAKE SAMPLE TO REQUIRED SPECS.
B54: Sample Approved?
B55: If sample is NOT approved, then submit 1st Fit Sample. If sample is APPROVED, then submit Pre-Production Samples.

Sheet Original Sample Photos
L2: Create Date: | Q2: ='ORIGINAL PHOTO'!Q2:W2 -> MARCH 15/2017
L3: Vendor Name: | Q3: ='ORIGINAL PHOTO'!Q3:AI3 -> 0
L4: Vndr.Item No.: | Q4: ='ORIGINAL PHOTO'!Q4:W4 -> 0 | AA4: GC Item No.: | AE4: ='ORIGINAL PHOTO'!AE4:AI4 -> 0
L5: Size Range: | Q5: ='ORIGINAL PHOTO'!Q5:W5 -> S-M-L-XL | AA5: Season: | AD5: ='ORIGINAL PHOTO'!AD5:AI5 -> Spring Summer 2018
L6: Description: | Q6: ='ORIGINAL PHOTO'!Q6:AI6 -> MEN'S LONG SLEEVE ZIP FRONT SCOOP HEM HOODIE WITH LINED HOOD
B7: FIT FOR DEVELOPMENT SAMPLE / PHOTO / SALESMANS SAMPLES ONLY
B8: ORIGINAL COMMENTS--MEN'S TOP | T8: Date: | X8: MAR 15/2017 | AN8: L
AN9: LXL
AN10: M
AN11: S
AN12: SM
AN13: XL
AN14: XXL
AN15: XXXL

Sheet Fabrics (hidden)
L2: Create Date: | Q2: ='ORIGINAL PHOTO'!Q2:W2 -> MARCH 15/2017
L3: Vendor Name: | Q3: ='ORIGINAL PHOTO'!Q3:AI3 -> 0
L4: Vndr.Item No.: | Q4: ='ORIGINAL PHOTO'!Q4:W4 -> 0 | AA4: GC Item No.: | AE4: ='ORIGINAL PHOTO'!AE4:AI4 -> 0
L5: Size Range: | Q5: ='ORIGINAL PHOTO'!Q5:W5 -> S-M-L-XL | AA5: Season: | AD5: ='ORIGINAL PHOTO'!AD5:AI5 -> Spring Summer 2018
L6: Description: | Q6: ='ORIGINAL PHOTO'!Q6:AI6 -> MEN'S LONG SLEEVE ZIP FRONT SCOOP HEM HOODIE WITH LINED HOOD
B8: FABRICS / SRIKE OFFS / LAB DIPS | T8: Date: | AN8: L
AN9: LXL
AN10: M
AN11: S
AN12: SM
AN13: XL
AN14: XXL
AN15: XXXL

Sheet 1st Fit Sample (hidden)
L2: Create Date: | Q2: ='ORIGINAL PHOTO'!Q2:W2 -> MARCH 15/2017
L3: Vendor Name: | Q3: ='ORIGINAL PHOTO'!Q3:AI3 -> 0
L4: Vndr.Item No.: | Q4: ='ORIGINAL PHOTO'!Q4:W4 -> 0 | AA4: GC Item No.: | AE4: ='ORIGINAL PHOTO'!AE4:AI4 -> 0
L5: Size Range: | Q5: ='ORIGINAL PHOTO'!Q5:W5 -> S-M-L-XL | AA5: Season: | AD5: ='ORIGINAL PHOTO'!AD5:AI5 -> Spring Summer 2018
L6: Description: | Q6: ='ORIGINAL PHOTO'!Q6:AI6 -> MEN'S LONG SLEEVE ZIP FRONT SCOOP HEM HOODIE WITH LINED HOOD
B8: APPAREL SPEC SHEET -- MEN'S TOP | T8: Date: | X8: JAN 4/2017 | AN8: L
B9: (Measurements on flat / inches) | P9: 1st Fit Sample | T9: Required Spec | X9: Comments | AG9: Tolerance + / - (on flat) | AN9: LXL
P10: XL | T10: M | AN10: M
B11: BACK LENGTH FROM HSP | AG11: 0.375 | AN11: S
B12: FRONT LENGTH FROM HSP | AG12: 0.375 | AN12: SM
B13: ACROSS FRONT AT MID ARMHOLE | AG13: 0.375 | AN13: XL
B14: ACROSS BACK AT MID ARMHOLE | AG14: 0.25 | AN14: XXL
B15: ACROSS SHOULDER | AG15: 0.375 | AN15: XXXL
B16: SHOULDER SLOPE DROP | AG16: 0.125
B17: BODY WIDTH OPTIONS
B18: CHEST - 1" BELOW ARMHOLE | AG18: 0.375
B19: SWEEP ( HEM STRAIGHT) | AG19: 0.375
B20: SWEEP HEM HEIGHT | AG20: 0.375
B21: SHORT SLEEVE OPTIONS
B22: SLEEVE LENGTH FROM C.B. NECK | AG22: 0.375
B23: SLEEVE LENGTH ( SHOULDER SLEEVE SEAM TO HEM) | AG23: 0.375
B24: ARMHOLE STRAIGHT | AG24: 0.25
B25: BICEP - 1" BELOW ARMHOLE | AG25: 0.25
B26: SLEEVE OPENING | AG26: 0.25
B27: SLEEVE CAP HEIGHT | AG27: 0.125
B28: SLEEVE HEM HEIGHT | AG28: 0
B29: NECK OPTIONS
B30: FRONT NECK DROP FROM HSP TO NECK SEAM | AG30: 0.25
B31: BACK NECK DROP FROM HSP TO NECK SEAM | AG31: 0.25
B32: BACK NECK WIDTH - SEAM TO SEAM | AG32: 0.25
B33: NECK TRIM HEIGHT | AG33: 0
B34: NECK STRETCH ( MINIMUM EXTENDED ) 12 OR 24 FULL | AG34: 0.375
B36: LOGO SIZE
B37: LOGO PLACEMENT
B39: FRONT SIDE SLIT LENGTH | AG39: 0
B40: BACK SIDE SLIT LENGTH | AG40: 0
B52: Sample Approved?
B53: If sample is NOT approved, then submit 2nd Fit Sample. If sample is APPROVED, then submit Pre-Production Samples.

Sheet 1st Fit Photo Comments (hidden)
L2: Create Date: | Q2: ='ORIGINAL PHOTO'!Q2:W2 -> MARCH 15/2017
L3: Vendor Name: | Q3: ='ORIGINAL PHOTO'!Q3:AI3 -> 0
L4: Vndr.Item No.: | Q4: ='ORIGINAL PHOTO'!Q4:W4 -> 0 | AA4: GC Item No.: | AE4: ='ORIGINAL PHOTO'!AE4:AI4 -> 0
L5: Size Range: | Q5: ='ORIGINAL PHOTO'!Q5:W5 -> S-M-L-XL | AA5: Season: | AD5: ='ORIGINAL PHOTO'!AD5:AI5 -> Spring Summer 2018
L6: Description: | Q6: ='ORIGINAL PHOTO'!Q6:AI6 -> MEN'S LONG SLEEVE ZIP FRONT SCOOP HEM HOODIE WITH LINED HOOD
B8: 1ST FIT PHOTO COMMENTS-- MEN'S TOP | T8: Date: | AN8: L
AN9: LXL
AN10: M
AN11: S
AN12: SM
AN13: XL
AN14: XXL
AN15: XXXL

Sheet Construction Details
L2: Create Date: | Q2: ='ORIGINAL PHOTO'!Q2:W2 -> MARCH 15/2017
L3: Vendor Name: | Q3: ='ORIGINAL PHOTO'!Q3:AI3 -> 0
L4: Vndr.Item No.: | Q4: ='ORIGINAL PHOTO'!Q4:W4 -> 0 | AA4: GC Item No.: | AE4: ='ORIGINAL PHOTO'!AE4:AI4 -> 0
L5: Size Range: | Q5: ='ORIGINAL PHOTO'!Q5:W5 -> S-M-L-XL | AA5: Season: | AD5: ='ORIGINAL PHOTO'!AD5:AI5 -> Spring Summer 2018
L6: Description: | Q6: ='ORIGINAL PHOTO'!Q6:AI6 -> MEN'S LONG SLEEVE ZIP FRONT SCOOP HEM HOODIE WITH LINED HOOD
B8: 1ST FIT PHOTO COMMENTS-- MEN'S TOP | T8: Date: | X8: MAR 15/2017 | AN8: L
AN9: LXL
AN10: M
AN11: S
AN12: SM
AN13: XL
AN14: XXL
AN15: XXXL

Sheet Reference Sample bottom (hidden)
L2: Create Date: | Q2: ='ORIGINAL PHOTO'!Q2:W2 -> MARCH 15/2017
L3: Vendor Name: | Q3: ='ORIGINAL PHOTO'!Q3:AI3 -> 0
L4: Vndr.Item No.: | Q4: ='ORIGINAL PHOTO'!Q4:W4 -> 0 | AA4: GC Item No.: | AE4: ='ORIGINAL PHOTO'!AE4:AI4 -> 0
L5: Size Range: | Q5: ='ORIGINAL PHOTO'!Q5:W5 -> S-M-L-XL | AA5: Season: | AD5: ='ORIGINAL PHOTO'!AD5:AI5 -> Spring Summer 2018
L6: Description: | Q6: ='ORIGINAL PHOTO'!Q6:AI6 -> MEN'S LONG SLEEVE ZIP FRONT SCOOP HEM HOODIE WITH LINED HOOD
B8: 1ST FIT PHOTO COMMENTS-- MEN'S TOP | T8: Date: | X8: MAR 15/2017 | AN8: L
AN9: LXL
AN10: M
AN11: S
AN12: SM
AN13: XL
AN14: XXL
AN15: XXXL

Sheet 2nd Fit Sample (hidden)
L2: Create Date: | Q2: ='ORIGINAL PHOTO'!Q2:W2 -> MARCH 15/2017
L3: Vendor Name: | Q3: ='ORIGINAL PHOTO'!Q3:AI3 -> 0
L4: Vndr.Item No.: | Q4: ='ORIGINAL PHOTO'!Q4:W4 -> 0 | AA4: GC Item No.: | AE4: ='ORIGINAL PHOTO'!AE4:AI4 -> 0
L5: Size Range: | Q5: ='ORIGINAL PHOTO'!Q5:W5 -> S-M-L-XL | AA5: Season: | AD5: ='ORIGINAL PHOTO'!AD5:AI5 -> Spring Summer 2018
L6: Description: | Q6: ='ORIGINAL PHOTO'!Q6:AI6 -> MEN'S LONG SLEEVE ZIP FRONT SCOOP HEM HOODIE WITH LINED HOOD
B8: APPAREL SPEC SHEET -- MEN'S TOP | T8: Date: | AN8: L
B9: (Measurements on flat / inches) | P9: 2nd Fit Sample | T9: Required Spec | X9: Comments | AG9: Tolerance + / - (on flat) | AN9: LXL
P10: S | T10: S | AN10: M
B11: BACK LENGTH FROM (HIGH SHOULDER POINT) | C11: BACK LENGTH FROM (HIGH SHOULDER POINT) | D11: BACK LENGTH FROM (HIGH SHOULDER POINT) | E11: BACK LENGTH FROM (HIGH SHOULDER POINT) | F11: BACK LENGTH FROM (HIGH SHOULDER POINT) | G11: BACK LENGTH FROM (HIGH SHOULDER POINT) | H11: BACK LENGTH FROM (HIGH SHOULDER POINT) | I11: BACK LENGTH FROM (HIGH SHOULDER POINT) | J11: BACK LENGTH FROM (HIGH SHOULDER POINT) | K11: BACK LENGTH FROM (HIGH SHOULDER POINT) | L11: BACK LENGTH FROM (HIGH SHOULDER POINT) | M11: BACK LENGTH FROM (HIGH SHOULDER POINT) | N11: BACK LENGTH FROM (HIGH SHOULDER POINT) | O11: BACK LENGTH FROM (HIGH SHOULDER POINT) | AG11: 0.375 | AN11: S
B12: CENTER BACK LENGTH ( FROM NECK TO HEM ) | C12: CENTER BACK LENGTH ( FROM NECK TO HEM ) | D12: CENTER BACK LENGTH ( FROM NECK TO HEM ) | E12: CENTER BACK LENGTH ( FROM NECK TO HEM ) | F12: CENTER BACK LENGTH ( FROM NECK TO HEM ) | G12: CENTER BACK LENGTH ( FROM NECK TO HEM ) | H12: CENTER BACK LENGTH ( FROM NECK TO HEM ) | I12: CENTER BACK LENGTH ( FROM NECK TO HEM ) | J12: CENTER BACK LENGTH ( FROM NECK TO HEM ) | K12: CENTER BACK LENGTH ( FROM NECK TO HEM ) | L12: CENTER BACK LENGTH ( FROM NECK TO HEM ) | M12: CENTER BACK LENGTH ( FROM NECK TO HEM ) | N12: CENTER BACK LENGTH ( FROM NECK TO HEM ) | O12: CENTER BACK LENGTH ( FROM NECK TO HEM ) | AG12: 0.375 | AN12: SM
B13: FRONT LENGTH FROM (HIGH SHOULDER POINT) | C13: FRONT LENGTH FROM (HIGH SHOULDER POINT) | D13: FRONT LENGTH FROM (HIGH SHOULDER POINT) | E13: FRONT LENGTH FROM (HIGH SHOULDER POINT) | F13: FRONT LENGTH FROM (HIGH SHOULDER POINT) | G13: FRONT LENGTH FROM (HIGH SHOULDER POINT) | H13: FRONT LENGTH FROM (HIGH SHOULDER POINT) | I13: FRONT LENGTH FROM (HIGH SHOULDER POINT) | J13: FRONT LENGTH FROM (HIGH SHOULDER POINT) | K13: FRONT LENGTH FROM (HIGH SHOULDER POINT) | L13: FRONT LENGTH FROM (HIGH SHOULDER POINT) | M13: FRONT LENGTH FROM (HIGH SHOULDER POINT) | N13: FRONT LENGTH FROM (HIGH SHOULDER POINT) | O13: FRONT LENGTH FROM (HIGH SHOULDER POINT) | AG13: 0.375 | AN13: XL
B14: FRONT LENGTH (FROM CENTRE FRONT NECK TO HEM) | C14: FRONT LENGTH (FROM CENTRE FRONT NECK TO HEM) | D14: FRONT LENGTH (FROM CENTRE FRONT NECK TO HEM) | E14: FRONT LENGTH (FROM CENTRE FRONT NECK TO HEM) | F14: FRONT LENGTH (FROM CENTRE FRONT NECK TO HEM) | G14: FRONT LENGTH (FROM CENTRE FRONT NECK TO HEM) | H14: FRONT LENGTH (FROM CENTRE FRONT NECK TO HEM) | I14: FRONT LENGTH (FROM CENTRE FRONT NECK TO HEM) | J14: FRONT LENGTH (FROM CENTRE FRONT NECK TO HEM) | K14: FRONT LENGTH (FROM CENTRE FRONT NECK TO HEM) | L14: FRONT LENGTH (FROM CENTRE FRONT NECK TO HEM) | M14: FRONT LENGTH (FROM CENTRE FRONT NECK TO HEM) | N14: FRONT LENGTH (FROM CENTRE FRONT NECK TO HEM) | O14: FRONT LENGTH (FROM CENTRE FRONT NECK TO HEM) | AG14: 0.375 | AN14: XXL
B15: CHEST (1" BELOW ARMHOLE) | C15: CHEST (1" BELOW ARMHOLE) | D15: CHEST (1" BELOW ARMHOLE) | E15: CHEST (1" BELOW ARMHOLE) | F15: CHEST (1" BELOW ARMHOLE) | G15: CHEST (1" BELOW ARMHOLE) | H15: CHEST (1" BELOW ARMHOLE) | I15: CHEST (1" BELOW ARMHOLE) | J15: CHEST (1" BELOW ARMHOLE) | K15: CHEST (1" BELOW ARMHOLE) | L15: CHEST (1" BELOW ARMHOLE) | M15: CHEST (1" BELOW ARMHOLE) | N15: CHEST (1" BELOW ARMHOLE) | O15: CHEST (1" BELOW ARMHOLE) | AG15: 0.375 | AN15: XXXL
B16: WAIST (16 1/2" BELOW HIGH SHOULDER POINT) | C16: WAIST (16 1/2" BELOW HIGH SHOULDER POINT) | D16: WAIST (16 1/2" BELOW HIGH SHOULDER POINT) | E16: WAIST (16 1/2" BELOW HIGH SHOULDER POINT) | F16: WAIST (16 1/2" BELOW HIGH SHOULDER POINT) | G16: WAIST (16 1/2" BELOW HIGH SHOULDER POINT) | H16: WAIST (16 1/2" BELOW HIGH SHOULDER POINT) | I16: WAIST (16 1/2" BELOW HIGH SHOULDER POINT) | J16: WAIST (16 1/2" BELOW HIGH SHOULDER POINT) | K16: WAIST (16 1/2" BELOW HIGH SHOULDER POINT) | L16: WAIST (16 1/2" BELOW HIGH SHOULDER POINT) | M16: WAIST (16 1/2" BELOW HIGH SHOULDER POINT) | N16: WAIST (16 1/2" BELOW HIGH SHOULDER POINT) | O16: WAIST (16 1/2" BELOW HIGH SHOULDER POINT) | AG16: 0.375
B17: TOP HIP ( 3" BELOW WAIST ) | C17: TOP HIP ( 3" BELOW WAIST ) | D17: TOP HIP ( 3" BELOW WAIST ) | E17: TOP HIP ( 3" BELOW WAIST ) | F17: TOP HIP ( 3" BELOW WAIST ) | G17: TOP HIP ( 3" BELOW WAIST ) | H17: TOP HIP ( 3" BELOW WAIST ) | I17: TOP HIP ( 3" BELOW WAIST ) | J17: TOP HIP ( 3" BELOW WAIST ) | K17: TOP HIP ( 3" BELOW WAIST ) | L17: TOP HIP ( 3" BELOW WAIST ) | M17: TOP HIP ( 3" BELOW WAIST ) | N17: TOP HIP ( 3" BELOW WAIST ) | O17: TOP HIP ( 3" BELOW WAIST ) | AG17: 0.375
B18: LOW HIP ( 8" BELOW WAIST) | C18: LOW HIP ( 8" BELOW WAIST) | D18: LOW HIP ( 8" BELOW WAIST) | E18: LOW HIP ( 8" BELOW WAIST) | F18: LOW HIP ( 8" BELOW WAIST) | G18: LOW HIP ( 8" BELOW WAIST) | H18: LOW HIP ( 8" BELOW WAIST) | I18: LOW HIP ( 8" BELOW WAIST) | J18: LOW HIP ( 8" BELOW WAIST) | K18: LOW HIP ( 8" BELOW WAIST) | L18: LOW HIP ( 8" BELOW WAIST) | M18: LOW HIP ( 8" BELOW WAIST) | N18: LOW HIP ( 8" BELOW WAIST) | O18: LOW HIP ( 8" BELOW WAIST) | AG18: 0.375
B19: HEM STRAIGHT | C19: HEM STRAIGHT | D19: HEM STRAIGHT | E19: HEM STRAIGHT | F19: HEM STRAIGHT | G19: HEM STRAIGHT | H19: HEM STRAIGHT | I19: HEM STRAIGHT | J19: HEM STRAIGHT | K19: HEM STRAIGHT | L19: HEM STRAIGHT | M19: HEM STRAIGHT | N19: HEM STRAIGHT | O19: HEM STRAIGHT | AG19: 0.375
B20: HEM CURVE (FOLLOW) | C20: HEM CURVE (FOLLOW) | D20: HEM CURVE (FOLLOW) | E20: HEM CURVE (FOLLOW) | F20: HEM CURVE (FOLLOW) | G20: HEM CURVE (FOLLOW) | H20: HEM CURVE (FOLLOW) | I20: HEM CURVE (FOLLOW) | J20: HEM CURVE (FOLLOW) | K20: HEM CURVE (FOLLOW) | L20: HEM CURVE (FOLLOW) | M20: HEM CURVE (FOLLOW) | N20: HEM CURVE (FOLLOW) | O20: HEM CURVE (FOLLOW) | AG20: 0.375
B21: ACROSS SHOULDERS ( TOTAL ) | C21: ACROSS SHOULDERS ( TOTAL ) | D21: ACROSS SHOULDERS ( TOTAL ) | E21: ACROSS SHOULDERS ( TOTAL ) | F21: ACROSS SHOULDERS ( TOTAL ) | G21: ACROSS SHOULDERS ( TOTAL ) | H21: ACROSS SHOULDERS ( TOTAL ) | I21: ACROSS SHOULDERS ( TOTAL ) | J21: ACROSS SHOULDERS ( TOTAL ) | K21: ACROSS SHOULDERS ( TOTAL ) | L21: ACROSS SHOULDERS ( TOTAL ) | M21: ACROSS SHOULDERS ( TOTAL ) | N21: ACROSS SHOULDERS ( TOTAL ) | O21: ACROSS SHOULDERS ( TOTAL ) | AG21: 0.375
B22: SHOULDER LENGTH AT SEAM | C22: SHOULDER LENGTH AT SEAM | D22: SHOULDER LENGTH AT SEAM | E22: SHOULDER LENGTH AT SEAM | F22: SHOULDER LENGTH AT SEAM | G22: SHOULDER LENGTH AT SEAM | H22: SHOULDER LENGTH AT SEAM | I22: SHOULDER LENGTH AT SEAM | J22: SHOULDER LENGTH AT SEAM | K22: SHOULDER LENGTH AT SEAM | L22: SHOULDER LENGTH AT SEAM | M22: SHOULDER LENGTH AT SEAM | N22: SHOULDER LENGTH AT SEAM | O22: SHOULDER LENGTH AT SEAM | AG22: 0.375
B23: ACROSS FRONT (5" BELOW HIGH SHOULDER POINT) | C23: ACROSS FRONT (5" BELOW HIGH SHOULDER POINT) | D23: ACROSS FRONT (5" BELOW HIGH SHOULDER POINT) | E23: ACROSS FRONT (5" BELOW HIGH SHOULDER POINT) | F23: ACROSS FRONT (5" BELOW HIGH SHOULDER POINT) | G23: ACROSS FRONT (5" BELOW HIGH SHOULDER POINT) | H23: ACROSS FRONT (5" BELOW HIGH SHOULDER POINT) | I23: ACROSS FRONT (5" BELOW HIGH SHOULDER POINT) | J23: ACROSS FRONT (5" BELOW HIGH SHOULDER POINT) | K23: ACROSS FRONT (5" BELOW HIGH SHOULDER POINT) | L23: ACROSS FRONT (5" BELOW HIGH SHOULDER POINT) | M23: ACROSS FRONT (5" BELOW HIGH SHOULDER POINT) | N23: ACROSS FRONT (5" BELOW HIGH SHOULDER POINT) | O23: ACROSS FRONT (5" BELOW HIGH SHOULDER POINT) | AG23: 0.375
B24: ACROSS BACK (5" BELOW HIGH SHOULDER POINT) | C24: ACROSS BACK (5" BELOW HIGH SHOULDER POINT) | D24: ACROSS BACK (5" BELOW HIGH SHOULDER POINT) | E24: ACROSS BACK (5" BELOW HIGH SHOULDER POINT) | F24: ACROSS BACK (5" BELOW HIGH SHOULDER POINT) | G24: ACROSS BACK (5" BELOW HIGH SHOULDER POINT) | H24: ACROSS BACK (5" BELOW HIGH SHOULDER POINT) | I24: ACROSS BACK (5" BELOW HIGH SHOULDER POINT) | J24: ACROSS BACK (5" BELOW HIGH SHOULDER POINT) | K24: ACROSS BACK (5" BELOW HIGH SHOULDER POINT) | L24: ACROSS BACK (5" BELOW HIGH SHOULDER POINT) | M24: ACROSS BACK (5" BELOW HIGH SHOULDER POINT) | N24: ACROSS BACK (5" BELOW HIGH SHOULDER POINT) | O24: ACROSS BACK (5" BELOW HIGH SHOULDER POINT) | AG24: 0.25
B25: OVERARM (FROM SLEEVE CAP TO HEM)-SHORT SLEEVE | C25: OVERARM (FROM SLEEVE CAP TO HEM)-SHORT SLEEVE | D25: OVERARM (FROM SLEEVE CAP TO HEM)-SHORT SLEEVE | E25: OVERARM (FROM SLEEVE CAP TO HEM)-SHORT SLEEVE | F25: OVERARM (FROM SLEEVE CAP TO HEM)-SHORT SLEEVE | G25: OVERARM (FROM SLEEVE CAP TO HEM)-SHORT SLEEVE | H25: OVERARM (FROM SLEEVE CAP TO HEM)-SHORT SLEEVE | I25: OVERARM (FROM SLEEVE CAP TO HEM)-SHORT SLEEVE | J25: OVERARM (FROM SLEEVE CAP TO HEM)-SHORT SLEEVE | K25: OVERARM (FROM SLEEVE CAP TO HEM)-SHORT SLEEVE | L25: OVERARM (FROM SLEEVE CAP TO HEM)-SHORT SLEEVE | M25: OVERARM (FROM SLEEVE CAP TO HEM)-SHORT SLEEVE | N25: OVERARM (FROM SLEEVE CAP TO HEM)-SHORT SLEEVE | O25: OVERARM (FROM SLEEVE CAP TO HEM)-SHORT SLEEVE | AG25: 0.25
B26: OVERARM (FROM SLEEVE CAP TO HEM)- 3/4 SLEEVE | C26: OVERARM (FROM SLEEVE CAP TO HEM)- 3/4 SLEEVE | D26: OVERARM (FROM SLEEVE CAP TO HEM)- 3/4 SLEEVE | E26: OVERARM (FROM SLEEVE CAP TO HEM)- 3/4 SLEEVE | F26: OVERARM (FROM SLEEVE CAP TO HEM)- 3/4 SLEEVE | G26: OVERARM (FROM SLEEVE CAP TO HEM)- 3/4 SLEEVE | H26: OVERARM (FROM SLEEVE CAP TO HEM)- 3/4 SLEEVE | I26: OVERARM (FROM SLEEVE CAP TO HEM)- 3/4 SLEEVE | J26: OVERARM (FROM SLEEVE CAP TO HEM)- 3/4 SLEEVE | K26: OVERARM (FROM SLEEVE CAP TO HEM)- 3/4 SLEEVE | L26: OVERARM (FROM SLEEVE CAP TO HEM)- 3/4 SLEEVE | M26: OVERARM (FROM SLEEVE CAP TO HEM)- 3/4 SLEEVE | N26: OVERARM (FROM SLEEVE CAP TO HEM)- 3/4 SLEEVE | O26: OVERARM (FROM SLEEVE CAP TO HEM)- 3/4 SLEEVE | AG26: 0.375
B27: OVERARM (FROM SLEEVE CAP TO HEM)- LONG SLEEVE | C27: OVERARM (FROM SLEEVE CAP TO HEM)- LONG SLEEVE | D27: OVERARM (FROM SLEEVE CAP TO HEM)- LONG SLEEVE | E27: OVERARM (FROM SLEEVE CAP TO HEM)- LONG SLEEVE | F27: OVERARM (FROM SLEEVE CAP TO HEM)- LONG SLEEVE | G27: OVERARM (FROM SLEEVE CAP TO HEM)- LONG SLEEVE | H27: OVERARM (FROM SLEEVE CAP TO HEM)- LONG SLEEVE | I27: OVERARM (FROM SLEEVE CAP TO HEM)- LONG SLEEVE | J27: OVERARM (FROM SLEEVE CAP TO HEM)- LONG SLEEVE | K27: OVERARM (FROM SLEEVE CAP TO HEM)- LONG SLEEVE | L27: OVERARM (FROM SLEEVE CAP TO HEM)- LONG SLEEVE | M27: OVERARM (FROM SLEEVE CAP TO HEM)- LONG SLEEVE | N27: OVERARM (FROM SLEEVE CAP TO HEM)- LONG SLEEVE | O27: OVERARM (FROM SLEEVE CAP TO HEM)- LONG SLEEVE | AG27: 0.25
B28: 1/2 ARMHOLE STRAIGHT | C28: 1/2 ARMHOLE STRAIGHT | D28: 1/2 ARMHOLE STRAIGHT | E28: 1/2 ARMHOLE STRAIGHT | F28: 1/2 ARMHOLE STRAIGHT | G28: 1/2 ARMHOLE STRAIGHT | H28: 1/2 ARMHOLE STRAIGHT | I28: 1/2 ARMHOLE STRAIGHT | J28: 1/2 ARMHOLE STRAIGHT | K28: 1/2 ARMHOLE STRAIGHT | L28: 1/2 ARMHOLE STRAIGHT | M28: 1/2 ARMHOLE STRAIGHT | N28: 1/2 ARMHOLE STRAIGHT | O28: 1/2 ARMHOLE STRAIGHT | AG28: 0.25
B29: BICEP (1" BELOW ARMHOLE) | C29: BICEP (1" BELOW ARMHOLE) | D29: BICEP (1" BELOW ARMHOLE) | E29: BICEP (1" BELOW ARMHOLE) | F29: BICEP (1" BELOW ARMHOLE) | G29: BICEP (1" BELOW ARMHOLE) | H29: BICEP (1" BELOW ARMHOLE) | I29: BICEP (1" BELOW ARMHOLE) | J29: BICEP (1" BELOW ARMHOLE) | K29: BICEP (1" BELOW ARMHOLE) | L29: BICEP (1" BELOW ARMHOLE) | M29: BICEP (1" BELOW ARMHOLE) | N29: BICEP (1" BELOW ARMHOLE) | O29: BICEP (1" BELOW ARMHOLE) | AG29: 0.25
B30: ELBOW (8 1/2" BELOW ARMHOLE) | C30: ELBOW (8 1/2" BELOW ARMHOLE) | D30: ELBOW (8 1/2" BELOW ARMHOLE) | E30: ELBOW (8 1/2" BELOW ARMHOLE) | F30: ELBOW (8 1/2" BELOW ARMHOLE) | G30: ELBOW (8 1/2" BELOW ARMHOLE) | H30: ELBOW (8 1/2" BELOW ARMHOLE) | I30: ELBOW (8 1/2" BELOW ARMHOLE) | J30: ELBOW (8 1/2" BELOW ARMHOLE) | K30: ELBOW (8 1/2" BELOW ARMHOLE) | L30: ELBOW (8 1/2" BELOW ARMHOLE) | M30: ELBOW (8 1/2" BELOW ARMHOLE) | N30: ELBOW (8 1/2" BELOW ARMHOLE) | O30: ELBOW (8 1/2" BELOW ARMHOLE) | AG30: 0.25
B31: SHORT SLEEVE OPENING | C31: SHORT SLEEVE OPENING | D31: SHORT SLEEVE OPENING | E31: SHORT SLEEVE OPENING | F31: SHORT SLEEVE OPENING | G31: SHORT SLEEVE OPENING | H31: SHORT SLEEVE OPENING | I31: SHORT SLEEVE OPENING | J31: SHORT SLEEVE OPENING | K31: SHORT SLEEVE OPENING | L31: SHORT SLEEVE OPENING | M31: SHORT SLEEVE OPENING | N31: SHORT SLEEVE OPENING | O31: SHORT SLEEVE OPENING | AG31: 0.25
B32: 3/4 SLEEVE OPENING | C32: 3/4 SLEEVE OPENING | D32: 3/4 SLEEVE OPENING | E32: 3/4 SLEEVE OPENING | F32: 3/4 SLEEVE OPENING | G32: 3/4 SLEEVE OPENING | H32: 3/4 SLEEVE OPENING | I32: 3/4 SLEEVE OPENING | J32: 3/4 SLEEVE OPENING | K32: 3/4 SLEEVE OPENING | L32: 3/4 SLEEVE OPENING | M32: 3/4 SLEEVE OPENING | N32: 3/4 SLEEVE OPENING | O32: 3/4 SLEEVE OPENING | AG32: 0.25
B33: LONG SLEEVE OPENING | C33: LONG SLEEVE OPENING | D33: LONG SLEEVE OPENING | E33: LONG SLEEVE OPENING | F33: LONG SLEEVE OPENING | G33: LONG SLEEVE OPENING | H33: LONG SLEEVE OPENING | I33: LONG SLEEVE OPENING | J33: LONG SLEEVE OPENING | K33: LONG SLEEVE OPENING | L33: LONG SLEEVE OPENING | M33: LONG SLEEVE OPENING | N33: LONG SLEEVE OPENING | O33: LONG SLEEVE OPENING | AG33: 1/4
B34: SLEEVE CAP HEIGHT ( FROM TOP OF SLEEVE TO UNDERARM ) | C34: SLEEVE CAP HEIGHT ( FROM TOP OF SLEEVE TO UNDERARM ) | D34: SLEEVE CAP HEIGHT ( FROM TOP OF SLEEVE TO UNDERARM ) | E34: SLEEVE CAP HEIGHT ( FROM TOP OF SLEEVE TO UNDERARM ) | F34: SLEEVE CAP HEIGHT ( FROM TOP OF SLEEVE TO UNDERARM ) | G34: SLEEVE CAP HEIGHT ( FROM TOP OF SLEEVE TO UNDERARM ) | H34: SLEEVE CAP HEIGHT ( FROM TOP OF SLEEVE TO UNDERARM ) | I34: SLEEVE CAP HEIGHT ( FROM TOP OF SLEEVE TO UNDERARM ) | J34: SLEEVE CAP HEIGHT ( FROM TOP OF SLEEVE TO UNDERARM ) | K34: SLEEVE CAP HEIGHT ( FROM TOP OF SLEEVE TO UNDERARM ) | L34: SLEEVE CAP HEIGHT ( FROM TOP OF SLEEVE TO UNDERARM ) | M34: SLEEVE CAP HEIGHT ( FROM TOP OF SLEEVE TO UNDERARM ) | N34: SLEEVE CAP HEIGHT ( FROM TOP OF SLEEVE TO UNDERARM ) | O34: SLEEVE CAP HEIGHT ( FROM TOP OF SLEEVE TO UNDERARM ) | AG34: 0
B35: SHOULDER SLOPE ( HSP TO SHOULDER ARMHOLE SEAM ) | C35: SHOULDER SLOPE ( HSP TO SHOULDER ARMHOLE SEAM ) | D35: SHOULDER SLOPE ( HSP TO SHOULDER ARMHOLE SEAM ) | E35: SHOULDER SLOPE ( HSP TO SHOULDER ARMHOLE SEAM ) | F35: SHOULDER SLOPE ( HSP TO SHOULDER ARMHOLE SEAM ) | G35: SHOULDER SLOPE ( HSP TO SHOULDER ARMHOLE SEAM ) | H35: SHOULDER SLOPE ( HSP TO SHOULDER ARMHOLE SEAM ) | I35: SHOULDER SLOPE ( HSP TO SHOULDER ARMHOLE SEAM ) | J35: SHOULDER SLOPE ( HSP TO SHOULDER ARMHOLE SEAM ) | K35: SHOULDER SLOPE ( HSP TO SHOULDER ARMHOLE SEAM ) | L35: SHOULDER SLOPE ( HSP TO SHOULDER ARMHOLE SEAM ) | M35: SHOULDER SLOPE ( HSP TO SHOULDER ARMHOLE SEAM ) | N35: SHOULDER SLOPE ( HSP TO SHOULDER ARMHOLE SEAM ) | O35: SHOULDER SLOPE ( HSP TO SHOULDER ARMHOLE SEAM ) | AG35: 0.25
B36: NECK WIDTH (HSP TO HSP) ON BACK | C36: NECK WIDTH (HSP TO HSP) ON BACK | D36: NECK WIDTH (HSP TO HSP) ON BACK | E36: NECK WIDTH (HSP TO HSP) ON BACK | F36: NECK WIDTH (HSP TO HSP) ON BACK | G36: NECK WIDTH (HSP TO HSP) ON BACK | H36: NECK WIDTH (HSP TO HSP) ON BACK | I36: NECK WIDTH (HSP TO HSP) ON BACK | J36: NECK WIDTH (HSP TO HSP) ON BACK | K36: NECK WIDTH (HSP TO HSP) ON BACK | L36: NECK WIDTH (HSP TO HSP) ON BACK | M36: NECK WIDTH (HSP TO HSP) ON BACK | N36: NECK WIDTH (HSP TO HSP) ON BACK | O36: NECK WIDTH (HSP TO HSP) ON BACK | AG36: 0.25
B37: FRONT NECK DROP ( FROM HSP TO CENTER FRONT NECK EDGE OR SEAM ) | C37: FRONT NECK DROP ( FROM HSP TO CENTER FRONT NECK EDGE OR SEAM ) | D37: FRONT NECK DROP ( FROM HSP TO CENTER FRONT NECK EDGE OR SEAM ) | E37: FRONT NECK DROP ( FROM HSP TO CENTER FRONT NECK EDGE OR SEAM ) | F37: FRONT NECK DROP ( FROM HSP TO CENTER FRONT NECK EDGE OR SEAM ) | G37: FRONT NECK DROP ( FROM HSP TO CENTER FRONT NECK EDGE OR SEAM ) | H37: FRONT NECK DROP ( FROM HSP TO CENTER FRONT NECK EDGE OR SEAM ) | I37: FRONT NECK DROP ( FROM HSP TO CENTER FRONT NECK EDGE OR SEAM ) | J37: FRONT NECK DROP ( FROM HSP TO CENTER FRONT NECK EDGE OR SEAM ) | K37: FRONT NECK DROP ( FROM HSP TO CENTER FRONT NECK EDGE OR SEAM ) | L37: FRONT NECK DROP ( FROM HSP TO CENTER FRONT NECK EDGE OR SEAM ) | M37: FRONT NECK DROP ( FROM HSP TO CENTER FRONT NECK EDGE OR SEAM ) | N37: FRONT NECK DROP ( FROM HSP TO CENTER FRONT NECK EDGE OR SEAM ) | O37: FRONT NECK DROP ( FROM HSP TO CENTER FRONT NECK EDGE OR SEAM ) | AG37: 0.25
B38: BACK NECK DROP ( FROM HSP TO CENTER BACK NECK EDGE OR SEAM ) | C38: BACK NECK DROP ( FROM HSP TO CENTER BACK NECK EDGE OR SEAM ) | D38: BACK NECK DROP ( FROM HSP TO CENTER BACK NECK EDGE OR SEAM ) | E38: BACK NECK DROP ( FROM HSP TO CENTER BACK NECK EDGE OR SEAM ) | F38: BACK NECK DROP ( FROM HSP TO CENTER BACK NECK EDGE OR SEAM ) | G38: BACK NECK DROP ( FROM HSP TO CENTER BACK NECK EDGE OR SEAM ) | H38: BACK NECK DROP ( FROM HSP TO CENTER BACK NECK EDGE OR SEAM ) | I38: BACK NECK DROP ( FROM HSP TO CENTER BACK NECK EDGE OR SEAM ) | J38: BACK NECK DROP ( FROM HSP TO CENTER BACK NECK EDGE OR SEAM ) | K38: BACK NECK DROP ( FROM HSP TO CENTER BACK NECK EDGE OR SEAM ) | L38: BACK NECK DROP ( FROM HSP TO CENTER BACK NECK EDGE OR SEAM ) | M38: BACK NECK DROP ( FROM HSP TO CENTER BACK NECK EDGE OR SEAM ) | N38: BACK NECK DROP ( FROM HSP TO CENTER BACK NECK EDGE OR SEAM ) | O38: BACK NECK DROP ( FROM HSP TO CENTER BACK NECK EDGE OR SEAM ) | AG38: 0.25
B39: 1/2 NECK CIRCUMFERENCE | C39: 1/2 NECK CIRCUMFERENCE | D39: 1/2 NECK CIRCUMFERENCE | E39: 1/2 NECK CIRCUMFERENCE | F39: 1/2 NECK CIRCUMFERENCE | G39: 1/2 NECK CIRCUMFERENCE | H39: 1/2 NECK CIRCUMFERENCE | I39: 1/2 NECK CIRCUMFERENCE | J39: 1/2 NECK CIRCUMFERENCE | K39: 1/2 NECK CIRCUMFERENCE | L39: 1/2 NECK CIRCUMFERENCE | M39: 1/2 NECK CIRCUMFERENCE | N39: 1/2 NECK CIRCUMFERENCE | O39: 1/2 NECK CIRCUMFERENCE | AG39: 0
B40: COLLAR DEPTH ( AT C.B. NECK ) | C40: COLLAR DEPTH ( AT C.B. NECK ) | D40: COLLAR DEPTH ( AT C.B. NECK ) | E40: COLLAR DEPTH ( AT C.B. NECK ) | F40: COLLAR DEPTH ( AT C.B. NECK ) | G40: COLLAR DEPTH ( AT C.B. NECK ) | H40: COLLAR DEPTH ( AT C.B. NECK ) | I40: COLLAR DEPTH ( AT C.B. NECK ) | J40: COLLAR DEPTH ( AT C.B. NECK ) | K40: COLLAR DEPTH ( AT C.B. NECK ) | L40: COLLAR DEPTH ( AT C.B. NECK ) | M40: COLLAR DEPTH ( AT C.B. NECK ) | N40: COLLAR DEPTH ( AT C.B. NECK ) | O40: COLLAR DEPTH ( AT C.B. NECK ) | AG40: 0
B41: STAND DEPTH | C41: STAND DEPTH | D41: STAND DEPTH | E41: STAND DEPTH | F41: STAND DEPTH | G41: STAND DEPTH | H41: STAND DEPTH | I41: STAND DEPTH | J41: STAND DEPTH | K41: STAND DEPTH | L41: STAND DEPTH | M41: STAND DEPTH | N41: STAND DEPTH | O41: STAND DEPTH | AG41: 0.25
B42: COLLAR LENGTH | C42: COLLAR LENGTH | D42: COLLAR LENGTH | E42: COLLAR LENGTH | F42: COLLAR LENGTH | G42: COLLAR LENGTH | H42: COLLAR LENGTH | I42: COLLAR LENGTH | J42: COLLAR LENGTH | K42: COLLAR LENGTH | L42: COLLAR LENGTH | M42: COLLAR LENGTH | N42: COLLAR LENGTH | O42: COLLAR LENGTH | AG42: 0
B43: NECK TRIM DEPTH | C43: NECK TRIM DEPTH | D43: NECK TRIM DEPTH | E43: NECK TRIM DEPTH | F43: NECK TRIM DEPTH | G43: NECK TRIM DEPTH | H43: NECK TRIM DEPTH | I43: NECK TRIM DEPTH | J43: NECK TRIM DEPTH | K43: NECK TRIM DEPTH | L43: NECK TRIM DEPTH | M43: NECK TRIM DEPTH | N43: NECK TRIM DEPTH | O43: NECK TRIM DEPTH | AG43: 0
B44: CUFF DEPTH | C44: CUFF DEPTH | D44: CUFF DEPTH | E44: CUFF DEPTH | F44: CUFF DEPTH | G44: CUFF DEPTH | H44: CUFF DEPTH | I44: CUFF DEPTH | J44: CUFF DEPTH | K44: CUFF DEPTH | L44: CUFF DEPTH | M44: CUFF DEPTH | N44: CUFF DEPTH | O44: CUFF DEPTH | AG44: 0
B45: SLEEVE HEM DEPTH | C45: SLEEVE HEM DEPTH | D45: SLEEVE HEM DEPTH | E45: SLEEVE HEM DEPTH | F45: SLEEVE HEM DEPTH | G45: SLEEVE HEM DEPTH | H45: SLEEVE HEM DEPTH | I45: SLEEVE HEM DEPTH | J45: SLEEVE HEM DEPTH | K45: SLEEVE HEM DEPTH | L45: SLEEVE HEM DEPTH | M45: SLEEVE HEM DEPTH | N45: SLEEVE HEM DEPTH | O45: SLEEVE HEM DEPTH | AG45: 0
B46: BOTTOM HEM DEPTH | C46: BOTTOM HEM DEPTH | D46: BOTTOM HEM DEPTH | E46: BOTTOM HEM DEPTH | F46: BOTTOM HEM DEPTH | G46: BOTTOM HEM DEPTH | H46: BOTTOM HEM DEPTH | I46: BOTTOM HEM DEPTH | J46: BOTTOM HEM DEPTH | K46: BOTTOM HEM DEPTH | L46: BOTTOM HEM DEPTH | M46: BOTTOM HEM DEPTH | N46: BOTTOM HEM DEPTH | O46: BOTTOM HEM DEPTH | AG46: 0.375
B47: HSP TO BUST POINT | C47: HSP TO BUST POINT | D47: HSP TO BUST POINT | E47: HSP TO BUST POINT | F47: HSP TO BUST POINT | G47: HSP TO BUST POINT | H47: HSP TO BUST POINT | I47: HSP TO BUST POINT | J47: HSP TO BUST POINT | K47: HSP TO BUST POINT | L47: HSP TO BUST POINT | M47: HSP TO BUST POINT | N47: HSP TO BUST POINT | O47: HSP TO BUST POINT
B52: Sample Approved?
B53: If sample is NOT approved, then submit 3rd Fit Sample. If sample is APPROVED, then submit Pre-Production Samples.

Sheet 2nd Fit Photo Comments (hidden)
L2: Create Date: | Q2: ='ORIGINAL PHOTO'!Q2:W2 -> MARCH 15/2017
L3: Vendor Name: | Q3: ='ORIGINAL PHOTO'!Q3:AI3 -> 0
L4: Vndr.Item No.: | Q4: ='ORIGINAL PHOTO'!Q4:W4 -> 0 | AA4: GC Item No.: | AE4: ='ORIGINAL PHOTO'!AE4:AI4 -> 0
L5: Size Range: | Q5: ='ORIGINAL PHOTO'!Q5:W5 -> S-M-L-XL | AA5: Season: | AD5: ='ORIGINAL PHOTO'!AD5:AI5 -> Spring Summer 2018
L6: Description: | Q6: ='ORIGINAL PHOTO'!Q6:AI6 -> MEN'S LONG SLEEVE ZIP FRONT SCOOP HEM HOODIE WITH LINED HOOD
B8: 2ND FIT PHOTO COMMENTS-- MEN'S TOP | T8: Date: | AN8: L
AN9: LXL
AN10: M
AN11: S
AN12: SM
AN13: XL
AN14: XXL
AN15: XXXL

Sheet 3rd Fit Sample (hidden)
L2: Create Date: | Q2: ='ORIGINAL PHOTO'!Q2:W2 -> MARCH 15/2017
L3: Vendor Name: | Q3: ='ORIGINAL PHOTO'!Q3:AI3 -> 0
L4: Vndr.Item No.: | Q4: ='ORIGINAL PHOTO'!Q4:W4 -> 0 | AA4: GC Item No.: | AE4: ='ORIGINAL PHOTO'!AE4:AI4 -> 0
L5: Size Range: | Q5: ='ORIGINAL PHOTO'!Q5:W5 -> S-M-L-XL | AA5: Season: | AD5: ='ORIGINAL PHOTO'!AD5:AI5 -> Spring Summer 2018
L6: Description: | Q6: ='ORIGINAL PHOTO'!Q6:AI6 -> MEN'S LONG SLEEVE ZIP FRONT SCOOP HEM HOODIE WITH LINED HOOD
B8: APPAREL SPEC SHEET -- COAT | T8: Date: | AN8: L
B9: (Measurements on flat / inches) | P9: 3rd Fit Sample | T9: Required Spec | X9: Comments | AG9: Tolerance + / - (on flat) | AN9: LXL
P10: S | T10: S | AN10: M
B11: BACK LENGTH FROM (HIGH SHOULDER POINT) | C11: BACK LENGTH FROM (HIGH SHOULDER POINT) | D11: BACK LENGTH FROM (HIGH SHOULDER POINT) | E11: BACK LENGTH FROM (HIGH SHOULDER POINT) | F11: BACK LENGTH FROM (HIGH SHOULDER POINT) | G11: BACK LENGTH FROM (HIGH SHOULDER POINT) | H11: BACK LENGTH FROM (HIGH SHOULDER POINT) | I11: BACK LENGTH FROM (HIGH SHOULDER POINT) | J11: BACK LENGTH FROM (HIGH SHOULDER POINT) | K11: BACK LENGTH FROM (HIGH SHOULDER POINT) | L11: BACK LENGTH FROM (HIGH SHOULDER POINT) | M11: BACK LENGTH FROM (HIGH SHOULDER POINT) | N11: BACK LENGTH FROM (HIGH SHOULDER POINT) | O11: BACK LENGTH FROM (HIGH SHOULDER POINT) | AG11: 0.375 | AN11: S
B12: CENTER BACK LENGTH ( FROM NECK TO HEM ) | C12: CENTER BACK LENGTH ( FROM NECK TO HEM ) | D12: CENTER BACK LENGTH ( FROM NECK TO HEM ) | E12: CENTER BACK LENGTH ( FROM NECK TO HEM ) | F12: CENTER BACK LENGTH ( FROM NECK TO HEM ) | G12: CENTER BACK LENGTH ( FROM NECK TO HEM ) | H12: CENTER BACK LENGTH ( FROM NECK TO HEM ) | I12: CENTER BACK LENGTH ( FROM NECK TO HEM ) | J12: CENTER BACK LENGTH ( FROM NECK TO HEM ) | K12: CENTER BACK LENGTH ( FROM NECK TO HEM ) | L12: CENTER BACK LENGTH ( FROM NECK TO HEM ) | M12: CENTER BACK LENGTH ( FROM NECK TO HEM ) | N12: CENTER BACK LENGTH ( FROM NECK TO HEM ) | O12: CENTER BACK LENGTH ( FROM NECK TO HEM ) | AG12: 0.375 | AN12: SM
B13: FRONT LENGTH FROM (HIGH SHOULDER POINT) | C13: FRONT LENGTH FROM (HIGH SHOULDER POINT) | D13: FRONT LENGTH FROM (HIGH SHOULDER POINT) | E13: FRONT LENGTH FROM (HIGH SHOULDER POINT) | F13: FRONT LENGTH FROM (HIGH SHOULDER POINT) | G13: FRONT LENGTH FROM (HIGH SHOULDER POINT) | H13: FRONT LENGTH FROM (HIGH SHOULDER POINT) | I13: FRONT LENGTH FROM (HIGH SHOULDER POINT) | J13: FRONT LENGTH FROM (HIGH SHOULDER POINT) | K13: FRONT LENGTH FROM (HIGH SHOULDER POINT) | L13: FRONT LENGTH FROM (HIGH SHOULDER POINT) | M13: FRONT LENGTH FROM (HIGH SHOULDER POINT) | N13: FRONT LENGTH FROM (HIGH SHOULDER POINT) | O13: FRONT LENGTH FROM (HIGH SHOULDER POINT) | AG13: 0.375 | AN13: XL
B14: FRONT LENGTH (FROM CENTRE FRONT NECK TO HEM) | C14: FRONT LENGTH (FROM CENTRE FRONT NECK TO HEM) | D14: FRONT LENGTH (FROM CENTRE FRONT NECK TO HEM) | E14: FRONT LENGTH (FROM CENTRE FRONT NECK TO HEM) | F14: FRONT LENGTH (FROM CENTRE FRONT NECK TO HEM) | G14: FRONT LENGTH (FROM CENTRE FRONT NECK TO HEM) | H14: FRONT LENGTH (FROM CENTRE FRONT NECK TO HEM) | I14: FRONT LENGTH (FROM CENTRE FRONT NECK TO HEM) | J14: FRONT LENGTH (FROM CENTRE FRONT NECK TO HEM) | K14: FRONT LENGTH (FROM CENTRE FRONT NECK TO HEM) | L14: FRONT LENGTH (FROM CENTRE FRONT NECK TO HEM) | M14: FRONT LENGTH (FROM CENTRE FRONT NECK TO HEM) | N14: FRONT LENGTH (FROM CENTRE FRONT NECK TO HEM) | O14: FRONT LENGTH (FROM CENTRE FRONT NECK TO HEM) | AG14: 0.375 | AN14: XXL
B15: CHEST (1" BELOW ARMHOLE) | C15: CHEST (1" BELOW ARMHOLE) | D15: CHEST (1" BELOW ARMHOLE) | E15: CHEST (1" BELOW ARMHOLE) | F15: CHEST (1" BELOW ARMHOLE) | G15: CHEST (1" BELOW ARMHOLE) | H15: CHEST (1" BELOW ARMHOLE) | I15: CHEST (1" BELOW ARMHOLE) | J15: CHEST (1" BELOW ARMHOLE) | K15: CHEST (1" BELOW ARMHOLE) | L15: CHEST (1" BELOW ARMHOLE) | M15: CHEST (1" BELOW ARMHOLE) | N15: CHEST (1" BELOW ARMHOLE) | O15: CHEST (1" BELOW ARMHOLE) | AG15: 0.375 | AN15: XXXL
B16: WAIST (16 1/2" BELOW HIGH SHOULDER POINT) | C16: WAIST (16 1/2" BELOW HIGH SHOULDER POINT) | D16: WAIST (16 1/2" BELOW HIGH SHOULDER POINT) | E16: WAIST (16 1/2" BELOW HIGH SHOULDER POINT) | F16: WAIST (16 1/2" BELOW HIGH SHOULDER POINT) | G16: WAIST (16 1/2" BELOW HIGH SHOULDER POINT) | H16: WAIST (16 1/2" BELOW HIGH SHOULDER POINT) | I16: WAIST (16 1/2" BELOW HIGH SHOULDER POINT) | J16: WAIST (16 1/2" BELOW HIGH SHOULDER POINT) | K16: WAIST (16 1/2" BELOW HIGH SHOULDER POINT) | L16: WAIST (16 1/2" BELOW HIGH SHOULDER POINT) | M16: WAIST (16 1/2" BELOW HIGH SHOULDER POINT) | N16: WAIST (16 1/2" BELOW HIGH SHOULDER POINT) | O16: WAIST (16 1/2" BELOW HIGH SHOULDER POINT) | AG16: 0.375
B17: TOP HIP ( 3" BELOW WAIST ) | C17: TOP HIP ( 3" BELOW WAIST ) | D17: TOP HIP ( 3" BELOW WAIST ) | E17: TOP HIP ( 3" BELOW WAIST ) | F17: TOP HIP ( 3" BELOW WAIST ) | G17: TOP HIP ( 3" BELOW WAIST ) | H17: TOP HIP ( 3" BELOW WAIST ) | I17: TOP HIP ( 3" BELOW WAIST ) | J17: TOP HIP ( 3" BELOW WAIST ) | K17: TOP HIP ( 3" BELOW WAIST ) | L17: TOP HIP ( 3" BELOW WAIST ) | M17: TOP HIP ( 3" BELOW WAIST ) | N17: TOP HIP ( 3" BELOW WAIST ) | O17: TOP HIP ( 3" BELOW WAIST ) | AG17: 0.375
B18: LOW HIP ( 8" BELOW WAIST) | C18: LOW HIP ( 8" BELOW WAIST) | D18: LOW HIP ( 8" BELOW WAIST) | E18: LOW HIP ( 8" BELOW WAIST) | F18: LOW HIP ( 8" BELOW WAIST) | G18: LOW HIP ( 8" BELOW WAIST) | H18: LOW HIP ( 8" BELOW WAIST) | I18: LOW HIP ( 8" BELOW WAIST) | J18: LOW HIP ( 8" BELOW WAIST) | K18: LOW HIP ( 8" BELOW WAIST) | L18: LOW HIP ( 8" BELOW WAIST) | M18: LOW HIP ( 8" BELOW WAIST) | N18: LOW HIP ( 8" BELOW WAIST) | O18: LOW HIP ( 8" BELOW WAIST) | AG18: 0.375
B19: HEM STRAIGHT | C19: HEM STRAIGHT | D19: HEM STRAIGHT | E19: HEM STRAIGHT | F19: HEM STRAIGHT | G19: HEM STRAIGHT | H19: HEM STRAIGHT | I19: HEM STRAIGHT | J19: HEM STRAIGHT | K19: HEM STRAIGHT | L19: HEM STRAIGHT | M19: HEM STRAIGHT | N19: HEM STRAIGHT | O19: HEM STRAIGHT | AG19: 0.375
B20: HEM CURVE (FOLLOW) | C20: HEM CURVE (FOLLOW) | D20: HEM CURVE (FOLLOW) | E20: HEM CURVE (FOLLOW) | F20: HEM CURVE (FOLLOW) | G20: HEM CURVE (FOLLOW) | H20: HEM CURVE (FOLLOW) | I20: HEM CURVE (FOLLOW) | J20: HEM CURVE (FOLLOW) | K20: HEM CURVE (FOLLOW) | L20: HEM CURVE (FOLLOW) | M20: HEM CURVE (FOLLOW) | N20: HEM CURVE (FOLLOW) | O20: HEM CURVE (FOLLOW) | AG20: 0.375
B21: ACROSS SHOULDERS ( TOTAL ) | C21: ACROSS SHOULDERS ( TOTAL ) | D21: ACROSS SHOULDERS ( TOTAL ) | E21: ACROSS SHOULDERS ( TOTAL ) | F21: ACROSS SHOULDERS ( TOTAL ) | G21: ACROSS SHOULDERS ( TOTAL ) | H21: ACROSS SHOULDERS ( TOTAL ) | I21: ACROSS SHOULDERS ( TOTAL ) | J21: ACROSS SHOULDERS ( TOTAL ) | K21: ACROSS SHOULDERS ( TOTAL ) | L21: ACROSS SHOULDERS ( TOTAL ) | M21: ACROSS SHOULDERS ( TOTAL ) | N21: ACROSS SHOULDERS ( TOTAL ) | O21: ACROSS SHOULDERS ( TOTAL ) | AG21: 0.375
B22: SHOULDER LENGTH AT SEAM | C22: SHOULDER LENGTH AT SEAM | D22: SHOULDER LENGTH AT SEAM | E22: SHOULDER LENGTH AT SEAM | F22: SHOULDER LENGTH AT SEAM | G22: SHOULDER LENGTH AT SEAM | H22: SHOULDER LENGTH AT SEAM | I22: SHOULDER LENGTH AT SEAM | J22: SHOULDER LENGTH AT SEAM | K22: SHOULDER LENGTH AT SEAM | L22: SHOULDER LENGTH AT SEAM | M22: SHOULDER LENGTH AT SEAM | N22: SHOULDER LENGTH AT SEAM | O22: SHOULDER LENGTH AT SEAM | AG22: 0.375
B23: ACROSS FRONT (5" BELOW HIGH SHOULDER POINT) | C23: ACROSS FRONT (5" BELOW HIGH SHOULDER POINT) | D23: ACROSS FRONT (5" BELOW HIGH SHOULDER POINT) | E23: ACROSS FRONT (5" BELOW HIGH SHOULDER POINT) | F23: ACROSS FRONT (5" BELOW HIGH SHOULDER POINT) | G23: ACROSS FRONT (5" BELOW HIGH SHOULDER POINT) | H23: ACROSS FRONT (5" BELOW HIGH SHOULDER POINT) | I23: ACROSS FRONT (5" BELOW HIGH SHOULDER POINT) | J23: ACROSS FRONT (5" BELOW HIGH SHOULDER POINT) | K23: ACROSS FRONT (5" BELOW HIGH SHOULDER POINT) | L23: ACROSS FRONT (5" BELOW HIGH SHOULDER POINT) | M23: ACROSS FRONT (5" BELOW HIGH SHOULDER POINT) | N23: ACROSS FRONT (5" BELOW HIGH SHOULDER POINT) | O23: ACROSS FRONT (5" BELOW HIGH SHOULDER POINT) | AG23: 0.375
B24: ACROSS BACK (5" BELOW HIGH SHOULDER POINT) | C24: ACROSS BACK (5" BELOW HIGH SHOULDER POINT) | D24: ACROSS BACK (5" BELOW HIGH SHOULDER POINT) | E24: ACROSS BACK (5" BELOW HIGH SHOULDER POINT) | F24: ACROSS BACK (5" BELOW HIGH SHOULDER POINT) | G24: ACROSS BACK (5" BELOW HIGH SHOULDER POINT) | H24: ACROSS BACK (5" BELOW HIGH SHOULDER POINT) | I24: ACROSS BACK (5" BELOW HIGH SHOULDER POINT) | J24: ACROSS BACK (5" BELOW HIGH SHOULDER POINT) | K24: ACROSS BACK (5" BELOW HIGH SHOULDER POINT) | L24: ACROSS BACK (5" BELOW HIGH SHOULDER POINT) | M24: ACROSS BACK (5" BELOW HIGH SHOULDER POINT) | N24: ACROSS BACK (5" BELOW HIGH SHOULDER POINT) | O24: ACROSS BACK (5" BELOW HIGH SHOULDER POINT) | AG24: 0.25
B25: OVERARM (FROM SLEEVE CAP TO HEM)-SHORT SLEEVE | C25: OVERARM (FROM SLEEVE CAP TO HEM)-SHORT SLEEVE | D25: OVERARM (FROM SLEEVE CAP TO HEM)-SHORT SLEEVE | E25: OVERARM (FROM SLEEVE CAP TO HEM)-SHORT SLEEVE | F25: OVERARM (FROM SLEEVE CAP TO HEM)-SHORT SLEEVE | G25: OVERARM (FROM SLEEVE CAP TO HEM)-SHORT SLEEVE | H25: OVERARM (FROM SLEEVE CAP TO HEM)-SHORT SLEEVE | I25: OVERARM (FROM SLEEVE CAP TO HEM)-SHORT SLEEVE | J25: OVERARM (FROM SLEEVE CAP TO HEM)-SHORT SLEEVE | K25: OVERARM (FROM SLEEVE CAP TO HEM)-SHORT SLEEVE | L25: OVERARM (FROM SLEEVE CAP TO HEM)-SHORT SLEEVE | M25: OVERARM (FROM SLEEVE CAP TO HEM)-SHORT SLEEVE | N25: OVERARM (FROM SLEEVE CAP TO HEM)-SHORT SLEEVE | O25: OVERARM (FROM SLEEVE CAP TO HEM)-SHORT SLEEVE | AG25: 0.25
B26: OVERARM (FROM SLEEVE CAP TO HEM)- 3/4 SLEEVE | C26: OVERARM (FROM SLEEVE CAP TO HEM)- 3/4 SLEEVE | D26: OVERARM (FROM SLEEVE CAP TO HEM)- 3/4 SLEEVE | E26: OVERARM (FROM SLEEVE CAP TO HEM)- 3/4 SLEEVE | F26: OVERARM (FROM SLEEVE CAP TO HEM)- 3/4 SLEEVE | G26: OVERARM (FROM SLEEVE CAP TO HEM)- 3/4 SLEEVE | H26: OVERARM (FROM SLEEVE CAP TO HEM)- 3/4 SLEEVE | I26: OVERARM (FROM SLEEVE CAP TO HEM)- 3/4 SLEEVE | J26: OVERARM (FROM SLEEVE CAP TO HEM)- 3/4 SLEEVE | K26: OVERARM (FROM SLEEVE CAP TO HEM)- 3/4 SLEEVE | L26: OVERARM (FROM SLEEVE CAP TO HEM)- 3/4 SLEEVE | M26: OVERARM (FROM SLEEVE CAP TO HEM)- 3/4 SLEEVE | N26: OVERARM (FROM SLEEVE CAP TO HEM)- 3/4 SLEEVE | O26: OVERARM (FROM SLEEVE CAP TO HEM)- 3/4 SLEEVE | AG26: 0.375
B27: OVERARM (FROM SLEEVE CAP TO HEM)- LONG SLEEVE | C27: OVERARM (FROM SLEEVE CAP TO HEM)- LONG SLEEVE | D27: OVERARM (FROM SLEEVE CAP TO HEM)- LONG SLEEVE | E27: OVERARM (FROM SLEEVE CAP TO HEM)- LONG SLEEVE | F27: OVERARM (FROM SLEEVE CAP TO HEM)- LONG SLEEVE | G27: OVERARM (FROM SLEEVE CAP TO HEM)- LONG SLEEVE | H27: OVERARM (FROM SLEEVE CAP TO HEM)- LONG SLEEVE | I27: OVERARM (FROM SLEEVE CAP TO HEM)- LONG SLEEVE | J27: OVERARM (FROM SLEEVE CAP TO HEM)- LONG SLEEVE | K27: OVERARM (FROM SLEEVE CAP TO HEM)- LONG SLEEVE | L27: OVERARM (FROM SLEEVE CAP TO HEM)- LONG SLEEVE | M27: OVERARM (FROM SLEEVE CAP TO HEM)- LONG SLEEVE | N27: OVERARM (FROM SLEEVE CAP TO HEM)- LONG SLEEVE | O27: OVERARM (FROM SLEEVE CAP TO HEM)- LONG SLEEVE | AG27: 0.25
B28: 1/2 ARMHOLE STRAIGHT | C28: 1/2 ARMHOLE STRAIGHT | D28: 1/2 ARMHOLE STRAIGHT | E28: 1/2 ARMHOLE STRAIGHT | F28: 1/2 ARMHOLE STRAIGHT | G28: 1/2 ARMHOLE STRAIGHT | H28: 1/2 ARMHOLE STRAIGHT | I28: 1/2 ARMHOLE STRAIGHT | J28: 1/2 ARMHOLE STRAIGHT | K28: 1/2 ARMHOLE STRAIGHT | L28: 1/2 ARMHOLE STRAIGHT | M28: 1/2 ARMHOLE STRAIGHT | N28: 1/2 ARMHOLE STRAIGHT | O28: 1/2 ARMHOLE STRAIGHT | AG28: 0.25
B29: BICEP (1" BELOW ARMHOLE) | C29: BICEP (1" BELOW ARMHOLE) | D29: BICEP (1" BELOW ARMHOLE) | E29: BICEP (1" BELOW ARMHOLE) | F29: BICEP (1" BELOW ARMHOLE) | G29: BICEP (1" BELOW ARMHOLE) | H29: BICEP (1" BELOW ARMHOLE) | I29: BICEP (1" BELOW ARMHOLE) | J29: BICEP (1" BELOW ARMHOLE) | K29: BICEP (1" BELOW ARMHOLE) | L29: BICEP (1" BELOW ARMHOLE) | M29: BICEP (1" BELOW ARMHOLE) | N29: BICEP (1" BELOW ARMHOLE) | O29: BICEP (1" BELOW ARMHOLE) | AG29: 0.25
B30: ELBOW (8 1/2" BELOW ARMHOLE) | C30: ELBOW (8 1/2" BELOW ARMHOLE) | D30: ELBOW (8 1/2" BELOW ARMHOLE) | E30: ELBOW (8 1/2" BELOW ARMHOLE) | F30: ELBOW (8 1/2" BELOW ARMHOLE) | G30: ELBOW (8 1/2" BELOW ARMHOLE) | H30: ELBOW (8 1/2" BELOW ARMHOLE) | I30: ELBOW (8 1/2" BELOW ARMHOLE) | J30: ELBOW (8 1/2" BELOW ARMHOLE) | K30: ELBOW (8 1/2" BELOW ARMHOLE) | L30: ELBOW (8 1/2" BELOW ARMHOLE) | M30: ELBOW (8 1/2" BELOW ARMHOLE) | N30: ELBOW (8 1/2" BELOW ARMHOLE) | O30: ELBOW (8 1/2" BELOW ARMHOLE) | AG30: 0.25
B31: SHORT SLEEVE OPENING | C31: SHORT SLEEVE OPENING | D31: SHORT SLEEVE OPENING | E31: SHORT SLEEVE OPENING | F31: SHORT SLEEVE OPENING | G31: SHORT SLEEVE OPENING | H31: SHORT SLEEVE OPENING | I31: SHORT SLEEVE OPENING | J31: SHORT SLEEVE OPENING | K31: SHORT SLEEVE OPENING | L31: SHORT SLEEVE OPENING | M31: SHORT SLEEVE OPENING | N31: SHORT SLEEVE OPENING | O31: SHORT SLEEVE OPENING | AG31: 0.25
B32: 3/4 SLEEVE OPENING | C32: 3/4 SLEEVE OPENING | D32: 3/4 SLEEVE OPENING | E32: 3/4 SLEEVE OPENING | F32: 3/4 SLEEVE OPENING | G32: 3/4 SLEEVE OPENING | H32: 3/4 SLEEVE OPENING | I32: 3/4 SLEEVE OPENING | J32: 3/4 SLEEVE OPENING | K32: 3/4 SLEEVE OPENING | L32: 3/4 SLEEVE OPENING | M32: 3/4 SLEEVE OPENING | N32: 3/4 SLEEVE OPENING | O32: 3/4 SLEEVE OPENING | AG32: 0.25
B33: LONG SLEEVE OPENING | C33: LONG SLEEVE OPENING | D33: LONG SLEEVE OPENING | E33: LONG SLEEVE OPENING | F33: LONG SLEEVE OPENING | G33: LONG SLEEVE OPENING | H33: LONG SLEEVE OPENING | I33: LONG SLEEVE OPENING | J33: LONG SLEEVE OPENING | K33: LONG SLEEVE OPENING | L33: LONG SLEEVE OPENING | M33: LONG SLEEVE OPENING | N33: LONG SLEEVE OPENING | O33: LONG SLEEVE OPENING | AG33: 1/4
B34: SLEEVE CAP HEIGHT ( FROM TOP OF SLEEVE TO UNDERARM ) | C34: SLEEVE CAP HEIGHT ( FROM TOP OF SLEEVE TO UNDERARM ) | D34: SLEEVE CAP HEIGHT ( FROM TOP OF SLEEVE TO UNDERARM ) | E34: SLEEVE CAP HEIGHT ( FROM TOP OF SLEEVE TO UNDERARM ) | F34: SLEEVE CAP HEIGHT ( FROM TOP OF SLEEVE TO UNDERARM ) | G34: SLEEVE CAP HEIGHT ( FROM TOP OF SLEEVE TO UNDERARM ) | H34: SLEEVE CAP HEIGHT ( FROM TOP OF SLEEVE TO UNDERARM ) | I34: SLEEVE CAP HEIGHT ( FROM TOP OF SLEEVE TO UNDERARM ) | J34: SLEEVE CAP HEIGHT ( FROM TOP OF SLEEVE TO UNDERARM ) | K34: SLEEVE CAP HEIGHT ( FROM TOP OF SLEEVE TO UNDERARM ) | L34: SLEEVE CAP HEIGHT ( FROM TOP OF SLEEVE TO UNDERARM ) | M34: SLEEVE CAP HEIGHT ( FROM TOP OF SLEEVE TO UNDERARM ) | N34: SLEEVE CAP HEIGHT ( FROM TOP OF SLEEVE TO UNDERARM ) | O34: SLEEVE CAP HEIGHT ( FROM TOP OF SLEEVE TO UNDERARM ) | AG34: 0
B35: SHOULDER SLOPE ( HSP TO SHOULDER ARMHOLE SEAM ) | C35: SHOULDER SLOPE ( HSP TO SHOULDER ARMHOLE SEAM ) | D35: SHOULDER SLOPE ( HSP TO SHOULDER ARMHOLE SEAM ) | E35: SHOULDER SLOPE ( HSP TO SHOULDER ARMHOLE SEAM ) | F35: SHOULDER SLOPE ( HSP TO SHOULDER ARMHOLE SEAM ) | G35: SHOULDER SLOPE ( HSP TO SHOULDER ARMHOLE SEAM ) | H35: SHOULDER SLOPE ( HSP TO SHOULDER ARMHOLE SEAM ) | I35: SHOULDER SLOPE ( HSP TO SHOULDER ARMHOLE SEAM ) | J35: SHOULDER SLOPE ( HSP TO SHOULDER ARMHOLE SEAM ) | K35: SHOULDER SLOPE ( HSP TO SHOULDER ARMHOLE SEAM ) | L35: SHOULDER SLOPE ( HSP TO SHOULDER ARMHOLE SEAM ) | M35: SHOULDER SLOPE ( HSP TO SHOULDER ARMHOLE SEAM ) | N35: SHOULDER SLOPE ( HSP TO SHOULDER ARMHOLE SEAM ) | O35: SHOULDER SLOPE ( HSP TO SHOULDER ARMHOLE SEAM ) | AG35: 0.25
B36: NECK WIDTH (HSP TO HSP) ON BACK | C36: NECK WIDTH (HSP TO HSP) ON BACK | D36: NECK WIDTH (HSP TO HSP) ON BACK | E36: NECK WIDTH (HSP TO HSP) ON BACK | F36: NECK WIDTH (HSP TO HSP) ON BACK | G36: NECK WIDTH (HSP TO HSP) ON BACK | H36: NECK WIDTH (HSP TO HSP) ON BACK | I36: NECK WIDTH (HSP TO HSP) ON BACK | J36: NECK WIDTH (HSP TO HSP) ON BACK | K36: NECK WIDTH (HSP TO HSP) ON BACK | L36: NECK WIDTH (HSP TO HSP) ON BACK | M36: NECK WIDTH (HSP TO HSP) ON BACK | N36: NECK WIDTH (HSP TO HSP) ON BACK | O36: NECK WIDTH (HSP TO HSP) ON BACK | AG36: 0.25
B37: FRONT NECK DROP ( FROM HSP TO CENTER FRONT NECK EDGE OR SEAM ) | C37: FRONT NECK DROP ( FROM HSP TO CENTER FRONT NECK EDGE OR SEAM ) | D37: FRONT NECK DROP ( FROM HSP TO CENTER FRONT NECK EDGE OR SEAM ) | E37: FRONT NECK DROP ( FROM HSP TO CENTER FRONT NECK EDGE OR SEAM ) | F37: FRONT NECK DROP ( FROM HSP TO CENTER FRONT NECK EDGE OR SEAM ) | G37: FRONT NECK DROP ( FROM HSP TO CENTER FRONT NECK EDGE OR SEAM ) | H37: FRONT NECK DROP ( FROM HSP TO CENTER FRONT NECK EDGE OR SEAM ) | I37: FRONT NECK DROP ( FROM HSP TO CENTER FRONT NECK EDGE OR SEAM ) | J37: FRONT NECK DROP ( FROM HSP TO CENTER FRONT NECK EDGE OR SEAM ) | K37: FRONT NECK DROP ( FROM HSP TO CENTER FRONT NECK EDGE OR SEAM ) | L37: FRONT NECK DROP ( FROM HSP TO CENTER FRONT NECK EDGE OR SEAM ) | M37: FRONT NECK DROP ( FROM HSP TO CENTER FRONT NECK EDGE OR SEAM ) | N37: FRONT NECK DROP ( FROM HSP TO CENTER FRONT NECK EDGE OR SEAM ) | O37: FRONT NECK DROP ( FROM HSP TO CENTER FRONT NECK EDGE OR SEAM ) | AG37: 0.25
B38: BACK NECK DROP ( FROM HSP TO CENTER BACK NECK EDGE OR SEAM ) | C38: BACK NECK DROP ( FROM HSP TO CENTER BACK NECK EDGE OR SEAM ) | D38: BACK NECK DROP ( FROM HSP TO CENTER BACK NECK EDGE OR SEAM ) | E38: BACK NECK DROP ( FROM HSP TO CENTER BACK NECK EDGE OR SEAM ) | F38: BACK NECK DROP ( FROM HSP TO CENTER BACK NECK EDGE OR SEAM ) | G38: BACK NECK DROP ( FROM HSP TO CENTER BACK NECK EDGE OR SEAM ) | H38: BACK NECK DROP ( FROM HSP TO CENTER BACK NECK EDGE OR SEAM ) | I38: BACK NECK DROP ( FROM HSP TO CENTER BACK NECK EDGE OR SEAM ) | J38: BACK NECK DROP ( FROM HSP TO CENTER BACK NECK EDGE OR SEAM ) | K38: BACK NECK DROP ( FROM HSP TO CENTER BACK NECK EDGE OR SEAM ) | L38: BACK NECK DROP ( FROM HSP TO CENTER BACK NECK EDGE OR SEAM ) | M38: BACK NECK DROP ( FROM HSP TO CENTER BACK NECK EDGE OR SEAM ) | N38: BACK NECK DROP ( FROM HSP TO CENTER BACK NECK EDGE OR SEAM ) | O38: BACK NECK DROP ( FROM HSP TO CENTER BACK NECK EDGE OR SEAM ) | AG38: 0.25
B39: 1/2 NECK CIRCUMFERENCE | C39: 1/2 NECK CIRCUMFERENCE | D39: 1/2 NECK CIRCUMFERENCE | E39: 1/2 NECK CIRCUMFERENCE | F39: 1/2 NECK CIRCUMFERENCE | G39: 1/2 NECK CIRCUMFERENCE | H39: 1/2 NECK CIRCUMFERENCE | I39: 1/2 NECK CIRCUMFERENCE | J39: 1/2 NECK CIRCUMFERENCE | K39: 1/2 NECK CIRCUMFERENCE | L39: 1/2 NECK CIRCUMFERENCE | M39: 1/2 NECK CIRCUMFERENCE | N39: 1/2 NECK CIRCUMFERENCE | O39: 1/2 NECK CIRCUMFERENCE | AG39: 0
B40: COLLAR DEPTH ( AT C.B. NECK ) | C40: COLLAR DEPTH ( AT C.B. NECK ) | D40: COLLAR DEPTH ( AT C.B. NECK ) | E40: COLLAR DEPTH ( AT C.B. NECK ) | F40: COLLAR DEPTH ( AT C.B. NECK ) | G40: COLLAR DEPTH ( AT C.B. NECK ) | H40: COLLAR DEPTH ( AT C.B. NECK ) | I40: COLLAR DEPTH ( AT C.B. NECK ) | J40: COLLAR DEPTH ( AT C.B. NECK ) | K40: COLLAR DEPTH ( AT C.B. NECK ) | L40: COLLAR DEPTH ( AT C.B. NECK ) | M40: COLLAR DEPTH ( AT C.B. NECK ) | N40: COLLAR DEPTH ( AT C.B. NECK ) | O40: COLLAR DEPTH ( AT C.B. NECK ) | AG40: 0
B41: STAND DEPTH | C41: STAND DEPTH | D41: STAND DEPTH | E41: STAND DEPTH | F41: STAND DEPTH | G41: STAND DEPTH | H41: STAND DEPTH | I41: STAND DEPTH | J41: STAND DEPTH | K41: STAND DEPTH | L41: STAND DEPTH | M41: STAND DEPTH | N41: STAND DEPTH | O41: STAND DEPTH | AG41: 0.25
B42: COLLAR LENGTH | C42: COLLAR LENGTH | D42: COLLAR LENGTH | E42: COLLAR LENGTH | F42: COLLAR LENGTH | G42: COLLAR LENGTH | H42: COLLAR LENGTH | I42: COLLAR LENGTH | J42: COLLAR LENGTH | K42: COLLAR LENGTH | L42: COLLAR LENGTH | M42: COLLAR LENGTH | N42: COLLAR LENGTH | O42: COLLAR LENGTH | AG42: 0
B43: NECK TRIM DEPTH | C43: NECK TRIM DEPTH | D43: NECK TRIM DEPTH | E43: NECK TRIM DEPTH | F43: NECK TRIM DEPTH | G43: NECK TRIM DEPTH | H43: NECK TRIM DEPTH | I43: NECK TRIM DEPTH | J43: NECK TRIM DEPTH | K43: NECK TRIM DEPTH | L43: NECK TRIM DEPTH | M43: NECK TRIM DEPTH | N43: NECK TRIM DEPTH | O43: NECK TRIM DEPTH | AG43: 0
B44: CUFF DEPTH | C44: CUFF DEPTH | D44: CUFF DEPTH | E44: CUFF DEPTH | F44: CUFF DEPTH | G44: CUFF DEPTH | H44: CUFF DEPTH | I44: CUFF DEPTH | J44: CUFF DEPTH | K44: CUFF DEPTH | L44: CUFF DEPTH | M44: CUFF DEPTH | N44: CUFF DEPTH | O44: CUFF DEPTH | AG44: 0
B45: SLEEVE HEM DEPTH | C45: SLEEVE HEM DEPTH | D45: SLEEVE HEM DEPTH | E45: SLEEVE HEM DEPTH | F45: SLEEVE HEM DEPTH | G45: SLEEVE HEM DEPTH | H45: SLEEVE HEM DEPTH | I45: SLEEVE HEM DEPTH | J45: SLEEVE HEM DEPTH | K45: SLEEVE HEM DEPTH | L45: SLEEVE HEM DEPTH | M45: SLEEVE HEM DEPTH | N45: SLEEVE HEM DEPTH | O45: SLEEVE HEM DEPTH | AG45: 0
B46: BOTTOM HEM DEPTH | C46: BOTTOM HEM DEPTH | D46: BOTTOM HEM DEPTH | E46: BOTTOM HEM DEPTH | F46: BOTTOM HEM DEPTH | G46: BOTTOM HEM DEPTH | H46: BOTTOM HEM DEPTH | I46: BOTTOM HEM DEPTH | J46: BOTTOM HEM DEPTH | K46: BOTTOM HEM DEPTH | L46: BOTTOM HEM DEPTH | M46: BOTTOM HEM DEPTH | N46: BOTTOM HEM DEPTH | O46: BOTTOM HEM DEPTH | AG46: 0.375
B47: HSP TO BUST POINT | C47: HSP TO BUST POINT | D47: HSP TO BUST POINT | E47: HSP TO BUST POINT | F47: HSP TO BUST POINT | G47: HSP TO BUST POINT | H47: HSP TO BUST POINT | I47: HSP TO BUST POINT | J47: HSP TO BUST POINT | K47: HSP TO BUST POINT | L47: HSP TO BUST POINT | M47: HSP TO BUST POINT | N47: HSP TO BUST POINT | O47: HSP TO BUST POINT
B52: Sample Approved?
B53: If sample is NOT approved, then submit 4th Fit Sample. If sample is APPROVED, then submit Pre-Production Samples.

Sheet 3rd Fit Photo Comments (hidden)
L2: Create Date: | Q2: ='ORIGINAL PHOTO'!Q2:W2 -> MARCH 15/2017
L3: Vendor Name: | Q3: ='ORIGINAL PHOTO'!Q3:AI3 -> 0
L4: Vndr.Item No.: | Q4: ='ORIGINAL PHOTO'!Q4:W4 -> 0 | AA4: GC Item No.: | AE4: ='ORIGINAL PHOTO'!AE4:AI4 -> 0
L5: Size Range: | Q5: ='ORIGINAL PHOTO'!Q5:W5 -> S-M-L-XL | AA5: Season: | AD5: ='ORIGINAL PHOTO'!AD5:AI5 -> Spring Summer 2018
L6: Description: | Q6: ='ORIGINAL PHOTO'!Q6:AI6 -> MEN'S LONG SLEEVE ZIP FRONT SCOOP HEM HOODIE WITH LINED HOOD
B8: 3RD FIT PHOTO COMMENTS-- COAT | T8: Date: | AN8: L
AN9: LXL
AN10: M
AN11: S
AN12: SM
AN13: XL
AN14: XXL
AN15: XXXL

Sheet Grade XS-S-M-L-XL (hidden)
L2: Create Date: | Q2: ='ORIGINAL PHOTO'!Q2:W2 -> MARCH 15/2017
L3: Vendor Name: | Q3: ='ORIGINAL PHOTO'!Q3:AI3 -> 0
L4: Vndr.Item No.: | Q4: ='ORIGINAL PHOTO'!Q4:W4 -> 0 | AA4: GC Item No.: | AE4: ='ORIGINAL PHOTO'!AE4:AI4 -> 0
L5: Size Range: | Q5: ='ORIGINAL PHOTO'!Q5:W5 -> S-M-L-XL | AA5: Season: | AD5: ='ORIGINAL PHOTO'!AD5:AI5 -> Spring Summer 2018
L6: Description: | Q6: ='ORIGINAL PHOTO'!Q6:AI6 -> MEN'S LONG SLEEVE ZIP FRONT SCOOP HEM HOODIE WITH LINED HOOD
B8: GRADE SHEET -- COAT | T8: Date: | AN8: L
B9: (Measurements on flat / inches) | P9: XS | T9: S | X9: M | AB9: L | AD9: XL | AG9: Tolerance + / - (on flat) | AN9: LXL
AN10: M
B11: BACK LENGTH FROM (HIGH SHOULDER POINT) | C11: BACK LENGTH FROM (HIGH SHOULDER POINT) | D11: BACK LENGTH FROM (HIGH SHOULDER POINT) | E11: BACK LENGTH FROM (HIGH SHOULDER POINT) | F11: BACK LENGTH FROM (HIGH SHOULDER POINT) | G11: BACK LENGTH FROM (HIGH SHOULDER POINT) | H11: BACK LENGTH FROM (HIGH SHOULDER POINT) | I11: BACK LENGTH FROM (HIGH SHOULDER POINT) | J11: BACK LENGTH FROM (HIGH SHOULDER POINT) | K11: BACK LENGTH FROM (HIGH SHOULDER POINT) | L11: BACK LENGTH FROM (HIGH SHOULDER POINT) | M11: BACK LENGTH FROM (HIGH SHOULDER POINT) | N11: BACK LENGTH FROM (HIGH SHOULDER POINT) | O11: BACK LENGTH FROM (HIGH SHOULDER POINT) | P11: =X11-1/2 -> -0.5 | T11: =X11-1/4 -> -0.25 | X11: 0 | AB11: =X11+0.375 -> 0.375 | AD11: =X11+0.75 -> 0.75 | AG11: 0.375 | AN11: S
B12: CENTER BACK LENGTH ( FROM NECK TO HEM ) | C12: CENTER BACK LENGTH ( FROM NECK TO HEM ) | D12: CENTER BACK LENGTH ( FROM NECK TO HEM ) | E12: CENTER BACK LENGTH ( FROM NECK TO HEM ) | F12: CENTER BACK LENGTH ( FROM NECK TO HEM ) | G12: CENTER BACK LENGTH ( FROM NECK TO HEM ) | H12: CENTER BACK LENGTH ( FROM NECK TO HEM ) | I12: CENTER BACK LENGTH ( FROM NECK TO HEM ) | J12: CENTER BACK LENGTH ( FROM NECK TO HEM ) | K12: CENTER BACK LENGTH ( FROM NECK TO HEM ) | L12: CENTER BACK LENGTH ( FROM NECK TO HEM ) | M12: CENTER BACK LENGTH ( FROM NECK TO HEM ) | N12: CENTER BACK LENGTH ( FROM NECK TO HEM ) | O12: CENTER BACK LENGTH ( FROM NECK TO HEM ) | X12: 0 | AG12: 0.375 | AN12: SM
B13: FRONT LENGTH FROM (HIGH SHOULDER POINT) | C13: FRONT LENGTH FROM (HIGH SHOULDER POINT) | D13: FRONT LENGTH FROM (HIGH SHOULDER POINT) | E13: FRONT LENGTH FROM (HIGH SHOULDER POINT) | F13: FRONT LENGTH FROM (HIGH SHOULDER POINT) | G13: FRONT LENGTH FROM (HIGH SHOULDER POINT) | H13: FRONT LENGTH FROM (HIGH SHOULDER POINT) | I13: FRONT LENGTH FROM (HIGH SHOULDER POINT) | J13: FRONT LENGTH FROM (HIGH SHOULDER POINT) | K13: FRONT LENGTH FROM (HIGH SHOULDER POINT) | L13: FRONT LENGTH FROM (HIGH SHOULDER POINT) | M13: FRONT LENGTH FROM (HIGH SHOULDER POINT) | N13: FRONT LENGTH FROM (HIGH SHOULDER POINT) | O13: FRONT LENGTH FROM (HIGH SHOULDER POINT) | P13: =X13-0.5 -> -0.5 | T13: =X13-1/4 -> -0.25 | X13: 0 | AB13: =X13+0.375 -> 0.375 | AD13: =X13+0.75 -> 0.75 | AG13: 0.375 | AN13: XL
B14: FRONT LENGTH (FROM CENTRE FRONT NECK TO HEM) | C14: FRONT LENGTH (FROM CENTRE FRONT NECK TO HEM) | D14: FRONT LENGTH (FROM CENTRE FRONT NECK TO HEM) | E14: FRONT LENGTH (FROM CENTRE FRONT NECK TO HEM) | F14: FRONT LENGTH (FROM CENTRE FRONT NECK TO HEM) | G14: FRONT LENGTH (FROM CENTRE FRONT NECK TO HEM) | H14: FRONT LENGTH (FROM CENTRE FRONT NECK TO HEM) | I14: FRONT LENGTH (FROM CENTRE FRONT NECK TO HEM) | J14: FRONT LENGTH (FROM CENTRE FRONT NECK TO HEM) | K14: FRONT LENGTH (FROM CENTRE FRONT NECK TO HEM) | L14: FRONT LENGTH (FROM CENTRE FRONT NECK TO HEM) | M14: FRONT LENGTH (FROM CENTRE FRONT NECK TO HEM) | N14: FRONT LENGTH (FROM CENTRE FRONT NECK TO HEM) | O14: FRONT LENGTH (FROM CENTRE FRONT NECK TO HEM) | X14: 0 | AG14: 0.375 | AN14: XXL
B15: CHEST (1" BELOW ARMHOLE) | C15: CHEST (1" BELOW ARMHOLE) | D15: CHEST (1" BELOW ARMHOLE) | E15: CHEST (1" BELOW ARMHOLE) | F15: CHEST (1" BELOW ARMHOLE) | G15: CHEST (1" BELOW ARMHOLE) | H15: CHEST (1" BELOW ARMHOLE) | I15: CHEST (1" BELOW ARMHOLE) | J15: CHEST (1" BELOW ARMHOLE) | K15: CHEST (1" BELOW ARMHOLE) | L15: CHEST (1" BELOW ARMHOLE) | M15: CHEST (1" BELOW ARMHOLE) | N15: CHEST (1" BELOW ARMHOLE) | O15: CHEST (1" BELOW ARMHOLE) | P15: =X15-2 -> -2 | T15: =X15-1 -> -1 | X15: 0 | AB15: =X15+1.5 -> 1.5 | AD15: =X15+3 -> 3 | AG15: 0.375 | AN15: XXXL
B16: WAIST (16 1/2" BELOW HIGH SHOULDER POINT) | C16: WAIST (16 1/2" BELOW HIGH SHOULDER POINT) | D16: WAIST (16 1/2" BELOW HIGH SHOULDER POINT) | E16: WAIST (16 1/2" BELOW HIGH SHOULDER POINT) | F16: WAIST (16 1/2" BELOW HIGH SHOULDER POINT) | G16: WAIST (16 1/2" BELOW HIGH SHOULDER POINT) | H16: WAIST (16 1/2" BELOW HIGH SHOULDER POINT) | I16: WAIST (16 1/2" BELOW HIGH SHOULDER POINT) | J16: WAIST (16 1/2" BELOW HIGH SHOULDER POINT) | K16: WAIST (16 1/2" BELOW HIGH SHOULDER POINT) | L16: WAIST (16 1/2" BELOW HIGH SHOULDER POINT) | M16: WAIST (16 1/2" BELOW HIGH SHOULDER POINT) | N16: WAIST (16 1/2" BELOW HIGH SHOULDER POINT) | O16: WAIST (16 1/2" BELOW HIGH SHOULDER POINT) | P16: =X16-2 -> -2 | T16: -1 | X16: 0 | AB16: 1.5 | AD16: 3 | AG16: 0.375
B17: TOP HIP ( 3" BELOW WAIST ) | C17: TOP HIP ( 3" BELOW WAIST ) | D17: TOP HIP ( 3" BELOW WAIST ) | E17: TOP HIP ( 3" BELOW WAIST ) | F17: TOP HIP ( 3" BELOW WAIST ) | G17: TOP HIP ( 3" BELOW WAIST ) | H17: TOP HIP ( 3" BELOW WAIST ) | I17: TOP HIP ( 3" BELOW WAIST ) | J17: TOP HIP ( 3" BELOW WAIST ) | K17: TOP HIP ( 3" BELOW WAIST ) | L17: TOP HIP ( 3" BELOW WAIST ) | M17: TOP HIP ( 3" BELOW WAIST ) | N17: TOP HIP ( 3" BELOW WAIST ) | O17: TOP HIP ( 3" BELOW WAIST ) | P17: =X17-2 -> -2 | T17: -1 | X17: 0 | AB17: 1.5 | AD17: 3 | AG17: 0.375
B18: LOW HIP ( 8" BELOW WAIST) | C18: LOW HIP ( 8" BELOW WAIST) | D18: LOW HIP ( 8" BELOW WAIST) | E18: LOW HIP ( 8" BELOW WAIST) | F18: LOW HIP ( 8" BELOW WAIST) | G18: LOW HIP ( 8" BELOW WAIST) | H18: LOW HIP ( 8" BELOW WAIST) | I18: LOW HIP ( 8" BELOW WAIST) | J18: LOW HIP ( 8" BELOW WAIST) | K18: LOW HIP ( 8" BELOW WAIST) | L18: LOW HIP ( 8" BELOW WAIST) | M18: LOW HIP ( 8" BELOW WAIST) | N18: LOW HIP ( 8" BELOW WAIST) | O18: LOW HIP ( 8" BELOW WAIST) | P18: =X18-2 -> -2 | T18: -1 | X18: 0 | AB18: 1.5 | AD18: 3 | AG18: 0.375
B19: HEM STRAIGHT | C19: HEM STRAIGHT | D19: HEM STRAIGHT | E19: HEM STRAIGHT | F19: HEM STRAIGHT | G19: HEM STRAIGHT | H19: HEM STRAIGHT | I19: HEM STRAIGHT | J19: HEM STRAIGHT | K19: HEM STRAIGHT | L19: HEM STRAIGHT | M19: HEM STRAIGHT | N19: HEM STRAIGHT | O19: HEM STRAIGHT | P19: =X10-2 -> -2 | T19: -1 | X19: 0 | AB19: 1.5 | AD19: 3 | AG19: 0.375
B20: HEM CURVE (FOLLOW) | C20: HEM CURVE (FOLLOW) | D20: HEM CURVE (FOLLOW) | E20: HEM CURVE (FOLLOW) | F20: HEM CURVE (FOLLOW) | G20: HEM CURVE (FOLLOW) | H20: HEM CURVE (FOLLOW) | I20: HEM CURVE (FOLLOW) | J20: HEM CURVE (FOLLOW) | K20: HEM CURVE (FOLLOW) | L20: HEM CURVE (FOLLOW) | M20: HEM CURVE (FOLLOW) | N20: HEM CURVE (FOLLOW) | O20: HEM CURVE (FOLLOW) | P20: =X20-2 -> -2 | T20: -1 | X20: 0 | AB20: 1.5 | AD20: 3 | AG20: 0.375
B21: ACROSS SHOULDERS ( TOTAL ) | C21: ACROSS SHOULDERS ( TOTAL ) | D21: ACROSS SHOULDERS ( TOTAL ) | E21: ACROSS SHOULDERS ( TOTAL ) | F21: ACROSS SHOULDERS ( TOTAL ) | G21: ACROSS SHOULDERS ( TOTAL ) | H21: ACROSS SHOULDERS ( TOTAL ) | I21: ACROSS SHOULDERS ( TOTAL ) | J21: ACROSS SHOULDERS ( TOTAL ) | K21: ACROSS SHOULDERS ( TOTAL ) | L21: ACROSS SHOULDERS ( TOTAL ) | M21: ACROSS SHOULDERS ( TOTAL ) | N21: ACROSS SHOULDERS ( TOTAL ) | O21: ACROSS SHOULDERS ( TOTAL ) | P21: =X21-1 -> -1 | T21: =X21-0.5 -> -0.5 | X21: 0 | AB21: =X21+0.75 -> 0.75 | AD21: =X21+1.5 -> 1.5 | AG21: 0.375
B22: SHOULDER LENGTH AT SEAM | C22: SHOULDER LENGTH AT SEAM | D22: SHOULDER LENGTH AT SEAM | E22: SHOULDER LENGTH AT SEAM | F22: SHOULDER LENGTH AT SEAM | G22: SHOULDER LENGTH AT SEAM | H22: SHOULDER LENGTH AT SEAM | I22: SHOULDER LENGTH AT SEAM | J22: SHOULDER LENGTH AT SEAM | K22: SHOULDER LENGTH AT SEAM | L22: SHOULDER LENGTH AT SEAM | M22: SHOULDER LENGTH AT SEAM | N22: SHOULDER LENGTH AT SEAM | O22: SHOULDER LENGTH AT SEAM | X22: 0 | AG22: 0.375
B23: ACROSS FRONT (5" BELOW HIGH SHOULDER POINT) | C23: ACROSS FRONT (5" BELOW HIGH SHOULDER POINT) | D23: ACROSS FRONT (5" BELOW HIGH SHOULDER POINT) | E23: ACROSS FRONT (5" BELOW HIGH SHOULDER POINT) | F23: ACROSS FRONT (5" BELOW HIGH SHOULDER POINT) | G23: ACROSS FRONT (5" BELOW HIGH SHOULDER POINT) | H23: ACROSS FRONT (5" BELOW HIGH SHOULDER POINT) | I23: ACROSS FRONT (5" BELOW HIGH SHOULDER POINT) | J23: ACROSS FRONT (5" BELOW HIGH SHOULDER POINT) | K23: ACROSS FRONT (5" BELOW HIGH SHOULDER POINT) | L23: ACROSS FRONT (5" BELOW HIGH SHOULDER POINT) | M23: ACROSS FRONT (5" BELOW HIGH SHOULDER POINT) | N23: ACROSS FRONT (5" BELOW HIGH SHOULDER POINT) | O23: ACROSS FRONT (5" BELOW HIGH SHOULDER POINT) | P23: =X23-1 -> -1 | T23: =X23-0.5 -> -0.5 | X23: 0 | AB23: =X23+0.75 -> 0.75 | AD23: =X23+1.5 -> 1.5 | AG23: 0.375
B24: ACROSS BACK (5" BELOW HIGH SHOULDER POINT) | C24: ACROSS BACK (5" BELOW HIGH SHOULDER POINT) | D24: ACROSS BACK (5" BELOW HIGH SHOULDER POINT) | E24: ACROSS BACK (5" BELOW HIGH SHOULDER POINT) | F24: ACROSS BACK (5" BELOW HIGH SHOULDER POINT) | G24: ACROSS BACK (5" BELOW HIGH SHOULDER POINT) | H24: ACROSS BACK (5" BELOW HIGH SHOULDER POINT) | I24: ACROSS BACK (5" BELOW HIGH SHOULDER POINT) | J24: ACROSS BACK (5" BELOW HIGH SHOULDER POINT) | K24: ACROSS BACK (5" BELOW HIGH SHOULDER POINT) | L24: ACROSS BACK (5" BELOW HIGH SHOULDER POINT) | M24: ACROSS BACK (5" BELOW HIGH SHOULDER POINT) | N24: ACROSS BACK (5" BELOW HIGH SHOULDER POINT) | O24: ACROSS BACK (5" BELOW HIGH SHOULDER POINT) | P24: =X24-1 -> -1 | T24: =X24-0.5 -> -0.5 | X24: 0 | AB24: =X24+0.75 -> 0.75 | AD24: =X24+1.5 -> 1.5 | AG24: 0.25
B25: OVERARM (FROM SLEEVE CAP TO HEM)-SHORT SLEEVE | C25: OVERARM (FROM SLEEVE CAP TO HEM)-SHORT SLEEVE | D25: OVERARM (FROM SLEEVE CAP TO HEM)-SHORT SLEEVE | E25: OVERARM (FROM SLEEVE CAP TO HEM)-SHORT SLEEVE | F25: OVERARM (FROM SLEEVE CAP TO HEM)-SHORT SLEEVE | G25: OVERARM (FROM SLEEVE CAP TO HEM)-SHORT SLEEVE | H25: OVERARM (FROM SLEEVE CAP TO HEM)-SHORT SLEEVE | I25: OVERARM (FROM SLEEVE CAP TO HEM)-SHORT SLEEVE | J25: OVERARM (FROM SLEEVE CAP TO HEM)-SHORT SLEEVE | K25: OVERARM (FROM SLEEVE CAP TO HEM)-SHORT SLEEVE | L25: OVERARM (FROM SLEEVE CAP TO HEM)-SHORT SLEEVE | M25: OVERARM (FROM SLEEVE CAP TO HEM)-SHORT SLEEVE | N25: OVERARM (FROM SLEEVE CAP TO HEM)-SHORT SLEEVE | O25: OVERARM (FROM SLEEVE CAP TO HEM)-SHORT SLEEVE | P25: =X25-0.25 -> -0.25 | T25: =X25-0.125 -> -0.125 | X25: 0 | AB25: =X25+0.25 -> 0.25 | AD25: =X25+0.5 -> 0.5 | AG25: 0.25
B26: OVERARM (FROM SLEEVE CAP TO HEM)- 3/4 SLEEVE | C26: OVERARM (FROM SLEEVE CAP TO HEM)- 3/4 SLEEVE | D26: OVERARM (FROM SLEEVE CAP TO HEM)- 3/4 SLEEVE | E26: OVERARM (FROM SLEEVE CAP TO HEM)- 3/4 SLEEVE | F26: OVERARM (FROM SLEEVE CAP TO HEM)- 3/4 SLEEVE | G26: OVERARM (FROM SLEEVE CAP TO HEM)- 3/4 SLEEVE | H26: OVERARM (FROM SLEEVE CAP TO HEM)- 3/4 SLEEVE | I26: OVERARM (FROM SLEEVE CAP TO HEM)- 3/4 SLEEVE | J26: OVERARM (FROM SLEEVE CAP TO HEM)- 3/4 SLEEVE | K26: OVERARM (FROM SLEEVE CAP TO HEM)- 3/4 SLEEVE | L26: OVERARM (FROM SLEEVE CAP TO HEM)- 3/4 SLEEVE | M26: OVERARM (FROM SLEEVE CAP TO HEM)- 3/4 SLEEVE | N26: OVERARM (FROM SLEEVE CAP TO HEM)- 3/4 SLEEVE | O26: OVERARM (FROM SLEEVE CAP TO HEM)- 3/4 SLEEVE | P26: =X26-0.25 -> -0.25 | T26: =X26-0.125 -> -0.125 | X26: 0 | AB26: =X26+0.25 -> 0.25 | AD26: =X26+0.5 -> 0.5 | AG26: 0.375
B27: OVERARM (FROM SLEEVE CAP TO HEM)- LONG SLEEVE | C27: OVERARM (FROM SLEEVE CAP TO HEM)- LONG SLEEVE | D27: OVERARM (FROM SLEEVE CAP TO HEM)- LONG SLEEVE | E27: OVERARM (FROM SLEEVE CAP TO HEM)- LONG SLEEVE | F27: OVERARM (FROM SLEEVE CAP TO HEM)- LONG SLEEVE | G27: OVERARM (FROM SLEEVE CAP TO HEM)- LONG SLEEVE | H27: OVERARM (FROM SLEEVE CAP TO HEM)- LONG SLEEVE | I27: OVERARM (FROM SLEEVE CAP TO HEM)- LONG SLEEVE | J27: OVERARM (FROM SLEEVE CAP TO HEM)- LONG SLEEVE | K27: OVERARM (FROM SLEEVE CAP TO HEM)- LONG SLEEVE | L27: OVERARM (FROM SLEEVE CAP TO HEM)- LONG SLEEVE | M27: OVERARM (FROM SLEEVE CAP TO HEM)- LONG SLEEVE | N27: OVERARM (FROM SLEEVE CAP TO HEM)- LONG SLEEVE | O27: OVERARM (FROM SLEEVE CAP TO HEM)- LONG SLEEVE | P27: =X27-0.75 -> -0.75 | T27: =X27-0.375 -> -0.375 | X27: 0 | AB27: =X27+0.625 -> 0.625 | AD27: =X27+1.25 -> 1.25 | AG27: 0.25
B28: 1/2 ARMHOLE STRAIGHT | C28: 1/2 ARMHOLE STRAIGHT | D28: 1/2 ARMHOLE STRAIGHT | E28: 1/2 ARMHOLE STRAIGHT | F28: 1/2 ARMHOLE STRAIGHT | G28: 1/2 ARMHOLE STRAIGHT | H28: 1/2 ARMHOLE STRAIGHT | I28: 1/2 ARMHOLE STRAIGHT | J28: 1/2 ARMHOLE STRAIGHT | K28: 1/2 ARMHOLE STRAIGHT | L28: 1/2 ARMHOLE STRAIGHT | M28: 1/2 ARMHOLE STRAIGHT | N28: 1/2 ARMHOLE STRAIGHT | O28: 1/2 ARMHOLE STRAIGHT | P28: =X28-0.5 -> -0.5 | T28: =X28-0.25 -> -0.25 | X28: 0 | AB28: =X28+0.5 -> 0.5 | AD28: =X28+1 -> 1 | AG28: 0.25
B29: BICEP (1" BELOW ARMHOLE) | C29: BICEP (1" BELOW ARMHOLE) | D29: BICEP (1" BELOW ARMHOLE) | E29: BICEP (1" BELOW ARMHOLE) | F29: BICEP (1" BELOW ARMHOLE) | G29: BICEP (1" BELOW ARMHOLE) | H29: BICEP (1" BELOW ARMHOLE) | I29: BICEP (1" BELOW ARMHOLE) | J29: BICEP (1" BELOW ARMHOLE) | K29: BICEP (1" BELOW ARMHOLE) | L29: BICEP (1" BELOW ARMHOLE) | M29: BICEP (1" BELOW ARMHOLE) | N29: BICEP (1" BELOW ARMHOLE) | O29: BICEP (1" BELOW ARMHOLE) | X29: 0 | AG29: 0.25
B30: ELBOW (8 1/2" BELOW ARMHOLE) | C30: ELBOW (8 1/2" BELOW ARMHOLE) | D30: ELBOW (8 1/2" BELOW ARMHOLE) | E30: ELBOW (8 1/2" BELOW ARMHOLE) | F30: ELBOW (8 1/2" BELOW ARMHOLE) | G30: ELBOW (8 1/2" BELOW ARMHOLE) | H30: ELBOW (8 1/2" BELOW ARMHOLE) | I30: ELBOW (8 1/2" BELOW ARMHOLE) | J30: ELBOW (8 1/2" BELOW ARMHOLE) | K30: ELBOW (8 1/2" BELOW ARMHOLE) | L30: ELBOW (8 1/2" BELOW ARMHOLE) | M30: ELBOW (8 1/2" BELOW ARMHOLE) | N30: ELBOW (8 1/2" BELOW ARMHOLE) | O30: ELBOW (8 1/2" BELOW ARMHOLE) | P30: =X30-0.5 -> -0.5 | T30: =X30-0.25 -> -0.25 | X30: 0 | AB30: =X30+0.5 -> 0.5 | AD30: =X30+1 -> 1 | AG30: 0.25
B31: SHORT SLEEVE OPENING | C31: SHORT SLEEVE OPENING | D31: SHORT SLEEVE OPENING | E31: SHORT SLEEVE OPENING | F31: SHORT SLEEVE OPENING | G31: SHORT SLEEVE OPENING | H31: SHORT SLEEVE OPENING | I31: SHORT SLEEVE OPENING | J31: SHORT SLEEVE OPENING | K31: SHORT SLEEVE OPENING | L31: SHORT SLEEVE OPENING | M31: SHORT SLEEVE OPENING | N31: SHORT SLEEVE OPENING | O31: SHORT SLEEVE OPENING | X31: 0 | AG31: 0.25
B32: 3/4 SLEEVE OPENING | C32: 3/4 SLEEVE OPENING | D32: 3/4 SLEEVE OPENING | E32: 3/4 SLEEVE OPENING | F32: 3/4 SLEEVE OPENING | G32: 3/4 SLEEVE OPENING | H32: 3/4 SLEEVE OPENING | I32: 3/4 SLEEVE OPENING | J32: 3/4 SLEEVE OPENING | K32: 3/4 SLEEVE OPENING | L32: 3/4 SLEEVE OPENING | M32: 3/4 SLEEVE OPENING | N32: 3/4 SLEEVE OPENING | O32: 3/4 SLEEVE OPENING | P32: =X32-0.25 -> -0.25 | T32: =X32-0.125 -> -0.125 | X32: 0 | AB32: =X32+0.25 -> 0.25 | AD32: =X32+0.5 -> 0.5 | AG32: 0.25
B33: LONG SLEEVE OPENING | C33: LONG SLEEVE OPENING | D33: LONG SLEEVE OPENING | E33: LONG SLEEVE OPENING | F33: LONG SLEEVE OPENING | G33: LONG SLEEVE OPENING | H33: LONG SLEEVE OPENING | I33: LONG SLEEVE OPENING | J33: LONG SLEEVE OPENING | K33: LONG SLEEVE OPENING | L33: LONG SLEEVE OPENING | M33: LONG SLEEVE OPENING | N33: LONG SLEEVE OPENING | O33: LONG SLEEVE OPENING | P33: =X33-0.25 -> -0.25 | T33: =X33-0.125 -> -0.125 | X33: 0 | AB33: =X33+0.25 -> 0.25 | AD33: =X33+0.5 -> 0.5 | AG33: 1/4
B34: SLEEVE CAP HEIGHT ( FROM TOP OF SLEEVE TO UNDERARM ) | C34: SLEEVE CAP HEIGHT ( FROM TOP OF SLEEVE TO UNDERARM ) | D34: SLEEVE CAP HEIGHT ( FROM TOP OF SLEEVE TO UNDERARM ) | E34: SLEEVE CAP HEIGHT ( FROM TOP OF SLEEVE TO UNDERARM ) | F34: SLEEVE CAP HEIGHT ( FROM TOP OF SLEEVE TO UNDERARM ) | G34: SLEEVE CAP HEIGHT ( FROM TOP OF SLEEVE TO UNDERARM ) | H34: SLEEVE CAP HEIGHT ( FROM TOP OF SLEEVE TO UNDERARM ) | I34: SLEEVE CAP HEIGHT ( FROM TOP OF SLEEVE TO UNDERARM ) | J34: SLEEVE CAP HEIGHT ( FROM TOP OF SLEEVE TO UNDERARM ) | K34: SLEEVE CAP HEIGHT ( FROM TOP OF SLEEVE TO UNDERARM ) | L34: SLEEVE CAP HEIGHT ( FROM TOP OF SLEEVE TO UNDERARM ) | M34: SLEEVE CAP HEIGHT ( FROM TOP OF SLEEVE TO UNDERARM ) | N34: SLEEVE CAP HEIGHT ( FROM TOP OF SLEEVE TO UNDERARM ) | O34: SLEEVE CAP HEIGHT ( FROM TOP OF SLEEVE TO UNDERARM ) | P34: =X34-0.25 -> -0.25 | T34: =X34-0.125 -> -0.125 | X34: 0 | AB34: =X34+0.25 -> 0.25 | AD34: =X34+0.5 -> 0.5 | AG34: 0
B35: SHOULDER SLOPE ( HSP TO SHOULDER ARMHOLE SEAM ) | C35: SHOULDER SLOPE ( HSP TO SHOULDER ARMHOLE SEAM ) | D35: SHOULDER SLOPE ( HSP TO SHOULDER ARMHOLE SEAM ) | E35: SHOULDER SLOPE ( HSP TO SHOULDER ARMHOLE SEAM ) | F35: SHOULDER SLOPE ( HSP TO SHOULDER ARMHOLE SEAM ) | G35: SHOULDER SLOPE ( HSP TO SHOULDER ARMHOLE SEAM ) | H35: SHOULDER SLOPE ( HSP TO SHOULDER ARMHOLE SEAM ) | I35: SHOULDER SLOPE ( HSP TO SHOULDER ARMHOLE SEAM ) | J35: SHOULDER SLOPE ( HSP TO SHOULDER ARMHOLE SEAM ) | K35: SHOULDER SLOPE ( HSP TO SHOULDER ARMHOLE SEAM ) | L35: SHOULDER SLOPE ( HSP TO SHOULDER ARMHOLE SEAM ) | M35: SHOULDER SLOPE ( HSP TO SHOULDER ARMHOLE SEAM ) | N35: SHOULDER SLOPE ( HSP TO SHOULDER ARMHOLE SEAM ) | O35: SHOULDER SLOPE ( HSP TO SHOULDER ARMHOLE SEAM ) | P35: =X35-0 -> 0 | T35: =X35-0 -> 0 | X35: 0 | AB35: =X35+0 -> 0 | AD35: =X35+0 -> 0 | AG35: 0
B36: NECK WIDTH (HSP TO HSP) ON BACK | C36: NECK WIDTH (HSP TO HSP) ON BACK | D36: NECK WIDTH (HSP TO HSP) ON BACK | E36: NECK WIDTH (HSP TO HSP) ON BACK | F36: NECK WIDTH (HSP TO HSP) ON BACK | G36: NECK WIDTH (HSP TO HSP) ON BACK | H36: NECK WIDTH (HSP TO HSP) ON BACK | I36: NECK WIDTH (HSP TO HSP) ON BACK | J36: NECK WIDTH (HSP TO HSP) ON BACK | K36: NECK WIDTH (HSP TO HSP) ON BACK | L36: NECK WIDTH (HSP TO HSP) ON BACK | M36: NECK WIDTH (HSP TO HSP) ON BACK | N36: NECK WIDTH (HSP TO HSP) ON BACK | O36: NECK WIDTH (HSP TO HSP) ON BACK | P36: =X36-0.5 -> -0.5 | T36: =X36-0.25 -> -0.25 | X36: 0 | AB36: =X36+0.375 -> 0.375 | AD36: =X36+0.75 -> 0.75 | AG36: 0.25
B37: FRONT NECK DROP ( FROM HSP TO CENTER FRONT NECK EDGE OR SEAM ) | C37: FRONT NECK DROP ( FROM HSP TO CENTER FRONT NECK EDGE OR SEAM ) | D37: FRONT NECK DROP ( FROM HSP TO CENTER FRONT NECK EDGE OR SEAM ) | E37: FRONT NECK DROP ( FROM HSP TO CENTER FRONT NECK EDGE OR SEAM ) | F37: FRONT NECK DROP ( FROM HSP TO CENTER FRONT NECK EDGE OR SEAM ) | G37: FRONT NECK DROP ( FROM HSP TO CENTER FRONT NECK EDGE OR SEAM ) | H37: FRONT NECK DROP ( FROM HSP TO CENTER FRONT NECK EDGE OR SEAM ) | I37: FRONT NECK DROP ( FROM HSP TO CENTER FRONT NECK EDGE OR SEAM ) | J37: FRONT NECK DROP ( FROM HSP TO CENTER FRONT NECK EDGE OR SEAM ) | K37: FRONT NECK DROP ( FROM HSP TO CENTER FRONT NECK EDGE OR SEAM ) | L37: FRONT NECK DROP ( FROM HSP TO CENTER FRONT NECK EDGE OR SEAM ) | M37: FRONT NECK DROP ( FROM HSP TO CENTER FRONT NECK EDGE OR SEAM ) | N37: FRONT NECK DROP ( FROM HSP TO CENTER FRONT NECK EDGE OR SEAM ) | O37: FRONT NECK DROP ( FROM HSP TO CENTER FRONT NECK EDGE OR SEAM ) | P37: =X37-0.25 -> -0.25 | T37: =X37-0.125 -> -0.125 | X37: 0 | AB37: =X37+0.25 -> 0.25 | AD37: =X37+0.5 -> 0.5 | AG37: 0.25
B38: BACK NECK DROP ( FROM HSP TO CENTER BACK NECK EDGE OR SEAM ) | C38: BACK NECK DROP ( FROM HSP TO CENTER BACK NECK EDGE OR SEAM ) | D38: BACK NECK DROP ( FROM HSP TO CENTER BACK NECK EDGE OR SEAM ) | E38: BACK NECK DROP ( FROM HSP TO CENTER BACK NECK EDGE OR SEAM ) | F38: BACK NECK DROP ( FROM HSP TO CENTER BACK NECK EDGE OR SEAM ) | G38: BACK NECK DROP ( FROM HSP TO CENTER BACK NECK EDGE OR SEAM ) | H38: BACK NECK DROP ( FROM HSP TO CENTER BACK NECK EDGE OR SEAM ) | I38: BACK NECK DROP ( FROM HSP TO CENTER BACK NECK EDGE OR SEAM ) | J38: BACK NECK DROP ( FROM HSP TO CENTER BACK NECK EDGE OR SEAM ) | K38: BACK NECK DROP ( FROM HSP TO CENTER BACK NECK EDGE OR SEAM ) | L38: BACK NECK DROP ( FROM HSP TO CENTER BACK NECK EDGE OR SEAM ) | M38: BACK NECK DROP ( FROM HSP TO CENTER BACK NECK EDGE OR SEAM ) | N38: BACK NECK DROP ( FROM HSP TO CENTER BACK NECK EDGE OR SEAM ) | O38: BACK NECK DROP ( FROM HSP TO CENTER BACK NECK EDGE OR SEAM ) | X38: 0 | AG38: 0.25
B39: 1/2 NECK CIRCUMFERENCE | C39: 1/2 NECK CIRCUMFERENCE | D39: 1/2 NECK CIRCUMFERENCE | E39: 1/2 NECK CIRCUMFERENCE | F39: 1/2 NECK CIRCUMFERENCE | G39: 1/2 NECK CIRCUMFERENCE | H39: 1/2 NECK CIRCUMFERENCE | I39: 1/2 NECK CIRCUMFERENCE | J39: 1/2 NECK CIRCUMFERENCE | K39: 1/2 NECK CIRCUMFERENCE | L39: 1/2 NECK CIRCUMFERENCE | M39: 1/2 NECK CIRCUMFERENCE | N39: 1/2 NECK CIRCUMFERENCE | O39: 1/2 NECK CIRCUMFERENCE | P39: =X39-0 -> 0 | T39: =X39-0 -> 0 | X39: 0 | AB39: =X39+0 -> 0 | AD39: =X39+0 -> 0 | AG39: 0.25
B40: COLLAR DEPTH ( AT C.B. NECK ) | C40: COLLAR DEPTH ( AT C.B. NECK ) | D40: COLLAR DEPTH ( AT C.B. NECK ) | E40: COLLAR DEPTH ( AT C.B. NECK ) | F40: COLLAR DEPTH ( AT C.B. NECK ) | G40: COLLAR DEPTH ( AT C.B. NECK ) | H40: COLLAR DEPTH ( AT C.B. NECK ) | I40: COLLAR DEPTH ( AT C.B. NECK ) | J40: COLLAR DEPTH ( AT C.B. NECK ) | K40: COLLAR DEPTH ( AT C.B. NECK ) | L40: COLLAR DEPTH ( AT C.B. NECK ) | M40: COLLAR DEPTH ( AT C.B. NECK ) | N40: COLLAR DEPTH ( AT C.B. NECK ) | O40: COLLAR DEPTH ( AT C.B. NECK ) | P40: =X40-0 -> 0 | T40: =X40-0 -> 0 | X40: 0 | AB40: =X40+0 -> 0 | AD40: =X40+0 -> 0 | AG40: 0
B41: STAND DEPTH | C41: STAND DEPTH | D41: STAND DEPTH | E41: STAND DEPTH | F41: STAND DEPTH | G41: STAND DEPTH | H41: STAND DEPTH | I41: STAND DEPTH | J41: STAND DEPTH | K41: STAND DEPTH | L41: STAND DEPTH | M41: STAND DEPTH | N41: STAND DEPTH | O41: STAND DEPTH | X41: 0 | AG41: 0
B42: COLLAR LENGTH | C42: COLLAR LENGTH | D42: COLLAR LENGTH | E42: COLLAR LENGTH | F42: COLLAR LENGTH | G42: COLLAR LENGTH | H42: COLLAR LENGTH | I42: COLLAR LENGTH | J42: COLLAR LENGTH | K42: COLLAR LENGTH | L42: COLLAR LENGTH | M42: COLLAR LENGTH | N42: COLLAR LENGTH | O42: COLLAR LENGTH | P42: =X42-0 -> 0 | T42: =X42-0 -> 0 | X42: 0 | AB42: =X42+0 -> 0 | AD42: =X42+0 -> 0 | AG42: 0.25
B43: NECK TRIM DEPTH | C43: NECK TRIM DEPTH | D43: NECK TRIM DEPTH | E43: NECK TRIM DEPTH | F43: NECK TRIM DEPTH | G43: NECK TRIM DEPTH | H43: NECK TRIM DEPTH | I43: NECK TRIM DEPTH | J43: NECK TRIM DEPTH | K43: NECK TRIM DEPTH | L43: NECK TRIM DEPTH | M43: NECK TRIM DEPTH | N43: NECK TRIM DEPTH | O43: NECK TRIM DEPTH | P43: =X43-0 -> 0 | T43: =X43-0 -> 0 | X43: 0 | AB43: =X43+0 -> 0 | AD43: =X43+0 -> 0 | AG43: 0
B44: CUFF DEPTH | C44: CUFF DEPTH | D44: CUFF DEPTH | E44: CUFF DEPTH | F44: CUFF DEPTH | G44: CUFF DEPTH | H44: CUFF DEPTH | I44: CUFF DEPTH | J44: CUFF DEPTH | K44: CUFF DEPTH | L44: CUFF DEPTH | M44: CUFF DEPTH | N44: CUFF DEPTH | O44: CUFF DEPTH | P44: =X44-0 -> 0 | T44: =X44-0 -> 0 | X44: 0 | AB44: =X44+0 -> 0 | AD44: =X44+0 -> 0 | AG44: 0
B45: SLEEVE HEM DEPTH | C45: SLEEVE HEM DEPTH | D45: SLEEVE HEM DEPTH | E45: SLEEVE HEM DEPTH | F45: SLEEVE HEM DEPTH | G45: SLEEVE HEM DEPTH | H45: SLEEVE HEM DEPTH | I45: SLEEVE HEM DEPTH | J45: SLEEVE HEM DEPTH | K45: SLEEVE HEM DEPTH | L45: SLEEVE HEM DEPTH | M45: SLEEVE HEM DEPTH | N45: SLEEVE HEM DEPTH | O45: SLEEVE HEM DEPTH | P45: =X45-0 -> 0 | T45: =X45-0 -> 0 | X45: 0 | AB45: =X45+0 -> 0 | AD45: =X45+0 -> 0 | AG45: 0
B46: BOTTOM HEM DEPTH | C46: BOTTOM HEM DEPTH | D46: BOTTOM HEM DEPTH | E46: BOTTOM HEM DEPTH | F46: BOTTOM HEM DEPTH | G46: BOTTOM HEM DEPTH | H46: BOTTOM HEM DEPTH | I46: BOTTOM HEM DEPTH | J46: BOTTOM HEM DEPTH | K46: BOTTOM HEM DEPTH | L46: BOTTOM HEM DEPTH | M46: BOTTOM HEM DEPTH | N46: BOTTOM HEM DEPTH | O46: BOTTOM HEM DEPTH | P46: =X46-0 -> 0 | T46: =X46-0 -> 0 | X46: 0 | AB46: =X46+0 -> 0 | AD46: =X46+0 -> 0 | AG46: 0
B47: HSP TO BUST POINT | C47: HSP TO BUST POINT | D47: HSP TO BUST POINT | E47: HSP TO BUST POINT | F47: HSP TO BUST POINT | G47: HSP TO BUST POINT | H47: HSP TO BUST POINT | I47: HSP TO BUST POINT | J47: HSP TO BUST POINT | K47: HSP TO BUST POINT | L47: HSP TO BUST POINT | M47: HSP TO BUST POINT | N47: HSP TO BUST POINT | O47: HSP TO BUST POINT | X47: 0 | AG47: 0
P48: =X48-0.75 -> -0.75 | T48: =X48-0.375 -> -0.375 | X48: 0 | AB48: =X48+0.375 -> 0.375 | AD48: =X48+0.75 -> 0.75
P49: =X49-0.75 -> -0.75 | T49: =X49-0.375 -> -0.375 | X49: 0 | AB49: =X49+0.375 -> 0.375 | AD49: =X49+0.75 -> 0.75
P50: =X50-0.5 -> -0.5 | T50: =X50-0.25 -> -0.25 | X50: 0 | AB50: =X50+0.25 -> 0.25 | AD50: =X50+0.5 -> 0.5
P51: =X51-1.25 -> -1.25 | T51: =X51-0.625 -> -0.625 | X51: 0 | AB51: =X51+0.625 -> 0.625 | AD51: =X51+1.25 -> 1.25
B52: Sample Approved?
B53: If sample is NOT approved, then submit 2nd Pre-Production Samples. If sample is APPROVED, then submit Production Samples.

Sheet Labels (hidden)
L2: Create Date: | Q2: ='ORIGINAL PHOTO'!Q2:W2 -> MARCH 15/2017
L3: Vendor Name: | Q3: ='ORIGINAL PHOTO'!Q3:AI3 -> 0
L4: Vndr.Item No.: | Q4: ='ORIGINAL PHOTO'!Q4:W4 -> 0 | AA4: GC Item No.: | AE4: ='ORIGINAL PHOTO'!AE4:AI4 -> 0
L5: Size Range: | Q5: ='ORIGINAL PHOTO'!Q5:W5 -> S-M-L-XL | AA5: Season: | AD5: ='ORIGINAL PHOTO'!AD5:AI5 -> Spring Summer 2018
L6: Description: | Q6: ='ORIGINAL PHOTO'!Q6:AI6 -> MEN'S LONG SLEEVE ZIP FRONT SCOOP HEM HOODIE WITH LINED HOOD
B8: LABELS | T8: Date: | AN8: L
AN9: LXL
AN10: M
AN11: S
AN12: SM
AN13: XL
AN14: XXL
AN15: XXXL

Sheet Grade S-M-L-XL (hidden)
L2: Create Date: | Q2: ='ORIGINAL PHOTO'!Q2:W2 -> MARCH 15/2017
L3: Vendor Name: | Q3: ='ORIGINAL PHOTO'!Q3:AI3 -> 0
L4: Vndr.Item No.: | Q4: ='ORIGINAL PHOTO'!Q4:W4 -> 0 | AA4: GC Item No.: | AE4: ='ORIGINAL PHOTO'!AE4:AI4 -> 0
L5: Size Range: | Q5: ='ORIGINAL PHOTO'!Q5:W5 -> S-M-L-XL | AA5: Season: | AD5: ='ORIGINAL PHOTO'!AD5:AI5 -> Spring Summer 2018
L6: Description: | Q6: ='ORIGINAL PHOTO'!Q6:AI6 -> MEN'S LONG SLEEVE ZIP FRONT SCOOP HEM HOODIE WITH LINED HOOD
B8: GRADE SHEET -- MEN'S TOP | T8: Date: | AN8: L
B9: (Measurements on flat / inches) | P9: S | T9: M | X9: L | AB9: XL | AG9: Tolerance + / - (on flat) | AN9: LXL
AN10: M
B11: BACK LENGTH FROM HSP | AN11: S
B12: FRONT LENGTH FROM HSP | AN12: SM
B13: ACROSS FRONT AT MID ARMHOLE | AN13: XL
B14: ACROSS BACK AT MID ARMHOLE | AN14: XXL
B15: ACROSS SHOULDER | AN15: XXXL
B16: SHOULDER SLOPE DROP
B17: BODY WIDTH OPTIONS
B18: CHEST - 1" BELOW ARMHOLE
B19: SWEEP ( HEM STRAIGHT)
B20: SWEEP HEM HEIGHT
B21: SHORT SLEEVE OPTIONS
B22: SLEEVE LENGTH FROM C.B. NECK
B23: SLEEVE LENGTH ( SHOULDER SLEEVE SEAM TO HEM)
B24: ARMHOLE STRAIGHT
B25: BICEP - 1" BELOW ARMHOLE
B26: SLEEVE OPENING
B27: SLEEVE CAP HEIGHT
B28: SLEEVE HEM HEIGHT
B29: NECK OPTIONS
B30: FRONT NECK DROP FROM HSP TO NECK SEAM
B31: BACK NECK DROP FROM HSP TO NECK SEAM
B32: BACK NECK WIDTH - SEAM TO SEAM
B33: NECK TRIM HEIGHT
B34: NECK STRETCH ( MINIMUM EXTENDED ) 12 OR 24 FULL
B36: LOGO SIZE
B37: LOGO PLACEMENT
B39: FRONT SIDE SLIT LENGTH
B40: BACK SIDE SLIT LENGTH
B52: Sample Approved?
B53: If sample is NOT approved, then submit 2nd Pre-Production Samples. If sample is APPROVED, then submit Production Samples.

Sheet Grade SM - LXL (hidden)
L2: Create Date: | Q2: ='ORIGINAL PHOTO'!Q2:W2 -> MARCH 15/2017
L3: Vendor Name: | Q3: ='ORIGINAL PHOTO'!Q3:AI3 -> 0
L4: Vndr.Item No.: | Q4: ='ORIGINAL PHOTO'!Q4:W4 -> 0 | AA4: GC Item No.: | AE4: ='ORIGINAL PHOTO'!AE4:AI4 -> 0
L5: Size Range: | Q5: ='ORIGINAL PHOTO'!Q5:W5 -> S-M-L-XL | AA5: Season: | AD5: ='ORIGINAL PHOTO'!AD5:AI5 -> Spring Summer 2018
L6: Description: | Q6: ='ORIGINAL PHOTO'!Q6:AI6 -> MEN'S LONG SLEEVE ZIP FRONT SCOOP HEM HOODIE WITH LINED HOOD
B8: GRADE SHEET -- COAT | T8: Date: | AN8: L
B9: (Measurements on flat / inches) | T9: SM | X9: LXL | AG9: Tolerance + / - (on flat) | AN9: LXL
AN10: M
B11: BACK LENGTH FROM (HIGH SHOULDER POINT) | C11: BACK LENGTH FROM (HIGH SHOULDER POINT) | D11: BACK LENGTH FROM (HIGH SHOULDER POINT) | E11: BACK LENGTH FROM (HIGH SHOULDER POINT) | F11: BACK LENGTH FROM (HIGH SHOULDER POINT) | G11: BACK LENGTH FROM (HIGH SHOULDER POINT) | H11: BACK LENGTH FROM (HIGH SHOULDER POINT) | I11: BACK LENGTH FROM (HIGH SHOULDER POINT) | J11: BACK LENGTH FROM (HIGH SHOULDER POINT) | K11: BACK LENGTH FROM (HIGH SHOULDER POINT) | L11: BACK LENGTH FROM (HIGH SHOULDER POINT) | M11: BACK LENGTH FROM (HIGH SHOULDER POINT) | N11: BACK LENGTH FROM (HIGH SHOULDER POINT) | O11: BACK LENGTH FROM (HIGH SHOULDER POINT) | T11: 0 | X11: =T11+0.625 -> 0.625 | AG11: 0.375 | AN11: S
B12: CENTER BACK LENGTH ( FROM NECK TO HEM ) | C12: CENTER BACK LENGTH ( FROM NECK TO HEM ) | D12: CENTER BACK LENGTH ( FROM NECK TO HEM ) | E12: CENTER BACK LENGTH ( FROM NECK TO HEM ) | F12: CENTER BACK LENGTH ( FROM NECK TO HEM ) | G12: CENTER BACK LENGTH ( FROM NECK TO HEM ) | H12: CENTER BACK LENGTH ( FROM NECK TO HEM ) | I12: CENTER BACK LENGTH ( FROM NECK TO HEM ) | J12: CENTER BACK LENGTH ( FROM NECK TO HEM ) | K12: CENTER BACK LENGTH ( FROM NECK TO HEM ) | L12: CENTER BACK LENGTH ( FROM NECK TO HEM ) | M12: CENTER BACK LENGTH ( FROM NECK TO HEM ) | N12: CENTER BACK LENGTH ( FROM NECK TO HEM ) | O12: CENTER BACK LENGTH ( FROM NECK TO HEM ) | T12: 0 | AG12: 0.375 | AN12: SM
B13: FRONT LENGTH FROM (HIGH SHOULDER POINT) | C13: FRONT LENGTH FROM (HIGH SHOULDER POINT) | D13: FRONT LENGTH FROM (HIGH SHOULDER POINT) | E13: FRONT LENGTH FROM (HIGH SHOULDER POINT) | F13: FRONT LENGTH FROM (HIGH SHOULDER POINT) | G13: FRONT LENGTH FROM (HIGH SHOULDER POINT) | H13: FRONT LENGTH FROM (HIGH SHOULDER POINT) | I13: FRONT LENGTH FROM (HIGH SHOULDER POINT) | J13: FRONT LENGTH FROM (HIGH SHOULDER POINT) | K13: FRONT LENGTH FROM (HIGH SHOULDER POINT) | L13: FRONT LENGTH FROM (HIGH SHOULDER POINT) | M13: FRONT LENGTH FROM (HIGH SHOULDER POINT) | N13: FRONT LENGTH FROM (HIGH SHOULDER POINT) | O13: FRONT LENGTH FROM (HIGH SHOULDER POINT) | T13: 0 | X13: =T13+0.625 -> 0.625 | AG13: 0.375 | AN13: XL
B14: FRONT LENGTH (FROM CENTRE FRONT NECK TO HEM) | C14: FRONT LENGTH (FROM CENTRE FRONT NECK TO HEM) | D14: FRONT LENGTH (FROM CENTRE FRONT NECK TO HEM) | E14: FRONT LENGTH (FROM CENTRE FRONT NECK TO HEM) | F14: FRONT LENGTH (FROM CENTRE FRONT NECK TO HEM) | G14: FRONT LENGTH (FROM CENTRE FRONT NECK TO HEM) | H14: FRONT LENGTH (FROM CENTRE FRONT NECK TO HEM) | I14: FRONT LENGTH (FROM CENTRE FRONT NECK TO HEM) | J14: FRONT LENGTH (FROM CENTRE FRONT NECK TO HEM) | K14: FRONT LENGTH (FROM CENTRE FRONT NECK TO HEM) | L14: FRONT LENGTH (FROM CENTRE FRONT NECK TO HEM) | M14: FRONT LENGTH (FROM CENTRE FRONT NECK TO HEM) | N14: FRONT LENGTH (FROM CENTRE FRONT NECK TO HEM) | O14: FRONT LENGTH (FROM CENTRE FRONT NECK TO HEM) | T14: 0 | AG14: 0.375 | AN14: XXL
B15: CHEST (1" BELOW ARMHOLE) | C15: CHEST (1" BELOW ARMHOLE) | D15: CHEST (1" BELOW ARMHOLE) | E15: CHEST (1" BELOW ARMHOLE) | F15: CHEST (1" BELOW ARMHOLE) | G15: CHEST (1" BELOW ARMHOLE) | H15: CHEST (1" BELOW ARMHOLE) | I15: CHEST (1" BELOW ARMHOLE) | J15: CHEST (1" BELOW ARMHOLE) | K15: CHEST (1" BELOW ARMHOLE) | L15: CHEST (1" BELOW ARMHOLE) | M15: CHEST (1" BELOW ARMHOLE) | N15: CHEST (1" BELOW ARMHOLE) | O15: CHEST (1" BELOW ARMHOLE) | T15: 0 | X15: =T15+2.5 -> 2.5 | AG15: 0.375 | AN15: XXXL
B16: WAIST (16 1/2" BELOW HIGH SHOULDER POINT) | C16: WAIST (16 1/2" BELOW HIGH SHOULDER POINT) | D16: WAIST (16 1/2" BELOW HIGH SHOULDER POINT) | E16: WAIST (16 1/2" BELOW HIGH SHOULDER POINT) | F16: WAIST (16 1/2" BELOW HIGH SHOULDER POINT) | G16: WAIST (16 1/2" BELOW HIGH SHOULDER POINT) | H16: WAIST (16 1/2" BELOW HIGH SHOULDER POINT) | I16: WAIST (16 1/2" BELOW HIGH SHOULDER POINT) | J16: WAIST (16 1/2" BELOW HIGH SHOULDER POINT) | K16: WAIST (16 1/2" BELOW HIGH SHOULDER POINT) | L16: WAIST (16 1/2" BELOW HIGH SHOULDER POINT) | M16: WAIST (16 1/2" BELOW HIGH SHOULDER POINT) | N16: WAIST (16 1/2" BELOW HIGH SHOULDER POINT) | O16: WAIST (16 1/2" BELOW HIGH SHOULDER POINT) | T16: 0 | X16: =T16+2.5 -> 2.5 | AG16: 0.375
B17: TOP HIP ( 3" BELOW WAIST ) | C17: TOP HIP ( 3" BELOW WAIST ) | D17: TOP HIP ( 3" BELOW WAIST ) | E17: TOP HIP ( 3" BELOW WAIST ) | F17: TOP HIP ( 3" BELOW WAIST ) | G17: TOP HIP ( 3" BELOW WAIST ) | H17: TOP HIP ( 3" BELOW WAIST ) | I17: TOP HIP ( 3" BELOW WAIST ) | J17: TOP HIP ( 3" BELOW WAIST ) | K17: TOP HIP ( 3" BELOW WAIST ) | L17: TOP HIP ( 3" BELOW WAIST ) | M17: TOP HIP ( 3" BELOW WAIST ) | N17: TOP HIP ( 3" BELOW WAIST ) | O17: TOP HIP ( 3" BELOW WAIST ) | T17: 0 | X17: =T17+2.5 -> 2.5 | AG17: 0.375
B18: LOW HIP ( 8" BELOW WAIST) | C18: LOW HIP ( 8" BELOW WAIST) | D18: LOW HIP ( 8" BELOW WAIST) | E18: LOW HIP ( 8" BELOW WAIST) | F18: LOW HIP ( 8" BELOW WAIST) | G18: LOW HIP ( 8" BELOW WAIST) | H18: LOW HIP ( 8" BELOW WAIST) | I18: LOW HIP ( 8" BELOW WAIST) | J18: LOW HIP ( 8" BELOW WAIST) | K18: LOW HIP ( 8" BELOW WAIST) | L18: LOW HIP ( 8" BELOW WAIST) | M18: LOW HIP ( 8" BELOW WAIST) | N18: LOW HIP ( 8" BELOW WAIST) | O18: LOW HIP ( 8" BELOW WAIST) | T18: 0 | X18: =T18+2.5 -> 2.5 | AG18: 0.375
B19: HEM STRAIGHT | C19: HEM STRAIGHT | D19: HEM STRAIGHT | E19: HEM STRAIGHT | F19: HEM STRAIGHT | G19: HEM STRAIGHT | H19: HEM STRAIGHT | I19: HEM STRAIGHT | J19: HEM STRAIGHT | K19: HEM STRAIGHT | L19: HEM STRAIGHT | M19: HEM STRAIGHT | N19: HEM STRAIGHT | O19: HEM STRAIGHT | T19: 0 | X19: =T19+2.5 -> 2.5 | AG19: 0.375
B20: HEM CURVE (FOLLOW) | C20: HEM CURVE (FOLLOW) | D20: HEM CURVE (FOLLOW) | E20: HEM CURVE (FOLLOW) | F20: HEM CURVE (FOLLOW) | G20: HEM CURVE (FOLLOW) | H20: HEM CURVE (FOLLOW) | I20: HEM CURVE (FOLLOW) | J20: HEM CURVE (FOLLOW) | K20: HEM CURVE (FOLLOW) | L20: HEM CURVE (FOLLOW) | M20: HEM CURVE (FOLLOW) | N20: HEM CURVE (FOLLOW) | O20: HEM CURVE (FOLLOW) | T20: 0 | AG20: 0.375
B21: ACROSS SHOULDERS ( TOTAL ) | C21: ACROSS SHOULDERS ( TOTAL ) | D21: ACROSS SHOULDERS ( TOTAL ) | E21: ACROSS SHOULDERS ( TOTAL ) | F21: ACROSS SHOULDERS ( TOTAL ) | G21: ACROSS SHOULDERS ( TOTAL ) | H21: ACROSS SHOULDERS ( TOTAL ) | I21: ACROSS SHOULDERS ( TOTAL ) | J21: ACROSS SHOULDERS ( TOTAL ) | K21: ACROSS SHOULDERS ( TOTAL ) | L21: ACROSS SHOULDERS ( TOTAL ) | M21: ACROSS SHOULDERS ( TOTAL ) | N21: ACROSS SHOULDERS ( TOTAL ) | O21: ACROSS SHOULDERS ( TOTAL ) | T21: 0 | X21: =T21+1.25 -> 1.25 | AG21: 0.375
B22: SHOULDER LENGTH AT SEAM | C22: SHOULDER LENGTH AT SEAM | D22: SHOULDER LENGTH AT SEAM | E22: SHOULDER LENGTH AT SEAM | F22: SHOULDER LENGTH AT SEAM | G22: SHOULDER LENGTH AT SEAM | H22: SHOULDER LENGTH AT SEAM | I22: SHOULDER LENGTH AT SEAM | J22: SHOULDER LENGTH AT SEAM | K22: SHOULDER LENGTH AT SEAM | L22: SHOULDER LENGTH AT SEAM | M22: SHOULDER LENGTH AT SEAM | N22: SHOULDER LENGTH AT SEAM | O22: SHOULDER LENGTH AT SEAM | T22: 0 | AG22: 0.375
B23: ACROSS FRONT (5" BELOW HIGH SHOULDER POINT) | C23: ACROSS FRONT (5" BELOW HIGH SHOULDER POINT) | D23: ACROSS FRONT (5" BELOW HIGH SHOULDER POINT) | E23: ACROSS FRONT (5" BELOW HIGH SHOULDER POINT) | F23: ACROSS FRONT (5" BELOW HIGH SHOULDER POINT) | G23: ACROSS FRONT (5" BELOW HIGH SHOULDER POINT) | H23: ACROSS FRONT (5" BELOW HIGH SHOULDER POINT) | I23: ACROSS FRONT (5" BELOW HIGH SHOULDER POINT) | J23: ACROSS FRONT (5" BELOW HIGH SHOULDER POINT) | K23: ACROSS FRONT (5" BELOW HIGH SHOULDER POINT) | L23: ACROSS FRONT (5" BELOW HIGH SHOULDER POINT) | M23: ACROSS FRONT (5" BELOW HIGH SHOULDER POINT) | N23: ACROSS FRONT (5" BELOW HIGH SHOULDER POINT) | O23: ACROSS FRONT (5" BELOW HIGH SHOULDER POINT) | T23: 0 | X23: =T23+1.25 -> 1.25 | AG23: 0.375
B24: ACROSS BACK (5" BELOW HIGH SHOULDER POINT) | C24: ACROSS BACK (5" BELOW HIGH SHOULDER POINT) | D24: ACROSS BACK (5" BELOW HIGH SHOULDER POINT) | E24: ACROSS BACK (5" BELOW HIGH SHOULDER POINT) | F24: ACROSS BACK (5" BELOW HIGH SHOULDER POINT) | G24: ACROSS BACK (5" BELOW HIGH SHOULDER POINT) | H24: ACROSS BACK (5" BELOW HIGH SHOULDER POINT) | I24: ACROSS BACK (5" BELOW HIGH SHOULDER POINT) | J24: ACROSS BACK (5" BELOW HIGH SHOULDER POINT) | K24: ACROSS BACK (5" BELOW HIGH SHOULDER POINT) | L24: ACROSS BACK (5" BELOW HIGH SHOULDER POINT) | M24: ACROSS BACK (5" BELOW HIGH SHOULDER POINT) | N24: ACROSS BACK (5" BELOW HIGH SHOULDER POINT) | O24: ACROSS BACK (5" BELOW HIGH SHOULDER POINT) | T24: 0 | X24: =T24+1.25 -> 1.25 | AG24: 0.375
B25: OVERARM (FROM SLEEVE CAP TO HEM)-SHORT SLEEVE | C25: OVERARM (FROM SLEEVE CAP TO HEM)-SHORT SLEEVE | D25: OVERARM (FROM SLEEVE CAP TO HEM)-SHORT SLEEVE | E25: OVERARM (FROM SLEEVE CAP TO HEM)-SHORT SLEEVE | F25: OVERARM (FROM SLEEVE CAP TO HEM)-SHORT SLEEVE | G25: OVERARM (FROM SLEEVE CAP TO HEM)-SHORT SLEEVE | H25: OVERARM (FROM SLEEVE CAP TO HEM)-SHORT SLEEVE | I25: OVERARM (FROM SLEEVE CAP TO HEM)-SHORT SLEEVE | J25: OVERARM (FROM SLEEVE CAP TO HEM)-SHORT SLEEVE | K25: OVERARM (FROM SLEEVE CAP TO HEM)-SHORT SLEEVE | L25: OVERARM (FROM SLEEVE CAP TO HEM)-SHORT SLEEVE | M25: OVERARM (FROM SLEEVE CAP TO HEM)-SHORT SLEEVE | N25: OVERARM (FROM SLEEVE CAP TO HEM)-SHORT SLEEVE | O25: OVERARM (FROM SLEEVE CAP TO HEM)-SHORT SLEEVE | T25: 0 | X25: =T25+0.375 -> 0.375 | AG25: 0.25
B26: OVERARM (FROM SLEEVE CAP TO HEM)- 3/4 SLEEVE | C26: OVERARM (FROM SLEEVE CAP TO HEM)- 3/4 SLEEVE | D26: OVERARM (FROM SLEEVE CAP TO HEM)- 3/4 SLEEVE | E26: OVERARM (FROM SLEEVE CAP TO HEM)- 3/4 SLEEVE | F26: OVERARM (FROM SLEEVE CAP TO HEM)- 3/4 SLEEVE | G26: OVERARM (FROM SLEEVE CAP TO HEM)- 3/4 SLEEVE | H26: OVERARM (FROM SLEEVE CAP TO HEM)- 3/4 SLEEVE | I26: OVERARM (FROM SLEEVE CAP TO HEM)- 3/4 SLEEVE | J26: OVERARM (FROM SLEEVE CAP TO HEM)- 3/4 SLEEVE | K26: OVERARM (FROM SLEEVE CAP TO HEM)- 3/4 SLEEVE | L26: OVERARM (FROM SLEEVE CAP TO HEM)- 3/4 SLEEVE | M26: OVERARM (FROM SLEEVE CAP TO HEM)- 3/4 SLEEVE | N26: OVERARM (FROM SLEEVE CAP TO HEM)- 3/4 SLEEVE | O26: OVERARM (FROM SLEEVE CAP TO HEM)- 3/4 SLEEVE | T26: 0 | X26: =T26+0.375 -> 0.375 | AG26: 0.25
B27: OVERARM (FROM SLEEVE CAP TO HEM)- LONG SLEEVE | C27: OVERARM (FROM SLEEVE CAP TO HEM)- LONG SLEEVE | D27: OVERARM (FROM SLEEVE CAP TO HEM)- LONG SLEEVE | E27: OVERARM (FROM SLEEVE CAP TO HEM)- LONG SLEEVE | F27: OVERARM (FROM SLEEVE CAP TO HEM)- LONG SLEEVE | G27: OVERARM (FROM SLEEVE CAP TO HEM)- LONG SLEEVE | H27: OVERARM (FROM SLEEVE CAP TO HEM)- LONG SLEEVE | I27: OVERARM (FROM SLEEVE CAP TO HEM)- LONG SLEEVE | J27: OVERARM (FROM SLEEVE CAP TO HEM)- LONG SLEEVE | K27: OVERARM (FROM SLEEVE CAP TO HEM)- LONG SLEEVE | L27: OVERARM (FROM SLEEVE CAP TO HEM)- LONG SLEEVE | M27: OVERARM (FROM SLEEVE CAP TO HEM)- LONG SLEEVE | N27: OVERARM (FROM SLEEVE CAP TO HEM)- LONG SLEEVE | O27: OVERARM (FROM SLEEVE CAP TO HEM)- LONG SLEEVE | T27: 0 | X27: =T27+0.375 -> 0.375 | AG27: 0.375
B28: 1/2 ARMHOLE STRAIGHT | C28: 1/2 ARMHOLE STRAIGHT | D28: 1/2 ARMHOLE STRAIGHT | E28: 1/2 ARMHOLE STRAIGHT | F28: 1/2 ARMHOLE STRAIGHT | G28: 1/2 ARMHOLE STRAIGHT | H28: 1/2 ARMHOLE STRAIGHT | I28: 1/2 ARMHOLE STRAIGHT | J28: 1/2 ARMHOLE STRAIGHT | K28: 1/2 ARMHOLE STRAIGHT | L28: 1/2 ARMHOLE STRAIGHT | M28: 1/2 ARMHOLE STRAIGHT | N28: 1/2 ARMHOLE STRAIGHT | O28: 1/2 ARMHOLE STRAIGHT | T28: 0 | X28: =T28+1 -> 1 | AG28: 0.25
B29: BICEP (1" BELOW ARMHOLE) | C29: BICEP (1" BELOW ARMHOLE) | D29: BICEP (1" BELOW ARMHOLE) | E29: BICEP (1" BELOW ARMHOLE) | F29: BICEP (1" BELOW ARMHOLE) | G29: BICEP (1" BELOW ARMHOLE) | H29: BICEP (1" BELOW ARMHOLE) | I29: BICEP (1" BELOW ARMHOLE) | J29: BICEP (1" BELOW ARMHOLE) | K29: BICEP (1" BELOW ARMHOLE) | L29: BICEP (1" BELOW ARMHOLE) | M29: BICEP (1" BELOW ARMHOLE) | N29: BICEP (1" BELOW ARMHOLE) | O29: BICEP (1" BELOW ARMHOLE) | T29: 0 | X29: =T29+0.75 -> 0.75 | AG29: 0.25
B30: ELBOW (8 1/2" BELOW ARMHOLE) | C30: ELBOW (8 1/2" BELOW ARMHOLE) | D30: ELBOW (8 1/2" BELOW ARMHOLE) | E30: ELBOW (8 1/2" BELOW ARMHOLE) | F30: ELBOW (8 1/2" BELOW ARMHOLE) | G30: ELBOW (8 1/2" BELOW ARMHOLE) | H30: ELBOW (8 1/2" BELOW ARMHOLE) | I30: ELBOW (8 1/2" BELOW ARMHOLE) | J30: ELBOW (8 1/2" BELOW ARMHOLE) | K30: ELBOW (8 1/2" BELOW ARMHOLE) | L30: ELBOW (8 1/2" BELOW ARMHOLE) | M30: ELBOW (8 1/2" BELOW ARMHOLE) | N30: ELBOW (8 1/2" BELOW ARMHOLE) | O30: ELBOW (8 1/2" BELOW ARMHOLE) | T30: 0 | X30: =T30+0.625 -> 0.625 | AG30: 0.25
B31: SHORT SLEEVE OPENING | C31: SHORT SLEEVE OPENING | D31: SHORT SLEEVE OPENING | E31: SHORT SLEEVE OPENING | F31: SHORT SLEEVE OPENING | G31: SHORT SLEEVE OPENING | H31: SHORT SLEEVE OPENING | I31: SHORT SLEEVE OPENING | J31: SHORT SLEEVE OPENING | K31: SHORT SLEEVE OPENING | L31: SHORT SLEEVE OPENING | M31: SHORT SLEEVE OPENING | N31: SHORT SLEEVE OPENING | O31: SHORT SLEEVE OPENING | T31: 0 | X31: =T31+0.75 -> 0.75 | AG31: 0.25
B32: 3/4 SLEEVE OPENING | C32: 3/4 SLEEVE OPENING | D32: 3/4 SLEEVE OPENING | E32: 3/4 SLEEVE OPENING | F32: 3/4 SLEEVE OPENING | G32: 3/4 SLEEVE OPENING | H32: 3/4 SLEEVE OPENING | I32: 3/4 SLEEVE OPENING | J32: 3/4 SLEEVE OPENING | K32: 3/4 SLEEVE OPENING | L32: 3/4 SLEEVE OPENING | M32: 3/4 SLEEVE OPENING | N32: 3/4 SLEEVE OPENING | O32: 3/4 SLEEVE OPENING | T32: 0 | X32: =T32+0.5 -> 0.5 | AG32: 0.25
B33: LONG SLEEVE OPENING | C33: LONG SLEEVE OPENING | D33: LONG SLEEVE OPENING | E33: LONG SLEEVE OPENING | F33: LONG SLEEVE OPENING | G33: LONG SLEEVE OPENING | H33: LONG SLEEVE OPENING | I33: LONG SLEEVE OPENING | J33: LONG SLEEVE OPENING | K33: LONG SLEEVE OPENING | L33: LONG SLEEVE OPENING | M33: LONG SLEEVE OPENING | N33: LONG SLEEVE OPENING | O33: LONG SLEEVE OPENING | T33: 0 | X33: =T33+0.375 -> 0.375 | AG33: 1/4
B34: SLEEVE CAP HEIGHT ( FROM TOP OF SLEEVE TO UNDERARM ) | C34: SLEEVE CAP HEIGHT ( FROM TOP OF SLEEVE TO UNDERARM ) | D34: SLEEVE CAP HEIGHT ( FROM TOP OF SLEEVE TO UNDERARM ) | E34: SLEEVE CAP HEIGHT ( FROM TOP OF SLEEVE TO UNDERARM ) | F34: SLEEVE CAP HEIGHT ( FROM TOP OF SLEEVE TO UNDERARM ) | G34: SLEEVE CAP HEIGHT ( FROM TOP OF SLEEVE TO UNDERARM ) | H34: SLEEVE CAP HEIGHT ( FROM TOP OF SLEEVE TO UNDERARM ) | I34: SLEEVE CAP HEIGHT ( FROM TOP OF SLEEVE TO UNDERARM ) | J34: SLEEVE CAP HEIGHT ( FROM TOP OF SLEEVE TO UNDERARM ) | K34: SLEEVE CAP HEIGHT ( FROM TOP OF SLEEVE TO UNDERARM ) | L34: SLEEVE CAP HEIGHT ( FROM TOP OF SLEEVE TO UNDERARM ) | M34: SLEEVE CAP HEIGHT ( FROM TOP OF SLEEVE TO UNDERARM ) | N34: SLEEVE CAP HEIGHT ( FROM TOP OF SLEEVE TO UNDERARM ) | O34: SLEEVE CAP HEIGHT ( FROM TOP OF SLEEVE TO UNDERARM ) | T34: 0 | X34: =T34+0.375 -> 0.375 | AG34: 0
B35: SHOULDER SLOPE ( HSP TO SHOULDER ARMHOLE SEAM ) | C35: SHOULDER SLOPE ( HSP TO SHOULDER ARMHOLE SEAM ) | D35: SHOULDER SLOPE ( HSP TO SHOULDER ARMHOLE SEAM ) | E35: SHOULDER SLOPE ( HSP TO SHOULDER ARMHOLE SEAM ) | F35: SHOULDER SLOPE ( HSP TO SHOULDER ARMHOLE SEAM ) | G35: SHOULDER SLOPE ( HSP TO SHOULDER ARMHOLE SEAM ) | H35: SHOULDER SLOPE ( HSP TO SHOULDER ARMHOLE SEAM ) | I35: SHOULDER SLOPE ( HSP TO SHOULDER ARMHOLE SEAM ) | J35: SHOULDER SLOPE ( HSP TO SHOULDER ARMHOLE SEAM ) | K35: SHOULDER SLOPE ( HSP TO SHOULDER ARMHOLE SEAM ) | L35: SHOULDER SLOPE ( HSP TO SHOULDER ARMHOLE SEAM ) | M35: SHOULDER SLOPE ( HSP TO SHOULDER ARMHOLE SEAM ) | N35: SHOULDER SLOPE ( HSP TO SHOULDER ARMHOLE SEAM ) | O35: SHOULDER SLOPE ( HSP TO SHOULDER ARMHOLE SEAM ) | T35: 0 | X35: =T35+0 -> 0 | AG35: 0
B36: NECK WIDTH (HSP TO HSP) ON BACK | C36: NECK WIDTH (HSP TO HSP) ON BACK | D36: NECK WIDTH (HSP TO HSP) ON BACK | E36: NECK WIDTH (HSP TO HSP) ON BACK | F36: NECK WIDTH (HSP TO HSP) ON BACK | G36: NECK WIDTH (HSP TO HSP) ON BACK | H36: NECK WIDTH (HSP TO HSP) ON BACK | I36: NECK WIDTH (HSP TO HSP) ON BACK | J36: NECK WIDTH (HSP TO HSP) ON BACK | K36: NECK WIDTH (HSP TO HSP) ON BACK | L36: NECK WIDTH (HSP TO HSP) ON BACK | M36: NECK WIDTH (HSP TO HSP) ON BACK | N36: NECK WIDTH (HSP TO HSP) ON BACK | O36: NECK WIDTH (HSP TO HSP) ON BACK | T36: 0 | X36: =T36+0.625 -> 0.625 | AG36: 0.25
B37: FRONT NECK DROP ( FROM HSP TO CENTER FRONT NECK EDGE OR SEAM ) | C37: FRONT NECK DROP ( FROM HSP TO CENTER FRONT NECK EDGE OR SEAM ) | D37: FRONT NECK DROP ( FROM HSP TO CENTER FRONT NECK EDGE OR SEAM ) | E37: FRONT NECK DROP ( FROM HSP TO CENTER FRONT NECK EDGE OR SEAM ) | F37: FRONT NECK DROP ( FROM HSP TO CENTER FRONT NECK EDGE OR SEAM ) | G37: FRONT NECK DROP ( FROM HSP TO CENTER FRONT NECK EDGE OR SEAM ) | H37: FRONT NECK DROP ( FROM HSP TO CENTER FRONT NECK EDGE OR SEAM ) | I37: FRONT NECK DROP ( FROM HSP TO CENTER FRONT NECK EDGE OR SEAM ) | J37: FRONT NECK DROP ( FROM HSP TO CENTER FRONT NECK EDGE OR SEAM ) | K37: FRONT NECK DROP ( FROM HSP TO CENTER FRONT NECK EDGE OR SEAM ) | L37: FRONT NECK DROP ( FROM HSP TO CENTER FRONT NECK EDGE OR SEAM ) | M37: FRONT NECK DROP ( FROM HSP TO CENTER FRONT NECK EDGE OR SEAM ) | N37: FRONT NECK DROP ( FROM HSP TO CENTER FRONT NECK EDGE OR SEAM ) | O37: FRONT NECK DROP ( FROM HSP TO CENTER FRONT NECK EDGE OR SEAM ) | T37: 0 | X37: =T37+0.375 -> 0.375 | AG37: 0.25
B38: BACK NECK DROP ( FROM HSP TO CENTER BACK NECK EDGE OR SEAM ) | C38: BACK NECK DROP ( FROM HSP TO CENTER BACK NECK EDGE OR SEAM ) | D38: BACK NECK DROP ( FROM HSP TO CENTER BACK NECK EDGE OR SEAM ) | E38: BACK NECK DROP ( FROM HSP TO CENTER BACK NECK EDGE OR SEAM ) | F38: BACK NECK DROP ( FROM HSP TO CENTER BACK NECK EDGE OR SEAM ) | G38: BACK NECK DROP ( FROM HSP TO CENTER BACK NECK EDGE OR SEAM ) | H38: BACK NECK DROP ( FROM HSP TO CENTER BACK NECK EDGE OR SEAM ) | I38: BACK NECK DROP ( FROM HSP TO CENTER BACK NECK EDGE OR SEAM ) | J38: BACK NECK DROP ( FROM HSP TO CENTER BACK NECK EDGE OR SEAM ) | K38: BACK NECK DROP ( FROM HSP TO CENTER BACK NECK EDGE OR SEAM ) | L38: BACK NECK DROP ( FROM HSP TO CENTER BACK NECK EDGE OR SEAM ) | M38: BACK NECK DROP ( FROM HSP TO CENTER BACK NECK EDGE OR SEAM ) | N38: BACK NECK DROP ( FROM HSP TO CENTER BACK NECK EDGE OR SEAM ) | O38: BACK NECK DROP ( FROM HSP TO CENTER BACK NECK EDGE OR SEAM ) | T38: 0 | X38: =T38+0 -> 0 | AG38: 0.25
B39: 1/2 NECK CIRCUMFERENCE | C39: 1/2 NECK CIRCUMFERENCE | D39: 1/2 NECK CIRCUMFERENCE | E39: 1/2 NECK CIRCUMFERENCE | F39: 1/2 NECK CIRCUMFERENCE | G39: 1/2 NECK CIRCUMFERENCE | H39: 1/2 NECK CIRCUMFERENCE | I39: 1/2 NECK CIRCUMFERENCE | J39: 1/2 NECK CIRCUMFERENCE | K39: 1/2 NECK CIRCUMFERENCE | L39: 1/2 NECK CIRCUMFERENCE | M39: 1/2 NECK CIRCUMFERENCE | N39: 1/2 NECK CIRCUMFERENCE | O39: 1/2 NECK CIRCUMFERENCE | T39: 0 | AG39: 0.25
B40: COLLAR DEPTH ( AT C.B. NECK ) | C40: COLLAR DEPTH ( AT C.B. NECK ) | D40: COLLAR DEPTH ( AT C.B. NECK ) | E40: COLLAR DEPTH ( AT C.B. NECK ) | F40: COLLAR DEPTH ( AT C.B. NECK ) | G40: COLLAR DEPTH ( AT C.B. NECK ) | H40: COLLAR DEPTH ( AT C.B. NECK ) | I40: COLLAR DEPTH ( AT C.B. NECK ) | J40: COLLAR DEPTH ( AT C.B. NECK ) | K40: COLLAR DEPTH ( AT C.B. NECK ) | L40: COLLAR DEPTH ( AT C.B. NECK ) | M40: COLLAR DEPTH ( AT C.B. NECK ) | N40: COLLAR DEPTH ( AT C.B. NECK ) | O40: COLLAR DEPTH ( AT C.B. NECK ) | T40: 0 | X40: =T40+0 -> 0 | AG40: 0
B41: STAND DEPTH | C41: STAND DEPTH | D41: STAND DEPTH | E41: STAND DEPTH | F41: STAND DEPTH | G41: STAND DEPTH | H41: STAND DEPTH | I41: STAND DEPTH | J41: STAND DEPTH | K41: STAND DEPTH | L41: STAND DEPTH | M41: STAND DEPTH | N41: STAND DEPTH | O41: STAND DEPTH | T41: 0 | AG41: 0
B42: COLLAR LENGTH | C42: COLLAR LENGTH | D42: COLLAR LENGTH | E42: COLLAR LENGTH | F42: COLLAR LENGTH | G42: COLLAR LENGTH | H42: COLLAR LENGTH | I42: COLLAR LENGTH | J42: COLLAR LENGTH | K42: COLLAR LENGTH | L42: COLLAR LENGTH | M42: COLLAR LENGTH | N42: COLLAR LENGTH | O42: COLLAR LENGTH | T42: 0 | X42: =T42+0 -> 0 | AG42: 0.25
B43: NECK TRIM DEPTH | C43: NECK TRIM DEPTH | D43: NECK TRIM DEPTH | E43: NECK TRIM DEPTH | F43: NECK TRIM DEPTH | G43: NECK TRIM DEPTH | H43: NECK TRIM DEPTH | I43: NECK TRIM DEPTH | J43: NECK TRIM DEPTH | K43: NECK TRIM DEPTH | L43: NECK TRIM DEPTH | M43: NECK TRIM DEPTH | N43: NECK TRIM DEPTH | O43: NECK TRIM DEPTH | T43: 0 | X43: =T43+0 -> 0 | AG43: 0
B44: CUFF DEPTH | C44: CUFF DEPTH | D44: CUFF DEPTH | E44: CUFF DEPTH | F44: CUFF DEPTH | G44: CUFF DEPTH | H44: CUFF DEPTH | I44: CUFF DEPTH | J44: CUFF DEPTH | K44: CUFF DEPTH | L44: CUFF DEPTH | M44: CUFF DEPTH | N44: CUFF DEPTH | O44: CUFF DEPTH | T44: 0 | X44: =T44+0 -> 0 | AG44: 0
B45: SLEEVE HEM DEPTH | C45: SLEEVE HEM DEPTH | D45: SLEEVE HEM DEPTH | E45: SLEEVE HEM DEPTH | F45: SLEEVE HEM DEPTH | G45: SLEEVE HEM DEPTH | H45: SLEEVE HEM DEPTH | I45: SLEEVE HEM DEPTH | J45: SLEEVE HEM DEPTH | K45: SLEEVE HEM DEPTH | L45: SLEEVE HEM DEPTH | M45: SLEEVE HEM DEPTH | N45: SLEEVE HEM DEPTH | O45: SLEEVE HEM DEPTH | T45: 0 | X45: =T45+0 -> 0 | AG45: 0
B46: BOTTOM HEM DEPTH | C46: BOTTOM HEM DEPTH | D46: BOTTOM HEM DEPTH | E46: BOTTOM HEM DEPTH | F46: BOTTOM HEM DEPTH | G46: BOTTOM HEM DEPTH | H46: BOTTOM HEM DEPTH | I46: BOTTOM HEM DEPTH | J46: BOTTOM HEM DEPTH | K46: BOTTOM HEM DEPTH | L46: BOTTOM HEM DEPTH | M46: BOTTOM HEM DEPTH | N46: BOTTOM HEM DEPTH | O46: BOTTOM HEM DEPTH | T46: 0 | X46: =T46+2.5 -> 2.5 | AG46: 0
B47: HSP TO BUST POINT | C47: HSP TO BUST POINT | D47: HSP TO BUST POINT | E47: HSP TO BUST POINT | F47: HSP TO BUST POINT | G47: HSP TO BUST POINT | H47: HSP TO BUST POINT | I47: HSP TO BUST POINT | J47: HSP TO BUST POINT | K47: HSP TO BUST POINT | L47: HSP TO BUST POINT | M47: HSP TO BUST POINT | N47: HSP TO BUST POINT | O47: HSP TO BUST POINT | T47: 0 | X47: =T47+0.5 -> 0.5 | AG47: 0
B52: Sample Approved?
B53: If sample is NOT approved, then submit 2nd Pre-Production Samples. If sample is APPROVED, then submit Production Samples.

Sheet Grade S-M-L (hidden)
L2: Create Date: | Q2: ='ORIGINAL PHOTO'!Q2:W2 -> MARCH 15/2017
L3: Vendor Name: | Q3: ='ORIGINAL PHOTO'!Q3:AI3 -> 0
L4: Vndr.Item No.: | Q4: ='ORIGINAL PHOTO'!Q4:W4 -> 0 | AA4: GC Item No.: | AE4: ='ORIGINAL PHOTO'!AE4:AI4 -> 0
L5: Size Range: | Q5: ='ORIGINAL PHOTO'!Q5:W5 -> S-M-L-XL | AA5: Season: | AD5: ='ORIGINAL PHOTO'!AD5:AI5 -> Spring Summer 2018
L6: Description: | Q6: ='ORIGINAL PHOTO'!Q6:AI6 -> MEN'S LONG SLEEVE ZIP FRONT SCOOP HEM HOODIE WITH LINED HOOD
B8: GRADE SHEET -- COAT | T8: Date: | AN8: L
B9: (Measurements on flat / inches) | P9: S | T9: M | X9: L | AG9: Tolerance + / - (on flat) | AN9: LXL
AN10: M
B11: BACK LENGTH FROM (HIGH SHOULDER POINT) | C11: BACK LENGTH FROM (HIGH SHOULDER POINT) | D11: BACK LENGTH FROM (HIGH SHOULDER POINT) | E11: BACK LENGTH FROM (HIGH SHOULDER POINT) | F11: BACK LENGTH FROM (HIGH SHOULDER POINT) | G11: BACK LENGTH FROM (HIGH SHOULDER POINT) | H11: BACK LENGTH FROM (HIGH SHOULDER POINT) | I11: BACK LENGTH FROM (HIGH SHOULDER POINT) | J11: BACK LENGTH FROM (HIGH SHOULDER POINT) | K11: BACK LENGTH FROM (HIGH SHOULDER POINT) | L11: BACK LENGTH FROM (HIGH SHOULDER POINT) | M11: BACK LENGTH FROM (HIGH SHOULDER POINT) | N11: BACK LENGTH FROM (HIGH SHOULDER POINT) | O11: BACK LENGTH FROM (HIGH SHOULDER POINT) | P11: =T11-0.375 -> -0.375 | T11: 0 | X11: =T11+0.5 -> 0.5 | AG11: 0.375 | AN11: S
B12: CENTER BACK LENGTH ( FROM NECK TO HEM ) | C12: CENTER BACK LENGTH ( FROM NECK TO HEM ) | D12: CENTER BACK LENGTH ( FROM NECK TO HEM ) | E12: CENTER BACK LENGTH ( FROM NECK TO HEM ) | F12: CENTER BACK LENGTH ( FROM NECK TO HEM ) | G12: CENTER BACK LENGTH ( FROM NECK TO HEM ) | H12: CENTER BACK LENGTH ( FROM NECK TO HEM ) | I12: CENTER BACK LENGTH ( FROM NECK TO HEM ) | J12: CENTER BACK LENGTH ( FROM NECK TO HEM ) | K12: CENTER BACK LENGTH ( FROM NECK TO HEM ) | L12: CENTER BACK LENGTH ( FROM NECK TO HEM ) | M12: CENTER BACK LENGTH ( FROM NECK TO HEM ) | N12: CENTER BACK LENGTH ( FROM NECK TO HEM ) | O12: CENTER BACK LENGTH ( FROM NECK TO HEM ) | T12: 0 | AG12: 0.375 | AN12: SM
B13: FRONT LENGTH FROM (HIGH SHOULDER POINT) | C13: FRONT LENGTH FROM (HIGH SHOULDER POINT) | D13: FRONT LENGTH FROM (HIGH SHOULDER POINT) | E13: FRONT LENGTH FROM (HIGH SHOULDER POINT) | F13: FRONT LENGTH FROM (HIGH SHOULDER POINT) | G13: FRONT LENGTH FROM (HIGH SHOULDER POINT) | H13: FRONT LENGTH FROM (HIGH SHOULDER POINT) | I13: FRONT LENGTH FROM (HIGH SHOULDER POINT) | J13: FRONT LENGTH FROM (HIGH SHOULDER POINT) | K13: FRONT LENGTH FROM (HIGH SHOULDER POINT) | L13: FRONT LENGTH FROM (HIGH SHOULDER POINT) | M13: FRONT LENGTH FROM (HIGH SHOULDER POINT) | N13: FRONT LENGTH FROM (HIGH SHOULDER POINT) | O13: FRONT LENGTH FROM (HIGH SHOULDER POINT) | P13: =T13-0.375 -> -0.375 | T13: 0 | X13: =T13+0.5 -> 0.5 | AG13: 0.375 | AN13: XL
B14: FRONT LENGTH (FROM CENTRE FRONT NECK TO HEM) | C14: FRONT LENGTH (FROM CENTRE FRONT NECK TO HEM) | D14: FRONT LENGTH (FROM CENTRE FRONT NECK TO HEM) | E14: FRONT LENGTH (FROM CENTRE FRONT NECK TO HEM) | F14: FRONT LENGTH (FROM CENTRE FRONT NECK TO HEM) | G14: FRONT LENGTH (FROM CENTRE FRONT NECK TO HEM) | H14: FRONT LENGTH (FROM CENTRE FRONT NECK TO HEM) | I14: FRONT LENGTH (FROM CENTRE FRONT NECK TO HEM) | J14: FRONT LENGTH (FROM CENTRE FRONT NECK TO HEM) | K14: FRONT LENGTH (FROM CENTRE FRONT NECK TO HEM) | L14: FRONT LENGTH (FROM CENTRE FRONT NECK TO HEM) | M14: FRONT LENGTH (FROM CENTRE FRONT NECK TO HEM) | N14: FRONT LENGTH (FROM CENTRE FRONT NECK TO HEM) | O14: FRONT LENGTH (FROM CENTRE FRONT NECK TO HEM) | T14: 0 | AG14: 0.375 | AN14: XXL
B15: CHEST (1" BELOW ARMHOLE) | C15: CHEST (1" BELOW ARMHOLE) | D15: CHEST (1" BELOW ARMHOLE) | E15: CHEST (1" BELOW ARMHOLE) | F15: CHEST (1" BELOW ARMHOLE) | G15: CHEST (1" BELOW ARMHOLE) | H15: CHEST (1" BELOW ARMHOLE) | I15: CHEST (1" BELOW ARMHOLE) | J15: CHEST (1" BELOW ARMHOLE) | K15: CHEST (1" BELOW ARMHOLE) | L15: CHEST (1" BELOW ARMHOLE) | M15: CHEST (1" BELOW ARMHOLE) | N15: CHEST (1" BELOW ARMHOLE) | O15: CHEST (1" BELOW ARMHOLE) | P15: =T15-1.5 -> -1.5 | T15: 0 | X15: =T15+2 -> 2 | AG15: 0.375 | AN15: XXXL
B16: WAIST (16 1/2" BELOW HIGH SHOULDER POINT) | C16: WAIST (16 1/2" BELOW HIGH SHOULDER POINT) | D16: WAIST (16 1/2" BELOW HIGH SHOULDER POINT) | E16: WAIST (16 1/2" BELOW HIGH SHOULDER POINT) | F16: WAIST (16 1/2" BELOW HIGH SHOULDER POINT) | G16: WAIST (16 1/2" BELOW HIGH SHOULDER POINT) | H16: WAIST (16 1/2" BELOW HIGH SHOULDER POINT) | I16: WAIST (16 1/2" BELOW HIGH SHOULDER POINT) | J16: WAIST (16 1/2" BELOW HIGH SHOULDER POINT) | K16: WAIST (16 1/2" BELOW HIGH SHOULDER POINT) | L16: WAIST (16 1/2" BELOW HIGH SHOULDER POINT) | M16: WAIST (16 1/2" BELOW HIGH SHOULDER POINT) | N16: WAIST (16 1/2" BELOW HIGH SHOULDER POINT) | O16: WAIST (16 1/2" BELOW HIGH SHOULDER POINT) | P16: =T16-1.5 -> -1.5 | T16: 0 | X16: =T16+2 -> 2 | AG16: 0.375
B17: TOP HIP ( 3" BELOW WAIST ) | C17: TOP HIP ( 3" BELOW WAIST ) | D17: TOP HIP ( 3" BELOW WAIST ) | E17: TOP HIP ( 3" BELOW WAIST ) | F17: TOP HIP ( 3" BELOW WAIST ) | G17: TOP HIP ( 3" BELOW WAIST ) | H17: TOP HIP ( 3" BELOW WAIST ) | I17: TOP HIP ( 3" BELOW WAIST ) | J17: TOP HIP ( 3" BELOW WAIST ) | K17: TOP HIP ( 3" BELOW WAIST ) | L17: TOP HIP ( 3" BELOW WAIST ) | M17: TOP HIP ( 3" BELOW WAIST ) | N17: TOP HIP ( 3" BELOW WAIST ) | O17: TOP HIP ( 3" BELOW WAIST ) | P17: =T17-1.5 -> -1.5 | T17: 0 | X17: =T17+2 -> 2 | AG17: 0.375
B18: LOW HIP ( 8" BELOW WAIST) | C18: LOW HIP ( 8" BELOW WAIST) | D18: LOW HIP ( 8" BELOW WAIST) | E18: LOW HIP ( 8" BELOW WAIST) | F18: LOW HIP ( 8" BELOW WAIST) | G18: LOW HIP ( 8" BELOW WAIST) | H18: LOW HIP ( 8" BELOW WAIST) | I18: LOW HIP ( 8" BELOW WAIST) | J18: LOW HIP ( 8" BELOW WAIST) | K18: LOW HIP ( 8" BELOW WAIST) | L18: LOW HIP ( 8" BELOW WAIST) | M18: LOW HIP ( 8" BELOW WAIST) | N18: LOW HIP ( 8" BELOW WAIST) | O18: LOW HIP ( 8" BELOW WAIST) | P18: =T18-1.5 -> -1.5 | T18: 0 | X18: =T18+2 -> 2 | AG18: 0.375
B19: HEM STRAIGHT | C19: HEM STRAIGHT | D19: HEM STRAIGHT | E19: HEM STRAIGHT | F19: HEM STRAIGHT | G19: HEM STRAIGHT | H19: HEM STRAIGHT | I19: HEM STRAIGHT | J19: HEM STRAIGHT | K19: HEM STRAIGHT | L19: HEM STRAIGHT | M19: HEM STRAIGHT | N19: HEM STRAIGHT | O19: HEM STRAIGHT | P19: =T19-1.5 -> -1.5 | T19: 0 | X19: =T19+2 -> 2 | AG19: 0.375
B20: HEM CURVE (FOLLOW) | C20: HEM CURVE (FOLLOW) | D20: HEM CURVE (FOLLOW) | E20: HEM CURVE (FOLLOW) | F20: HEM CURVE (FOLLOW) | G20: HEM CURVE (FOLLOW) | H20: HEM CURVE (FOLLOW) | I20: HEM CURVE (FOLLOW) | J20: HEM CURVE (FOLLOW) | K20: HEM CURVE (FOLLOW) | L20: HEM CURVE (FOLLOW) | M20: HEM CURVE (FOLLOW) | N20: HEM CURVE (FOLLOW) | O20: HEM CURVE (FOLLOW) | T20: 0 | AG20: 0.375
B21: ACROSS SHOULDERS ( TOTAL ) | C21: ACROSS SHOULDERS ( TOTAL ) | D21: ACROSS SHOULDERS ( TOTAL ) | E21: ACROSS SHOULDERS ( TOTAL ) | F21: ACROSS SHOULDERS ( TOTAL ) | G21: ACROSS SHOULDERS ( TOTAL ) | H21: ACROSS SHOULDERS ( TOTAL ) | I21: ACROSS SHOULDERS ( TOTAL ) | J21: ACROSS SHOULDERS ( TOTAL ) | K21: ACROSS SHOULDERS ( TOTAL ) | L21: ACROSS SHOULDERS ( TOTAL ) | M21: ACROSS SHOULDERS ( TOTAL ) | N21: ACROSS SHOULDERS ( TOTAL ) | O21: ACROSS SHOULDERS ( TOTAL ) | P21: =T21-0.75 -> -0.75 | T21: 0 | X21: =T21+1 -> 1 | AG21: 0.375
B22: SHOULDER LENGTH AT SEAM | C22: SHOULDER LENGTH AT SEAM | D22: SHOULDER LENGTH AT SEAM | E22: SHOULDER LENGTH AT SEAM | F22: SHOULDER LENGTH AT SEAM | G22: SHOULDER LENGTH AT SEAM | H22: SHOULDER LENGTH AT SEAM | I22: SHOULDER LENGTH AT SEAM | J22: SHOULDER LENGTH AT SEAM | K22: SHOULDER LENGTH AT SEAM | L22: SHOULDER LENGTH AT SEAM | M22: SHOULDER LENGTH AT SEAM | N22: SHOULDER LENGTH AT SEAM | O22: SHOULDER LENGTH AT SEAM | T22: 0 | AG22: 0.375
B23: ACROSS FRONT (5" BELOW HIGH SHOULDER POINT) | C23: ACROSS FRONT (5" BELOW HIGH SHOULDER POINT) | D23: ACROSS FRONT (5" BELOW HIGH SHOULDER POINT) | E23: ACROSS FRONT (5" BELOW HIGH SHOULDER POINT) | F23: ACROSS FRONT (5" BELOW HIGH SHOULDER POINT) | G23: ACROSS FRONT (5" BELOW HIGH SHOULDER POINT) | H23: ACROSS FRONT (5" BELOW HIGH SHOULDER POINT) | I23: ACROSS FRONT (5" BELOW HIGH SHOULDER POINT) | J23: ACROSS FRONT (5" BELOW HIGH SHOULDER POINT) | K23: ACROSS FRONT (5" BELOW HIGH SHOULDER POINT) | L23: ACROSS FRONT (5" BELOW HIGH SHOULDER POINT) | M23: ACROSS FRONT (5" BELOW HIGH SHOULDER POINT) | N23: ACROSS FRONT (5" BELOW HIGH SHOULDER POINT) | O23: ACROSS FRONT (5" BELOW HIGH SHOULDER POINT) | P23: =T23-0.75 -> -0.75 | T23: 0 | X23: =T23+1 -> 1 | AG23: 0.375
B24: ACROSS BACK (5" BELOW HIGH SHOULDER POINT) | C24: ACROSS BACK (5" BELOW HIGH SHOULDER POINT) | D24: ACROSS BACK (5" BELOW HIGH SHOULDER POINT) | E24: ACROSS BACK (5" BELOW HIGH SHOULDER POINT) | F24: ACROSS BACK (5" BELOW HIGH SHOULDER POINT) | G24: ACROSS BACK (5" BELOW HIGH SHOULDER POINT) | H24: ACROSS BACK (5" BELOW HIGH SHOULDER POINT) | I24: ACROSS BACK (5" BELOW HIGH SHOULDER POINT) | J24: ACROSS BACK (5" BELOW HIGH SHOULDER POINT) | K24: ACROSS BACK (5" BELOW HIGH SHOULDER POINT) | L24: ACROSS BACK (5" BELOW HIGH SHOULDER POINT) | M24: ACROSS BACK (5" BELOW HIGH SHOULDER POINT) | N24: ACROSS BACK (5" BELOW HIGH SHOULDER POINT) | O24: ACROSS BACK (5" BELOW HIGH SHOULDER POINT) | P24: =T24-0.75 -> -0.75 | T24: 0 | X24: =T24+1 -> 1 | AG24: 0.375
B25: OVERARM (FROM SLEEVE CAP TO HEM)-SHORT SLEEVE | C25: OVERARM (FROM SLEEVE CAP TO HEM)-SHORT SLEEVE | D25: OVERARM (FROM SLEEVE CAP TO HEM)-SHORT SLEEVE | E25: OVERARM (FROM SLEEVE CAP TO HEM)-SHORT SLEEVE | F25: OVERARM (FROM SLEEVE CAP TO HEM)-SHORT SLEEVE | G25: OVERARM (FROM SLEEVE CAP TO HEM)-SHORT SLEEVE | H25: OVERARM (FROM SLEEVE CAP TO HEM)-SHORT SLEEVE | I25: OVERARM (FROM SLEEVE CAP TO HEM)-SHORT SLEEVE | J25: OVERARM (FROM SLEEVE CAP TO HEM)-SHORT SLEEVE | K25: OVERARM (FROM SLEEVE CAP TO HEM)-SHORT SLEEVE | L25: OVERARM (FROM SLEEVE CAP TO HEM)-SHORT SLEEVE | M25: OVERARM (FROM SLEEVE CAP TO HEM)-SHORT SLEEVE | N25: OVERARM (FROM SLEEVE CAP TO HEM)-SHORT SLEEVE | O25: OVERARM (FROM SLEEVE CAP TO HEM)-SHORT SLEEVE | P25: =T25-0.25 -> -0.25 | T25: 0 | X25: =T25+0.25 -> 0.25 | AG25: 0.25
B26: OVERARM (FROM SLEEVE CAP TO HEM)- 3/4 SLEEVE | C26: OVERARM (FROM SLEEVE CAP TO HEM)- 3/4 SLEEVE | D26: OVERARM (FROM SLEEVE CAP TO HEM)- 3/4 SLEEVE | E26: OVERARM (FROM SLEEVE CAP TO HEM)- 3/4 SLEEVE | F26: OVERARM (FROM SLEEVE CAP TO HEM)- 3/4 SLEEVE | G26: OVERARM (FROM SLEEVE CAP TO HEM)- 3/4 SLEEVE | H26: OVERARM (FROM SLEEVE CAP TO HEM)- 3/4 SLEEVE | I26: OVERARM (FROM SLEEVE CAP TO HEM)- 3/4 SLEEVE | J26: OVERARM (FROM SLEEVE CAP TO HEM)- 3/4 SLEEVE | K26: OVERARM (FROM SLEEVE CAP TO HEM)- 3/4 SLEEVE | L26: OVERARM (FROM SLEEVE CAP TO HEM)- 3/4 SLEEVE | M26: OVERARM (FROM SLEEVE CAP TO HEM)- 3/4 SLEEVE | N26: OVERARM (FROM SLEEVE CAP TO HEM)- 3/4 SLEEVE | O26: OVERARM (FROM SLEEVE CAP TO HEM)- 3/4 SLEEVE | P26: =T26-0.25 -> -0.25 | T26: 0 | X26: =T26+0.25 -> 0.25 | AG26: 0.25
B27: OVERARM (FROM SLEEVE CAP TO HEM)- LONG SLEEVE | C27: OVERARM (FROM SLEEVE CAP TO HEM)- LONG SLEEVE | D27: OVERARM (FROM SLEEVE CAP TO HEM)- LONG SLEEVE | E27: OVERARM (FROM SLEEVE CAP TO HEM)- LONG SLEEVE | F27: OVERARM (FROM SLEEVE CAP TO HEM)- LONG SLEEVE | G27: OVERARM (FROM SLEEVE CAP TO HEM)- LONG SLEEVE | H27: OVERARM (FROM SLEEVE CAP TO HEM)- LONG SLEEVE | I27: OVERARM (FROM SLEEVE CAP TO HEM)- LONG SLEEVE | J27: OVERARM (FROM SLEEVE CAP TO HEM)- LONG SLEEVE | K27: OVERARM (FROM SLEEVE CAP TO HEM)- LONG SLEEVE | L27: OVERARM (FROM SLEEVE CAP TO HEM)- LONG SLEEVE | M27: OVERARM (FROM SLEEVE CAP TO HEM)- LONG SLEEVE | N27: OVERARM (FROM SLEEVE CAP TO HEM)- LONG SLEEVE | O27: OVERARM (FROM SLEEVE CAP TO HEM)- LONG SLEEVE | P27: =T27-0.25 -> -0.25 | T27: 0 | X27: =T27+0.25 -> 0.25 | AG27: 0.375
B28: 1/2 ARMHOLE STRAIGHT | C28: 1/2 ARMHOLE STRAIGHT | D28: 1/2 ARMHOLE STRAIGHT | E28: 1/2 ARMHOLE STRAIGHT | F28: 1/2 ARMHOLE STRAIGHT | G28: 1/2 ARMHOLE STRAIGHT | H28: 1/2 ARMHOLE STRAIGHT | I28: 1/2 ARMHOLE STRAIGHT | J28: 1/2 ARMHOLE STRAIGHT | K28: 1/2 ARMHOLE STRAIGHT | L28: 1/2 ARMHOLE STRAIGHT | M28: 1/2 ARMHOLE STRAIGHT | N28: 1/2 ARMHOLE STRAIGHT | O28: 1/2 ARMHOLE STRAIGHT | P28: =T28-0.625 -> -0.625 | T28: 0 | X28: =T28+0.75 -> 0.75 | AG28: 0.25
B29: BICEP (1" BELOW ARMHOLE) | C29: BICEP (1" BELOW ARMHOLE) | D29: BICEP (1" BELOW ARMHOLE) | E29: BICEP (1" BELOW ARMHOLE) | F29: BICEP (1" BELOW ARMHOLE) | G29: BICEP (1" BELOW ARMHOLE) | H29: BICEP (1" BELOW ARMHOLE) | I29: BICEP (1" BELOW ARMHOLE) | J29: BICEP (1" BELOW ARMHOLE) | K29: BICEP (1" BELOW ARMHOLE) | L29: BICEP (1" BELOW ARMHOLE) | M29: BICEP (1" BELOW ARMHOLE) | N29: BICEP (1" BELOW ARMHOLE) | O29: BICEP (1" BELOW ARMHOLE) | P29: =T25-0.5 -> -0.5 | T29: 0 | X29: =T25+0.5 -> 0.5 | AG29: 0.25
B30: ELBOW (8 1/2" BELOW ARMHOLE) | C30: ELBOW (8 1/2" BELOW ARMHOLE) | D30: ELBOW (8 1/2" BELOW ARMHOLE) | E30: ELBOW (8 1/2" BELOW ARMHOLE) | F30: ELBOW (8 1/2" BELOW ARMHOLE) | G30: ELBOW (8 1/2" BELOW ARMHOLE) | H30: ELBOW (8 1/2" BELOW ARMHOLE) | I30: ELBOW (8 1/2" BELOW ARMHOLE) | J30: ELBOW (8 1/2" BELOW ARMHOLE) | K30: ELBOW (8 1/2" BELOW ARMHOLE) | L30: ELBOW (8 1/2" BELOW ARMHOLE) | M30: ELBOW (8 1/2" BELOW ARMHOLE) | N30: ELBOW (8 1/2" BELOW ARMHOLE) | O30: ELBOW (8 1/2" BELOW ARMHOLE) | P30: =T30-0.375 -> -0.375 | T30: 0 | X30: =T30+0.375 -> 0.375 | AG30: 0.25
B31: SHORT SLEEVE OPENING | C31: SHORT SLEEVE OPENING | D31: SHORT SLEEVE OPENING | E31: SHORT SLEEVE OPENING | F31: SHORT SLEEVE OPENING | G31: SHORT SLEEVE OPENING | H31: SHORT SLEEVE OPENING | I31: SHORT SLEEVE OPENING | J31: SHORT SLEEVE OPENING | K31: SHORT SLEEVE OPENING | L31: SHORT SLEEVE OPENING | M31: SHORT SLEEVE OPENING | N31: SHORT SLEEVE OPENING | O31: SHORT SLEEVE OPENING | P31: =T31-0.5 -> -0.5 | T31: 0 | X31: =T31+0.5 -> 0.5 | AG31: 0.25
B32: 3/4 SLEEVE OPENING | C32: 3/4 SLEEVE OPENING | D32: 3/4 SLEEVE OPENING | E32: 3/4 SLEEVE OPENING | F32: 3/4 SLEEVE OPENING | G32: 3/4 SLEEVE OPENING | H32: 3/4 SLEEVE OPENING | I32: 3/4 SLEEVE OPENING | J32: 3/4 SLEEVE OPENING | K32: 3/4 SLEEVE OPENING | L32: 3/4 SLEEVE OPENING | M32: 3/4 SLEEVE OPENING | N32: 3/4 SLEEVE OPENING | O32: 3/4 SLEEVE OPENING | P32: =T32-0.375 -> -0.375 | T32: 0 | X32: =T32+0.375 -> 0.375 | AG32: 0.25
B33: LONG SLEEVE OPENING | C33: LONG SLEEVE OPENING | D33: LONG SLEEVE OPENING | E33: LONG SLEEVE OPENING | F33: LONG SLEEVE OPENING | G33: LONG SLEEVE OPENING | H33: LONG SLEEVE OPENING | I33: LONG SLEEVE OPENING | J33: LONG SLEEVE OPENING | K33: LONG SLEEVE OPENING | L33: LONG SLEEVE OPENING | M33: LONG SLEEVE OPENING | N33: LONG SLEEVE OPENING | O33: LONG SLEEVE OPENING | P33: =T33-0.25 -> -0.25 | T33: 0 | X33: =T33+0.25 -> 0.25 | AG33: 1/4
B34: SLEEVE CAP HEIGHT ( FROM TOP OF SLEEVE TO UNDERARM ) | C34: SLEEVE CAP HEIGHT ( FROM TOP OF SLEEVE TO UNDERARM ) | D34: SLEEVE CAP HEIGHT ( FROM TOP OF SLEEVE TO UNDERARM ) | E34: SLEEVE CAP HEIGHT ( FROM TOP OF SLEEVE TO UNDERARM ) | F34: SLEEVE CAP HEIGHT ( FROM TOP OF SLEEVE TO UNDERARM ) | G34: SLEEVE CAP HEIGHT ( FROM TOP OF SLEEVE TO UNDERARM ) | H34: SLEEVE CAP HEIGHT ( FROM TOP OF SLEEVE TO UNDERARM ) | I34: SLEEVE CAP HEIGHT ( FROM TOP OF SLEEVE TO UNDERARM ) | J34: SLEEVE CAP HEIGHT ( FROM TOP OF SLEEVE TO UNDERARM ) | K34: SLEEVE CAP HEIGHT ( FROM TOP OF SLEEVE TO UNDERARM ) | L34: SLEEVE CAP HEIGHT ( FROM TOP OF SLEEVE TO UNDERARM ) | M34: SLEEVE CAP HEIGHT ( FROM TOP OF SLEEVE TO UNDERARM ) | N34: SLEEVE CAP HEIGHT ( FROM TOP OF SLEEVE TO UNDERARM ) | O34: SLEEVE CAP HEIGHT ( FROM TOP OF SLEEVE TO UNDERARM ) | P34: =T34-0.25 -> -0.25 | T34: 0 | X34: =T34+0.25 -> 0.25 | AG34: 0
B35: SHOULDER SLOPE ( HSP TO SHOULDER ARMHOLE SEAM ) | C35: SHOULDER SLOPE ( HSP TO SHOULDER ARMHOLE SEAM ) | D35: SHOULDER SLOPE ( HSP TO SHOULDER ARMHOLE SEAM ) | E35: SHOULDER SLOPE ( HSP TO SHOULDER ARMHOLE SEAM ) | F35: SHOULDER SLOPE ( HSP TO SHOULDER ARMHOLE SEAM ) | G35: SHOULDER SLOPE ( HSP TO SHOULDER ARMHOLE SEAM ) | H35: SHOULDER SLOPE ( HSP TO SHOULDER ARMHOLE SEAM ) | I35: SHOULDER SLOPE ( HSP TO SHOULDER ARMHOLE SEAM ) | J35: SHOULDER SLOPE ( HSP TO SHOULDER ARMHOLE SEAM ) | K35: SHOULDER SLOPE ( HSP TO SHOULDER ARMHOLE SEAM ) | L35: SHOULDER SLOPE ( HSP TO SHOULDER ARMHOLE SEAM ) | M35: SHOULDER SLOPE ( HSP TO SHOULDER ARMHOLE SEAM ) | N35: SHOULDER SLOPE ( HSP TO SHOULDER ARMHOLE SEAM ) | O35: SHOULDER SLOPE ( HSP TO SHOULDER ARMHOLE SEAM ) | P35: =T35-0 -> 0 | T35: 0 | X35: =T35+0 -> 0 | AG35: 0
B36: NECK WIDTH (HSP TO HSP) ON BACK | C36: NECK WIDTH (HSP TO HSP) ON BACK | D36: NECK WIDTH (HSP TO HSP) ON BACK | E36: NECK WIDTH (HSP TO HSP) ON BACK | F36: NECK WIDTH (HSP TO HSP) ON BACK | G36: NECK WIDTH (HSP TO HSP) ON BACK | H36: NECK WIDTH (HSP TO HSP) ON BACK | I36: NECK WIDTH (HSP TO HSP) ON BACK | J36: NECK WIDTH (HSP TO HSP) ON BACK | K36: NECK WIDTH (HSP TO HSP) ON BACK | L36: NECK WIDTH (HSP TO HSP) ON BACK | M36: NECK WIDTH (HSP TO HSP) ON BACK | N36: NECK WIDTH (HSP TO HSP) ON BACK | O36: NECK WIDTH (HSP TO HSP) ON BACK | P36: =T36-0.375 -> -0.375 | T36: 0 | X36: =T36+0.5 -> 0.5 | AG36: 0.25
B37: FRONT NECK DROP ( FROM HSP TO CENTER FRONT NECK EDGE OR SEAM ) | C37: FRONT NECK DROP ( FROM HSP TO CENTER FRONT NECK EDGE OR SEAM ) | D37: FRONT NECK DROP ( FROM HSP TO CENTER FRONT NECK EDGE OR SEAM ) | E37: FRONT NECK DROP ( FROM HSP TO CENTER FRONT NECK EDGE OR SEAM ) | F37: FRONT NECK DROP ( FROM HSP TO CENTER FRONT NECK EDGE OR SEAM ) | G37: FRONT NECK DROP ( FROM HSP TO CENTER FRONT NECK EDGE OR SEAM ) | H37: FRONT NECK DROP ( FROM HSP TO CENTER FRONT NECK EDGE OR SEAM ) | I37: FRONT NECK DROP ( FROM HSP TO CENTER FRONT NECK EDGE OR SEAM ) | J37: FRONT NECK DROP ( FROM HSP TO CENTER FRONT NECK EDGE OR SEAM ) | K37: FRONT NECK DROP ( FROM HSP TO CENTER FRONT NECK EDGE OR SEAM ) | L37: FRONT NECK DROP ( FROM HSP TO CENTER FRONT NECK EDGE OR SEAM ) | M37: FRONT NECK DROP ( FROM HSP TO CENTER FRONT NECK EDGE OR SEAM ) | N37: FRONT NECK DROP ( FROM HSP TO CENTER FRONT NECK EDGE OR SEAM ) | O37: FRONT NECK DROP ( FROM HSP TO CENTER FRONT NECK EDGE OR SEAM ) | P37: =T37-0.25 -> -0.25 | T37: 0 | X37: =T37+0.25 -> 0.25 | AG37: 0.25
B38: BACK NECK DROP ( FROM HSP TO CENTER BACK NECK EDGE OR SEAM ) | C38: BACK NECK DROP ( FROM HSP TO CENTER BACK NECK EDGE OR SEAM ) | D38: BACK NECK DROP ( FROM HSP TO CENTER BACK NECK EDGE OR SEAM ) | E38: BACK NECK DROP ( FROM HSP TO CENTER BACK NECK EDGE OR SEAM ) | F38: BACK NECK DROP ( FROM HSP TO CENTER BACK NECK EDGE OR SEAM ) | G38: BACK NECK DROP ( FROM HSP TO CENTER BACK NECK EDGE OR SEAM ) | H38: BACK NECK DROP ( FROM HSP TO CENTER BACK NECK EDGE OR SEAM ) | I38: BACK NECK DROP ( FROM HSP TO CENTER BACK NECK EDGE OR SEAM ) | J38: BACK NECK DROP ( FROM HSP TO CENTER BACK NECK EDGE OR SEAM ) | K38: BACK NECK DROP ( FROM HSP TO CENTER BACK NECK EDGE OR SEAM ) | L38: BACK NECK DROP ( FROM HSP TO CENTER BACK NECK EDGE OR SEAM ) | M38: BACK NECK DROP ( FROM HSP TO CENTER BACK NECK EDGE OR SEAM ) | N38: BACK NECK DROP ( FROM HSP TO CENTER BACK NECK EDGE OR SEAM ) | O38: BACK NECK DROP ( FROM HSP TO CENTER BACK NECK EDGE OR SEAM ) | P38: =T38-0 -> 0 | T38: 0 | X38: =T38+0 -> 0 | AG38: 0.25
B39: 1/2 NECK CIRCUMFERENCE | C39: 1/2 NECK CIRCUMFERENCE | D39: 1/2 NECK CIRCUMFERENCE | E39: 1/2 NECK CIRCUMFERENCE | F39: 1/2 NECK CIRCUMFERENCE | G39: 1/2 NECK CIRCUMFERENCE | H39: 1/2 NECK CIRCUMFERENCE | I39: 1/2 NECK CIRCUMFERENCE | J39: 1/2 NECK CIRCUMFERENCE | K39: 1/2 NECK CIRCUMFERENCE | L39: 1/2 NECK CIRCUMFERENCE | M39: 1/2 NECK CIRCUMFERENCE | N39: 1/2 NECK CIRCUMFERENCE | O39: 1/2 NECK CIRCUMFERENCE | T39: 0 | AG39: 0.25
B40: COLLAR DEPTH ( AT C.B. NECK ) | C40: COLLAR DEPTH ( AT C.B. NECK ) | D40: COLLAR DEPTH ( AT C.B. NECK ) | E40: COLLAR DEPTH ( AT C.B. NECK ) | F40: COLLAR DEPTH ( AT C.B. NECK ) | G40: COLLAR DEPTH ( AT C.B. NECK ) | H40: COLLAR DEPTH ( AT C.B. NECK ) | I40: COLLAR DEPTH ( AT C.B. NECK ) | J40: COLLAR DEPTH ( AT C.B. NECK ) | K40: COLLAR DEPTH ( AT C.B. NECK ) | L40: COLLAR DEPTH ( AT C.B. NECK ) | M40: COLLAR DEPTH ( AT C.B. NECK ) | N40: COLLAR DEPTH ( AT C.B. NECK ) | O40: COLLAR DEPTH ( AT C.B. NECK ) | P40: =T40-0 -> 0 | T40: 0 | X40: =T40+0 -> 0 | AG40: 0
B41: STAND DEPTH | C41: STAND DEPTH | D41: STAND DEPTH | E41: STAND DEPTH | F41: STAND DEPTH | G41: STAND DEPTH | H41: STAND DEPTH | I41: STAND DEPTH | J41: STAND DEPTH | K41: STAND DEPTH | L41: STAND DEPTH | M41: STAND DEPTH | N41: STAND DEPTH | O41: STAND DEPTH | P41: =T41-0 -> 0 | T41: 0 | X41: =T41+0 -> 0 | AG41: 0
B42: COLLAR LENGTH | C42: COLLAR LENGTH | D42: COLLAR LENGTH | E42: COLLAR LENGTH | F42: COLLAR LENGTH | G42: COLLAR LENGTH | H42: COLLAR LENGTH | I42: COLLAR LENGTH | J42: COLLAR LENGTH | K42: COLLAR LENGTH | L42: COLLAR LENGTH | M42: COLLAR LENGTH | N42: COLLAR LENGTH | O42: COLLAR LENGTH | T42: 0 | AG42: 0.25
B43: NECK TRIM DEPTH | C43: NECK TRIM DEPTH | D43: NECK TRIM DEPTH | E43: NECK TRIM DEPTH | F43: NECK TRIM DEPTH | G43: NECK TRIM DEPTH | H43: NECK TRIM DEPTH | I43: NECK TRIM DEPTH | J43: NECK TRIM DEPTH | K43: NECK TRIM DEPTH | L43: NECK TRIM DEPTH | M43: NECK TRIM DEPTH | N43: NECK TRIM DEPTH | O43: NECK TRIM DEPTH | P43: =T43-0 -> 0 | T43: 0 | X43: =T43+0 -> 0 | AG43: 0
B44: CUFF DEPTH | C44: CUFF DEPTH | D44: CUFF DEPTH | E44: CUFF DEPTH | F44: CUFF DEPTH | G44: CUFF DEPTH | H44: CUFF DEPTH | I44: CUFF DEPTH | J44: CUFF DEPTH | K44: CUFF DEPTH | L44: CUFF DEPTH | M44: CUFF DEPTH | N44: CUFF DEPTH | O44: CUFF DEPTH | P44: =T44-0 -> 0 | T44: 0 | X44: =T44+0 -> 0 | AG44: 0
B45: SLEEVE HEM DEPTH | C45: SLEEVE HEM DEPTH | D45: SLEEVE HEM DEPTH | E45: SLEEVE HEM DEPTH | F45: SLEEVE HEM DEPTH | G45: SLEEVE HEM DEPTH | H45: SLEEVE HEM DEPTH | I45: SLEEVE HEM DEPTH | J45: SLEEVE HEM DEPTH | K45: SLEEVE HEM DEPTH | L45: SLEEVE HEM DEPTH | M45: SLEEVE HEM DEPTH | N45: SLEEVE HEM DEPTH | O45: SLEEVE HEM DEPTH | P45: =T45-0 -> 0 | T45: 0 | X45: =T45+0 -> 0 | AG45: 0
B46: BOTTOM HEM DEPTH | C46: BOTTOM HEM DEPTH | D46: BOTTOM HEM DEPTH | E46: BOTTOM HEM DEPTH | F46: BOTTOM HEM DEPTH | G46: BOTTOM HEM DEPTH | H46: BOTTOM HEM DEPTH | I46: BOTTOM HEM DEPTH | J46: BOTTOM HEM DEPTH | K46: BOTTOM HEM DEPTH | L46: BOTTOM HEM DEPTH | M46: BOTTOM HEM DEPTH | N46: BOTTOM HEM DEPTH | O46: BOTTOM HEM DEPTH | P46: =T46-0 -> 0 | T46: 0 | X46: =T46+0 -> 0 | AG46: 0
B47: HSP TO BUST POINT | C47: HSP TO BUST POINT | D47: HSP TO BUST POINT | E47: HSP TO BUST POINT | F47: HSP TO BUST POINT | G47: HSP TO BUST POINT | H47: HSP TO BUST POINT | I47: HSP TO BUST POINT | J47: HSP TO BUST POINT | K47: HSP TO BUST POINT | L47: HSP TO BUST POINT | M47: HSP TO BUST POINT | N47: HSP TO BUST POINT | O47: HSP TO BUST POINT | P47: =T47-0.25 -> -0.25 | T47: 0 | X47: =T47+0.5 -> 0.5 | AG47: 0
B52: Sample Approved?
B53: If sample is NOT approved, then submit 2nd Pre-Production Samples. If sample is APPROVED, then submit Production Samples.

Sheet Grade XXL - XXXL (hidden)
L2: Create Date: | Q2: ='ORIGINAL PHOTO'!Q2:W2 -> MARCH 15/2017
L3: Vendor Name: | Q3: ='ORIGINAL PHOTO'!Q3:AI3 -> 0
L4: Vndr.Item No.: | Q4: ='ORIGINAL PHOTO'!Q4:W4 -> 0 | AA4: GC Item No.: | AE4: ='ORIGINAL PHOTO'!AE4:AI4 -> 0
L5: Size Range: | Q5: ='ORIGINAL PHOTO'!Q5:W5 -> S-M-L-XL | AA5: Season: | AD5: ='ORIGINAL PHOTO'!AD5:AI5 -> Spring Summer 2018
L6: Description: | Q6: ='ORIGINAL PHOTO'!Q6:AI6 -> MEN'S LONG SLEEVE ZIP FRONT SCOOP HEM HOODIE WITH LINED HOOD
B8: GRADE SHEET --COAT | T8: Date: | AN8: L
B9: (Measurements on flat / inches) | T9: XXL | X9: XXXL | AG9: Tolerance + / - (on flat) | AN9: LXL
AN10: M
B11: BACK LENGTH FROM (HIGH SHOULDER POINT) | C11: BACK LENGTH FROM (HIGH SHOULDER POINT) | D11: BACK LENGTH FROM (HIGH SHOULDER POINT) | E11: BACK LENGTH FROM (HIGH SHOULDER POINT) | F11: BACK LENGTH FROM (HIGH SHOULDER POINT) | G11: BACK LENGTH FROM (HIGH SHOULDER POINT) | H11: BACK LENGTH FROM (HIGH SHOULDER POINT) | I11: BACK LENGTH FROM (HIGH SHOULDER POINT) | J11: BACK LENGTH FROM (HIGH SHOULDER POINT) | K11: BACK LENGTH FROM (HIGH SHOULDER POINT) | L11: BACK LENGTH FROM (HIGH SHOULDER POINT) | M11: BACK LENGTH FROM (HIGH SHOULDER POINT) | N11: BACK LENGTH FROM (HIGH SHOULDER POINT) | O11: BACK LENGTH FROM (HIGH SHOULDER POINT) | T11: 0 | X11: =T11+0.5 -> 0.5 | AG11: 0.375 | AN11: S
B12: CENTER BACK LENGTH ( FROM NECK TO HEM ) | C12: CENTER BACK LENGTH ( FROM NECK TO HEM ) | D12: CENTER BACK LENGTH ( FROM NECK TO HEM ) | E12: CENTER BACK LENGTH ( FROM NECK TO HEM ) | F12: CENTER BACK LENGTH ( FROM NECK TO HEM ) | G12: CENTER BACK LENGTH ( FROM NECK TO HEM ) | H12: CENTER BACK LENGTH ( FROM NECK TO HEM ) | I12: CENTER BACK LENGTH ( FROM NECK TO HEM ) | J12: CENTER BACK LENGTH ( FROM NECK TO HEM ) | K12: CENTER BACK LENGTH ( FROM NECK TO HEM ) | L12: CENTER BACK LENGTH ( FROM NECK TO HEM ) | M12: CENTER BACK LENGTH ( FROM NECK TO HEM ) | N12: CENTER BACK LENGTH ( FROM NECK TO HEM ) | O12: CENTER BACK LENGTH ( FROM NECK TO HEM ) | AG12: 0.375 | AN12: SM
B13: FRONT LENGTH FROM (HIGH SHOULDER POINT) | C13: FRONT LENGTH FROM (HIGH SHOULDER POINT) | D13: FRONT LENGTH FROM (HIGH SHOULDER POINT) | E13: FRONT LENGTH FROM (HIGH SHOULDER POINT) | F13: FRONT LENGTH FROM (HIGH SHOULDER POINT) | G13: FRONT LENGTH FROM (HIGH SHOULDER POINT) | H13: FRONT LENGTH FROM (HIGH SHOULDER POINT) | I13: FRONT LENGTH FROM (HIGH SHOULDER POINT) | J13: FRONT LENGTH FROM (HIGH SHOULDER POINT) | K13: FRONT LENGTH FROM (HIGH SHOULDER POINT) | L13: FRONT LENGTH FROM (HIGH SHOULDER POINT) | M13: FRONT LENGTH FROM (HIGH SHOULDER POINT) | N13: FRONT LENGTH FROM (HIGH SHOULDER POINT) | O13: FRONT LENGTH FROM (HIGH SHOULDER POINT) | T13: 0 | X13: =T13+0.5 -> 0.5 | AG13: 0.375 | AN13: XL
B14: FRONT LENGTH (FROM CENTRE FRONT NECK TO HEM) | C14: FRONT LENGTH (FROM CENTRE FRONT NECK TO HEM) | D14: FRONT LENGTH (FROM CENTRE FRONT NECK TO HEM) | E14: FRONT LENGTH (FROM CENTRE FRONT NECK TO HEM) | F14: FRONT LENGTH (FROM CENTRE FRONT NECK TO HEM) | G14: FRONT LENGTH (FROM CENTRE FRONT NECK TO HEM) | H14: FRONT LENGTH (FROM CENTRE FRONT NECK TO HEM) | I14: FRONT LENGTH (FROM CENTRE FRONT NECK TO HEM) | J14: FRONT LENGTH (FROM CENTRE FRONT NECK TO HEM) | K14: FRONT LENGTH (FROM CENTRE FRONT NECK TO HEM) | L14: FRONT LENGTH (FROM CENTRE FRONT NECK TO HEM) | M14: FRONT LENGTH (FROM CENTRE FRONT NECK TO HEM) | N14: FRONT LENGTH (FROM CENTRE FRONT NECK TO HEM) | O14: FRONT LENGTH (FROM CENTRE FRONT NECK TO HEM) | AG14: 0.375 | AN14: XXL
B15: CHEST (1" BELOW ARMHOLE) | C15: CHEST (1" BELOW ARMHOLE) | D15: CHEST (1" BELOW ARMHOLE) | E15: CHEST (1" BELOW ARMHOLE) | F15: CHEST (1" BELOW ARMHOLE) | G15: CHEST (1" BELOW ARMHOLE) | H15: CHEST (1" BELOW ARMHOLE) | I15: CHEST (1" BELOW ARMHOLE) | J15: CHEST (1" BELOW ARMHOLE) | K15: CHEST (1" BELOW ARMHOLE) | L15: CHEST (1" BELOW ARMHOLE) | M15: CHEST (1" BELOW ARMHOLE) | N15: CHEST (1" BELOW ARMHOLE) | O15: CHEST (1" BELOW ARMHOLE) | T15: 0 | X15: =T15+2 -> 2 | AG15: 0.375 | AN15: XXXL
B16: WAIST (16 1/2" BELOW HIGH SHOULDER POINT) | C16: WAIST (16 1/2" BELOW HIGH SHOULDER POINT) | D16: WAIST (16 1/2" BELOW HIGH SHOULDER POINT) | E16: WAIST (16 1/2" BELOW HIGH SHOULDER POINT) | F16: WAIST (16 1/2" BELOW HIGH SHOULDER POINT) | G16: WAIST (16 1/2" BELOW HIGH SHOULDER POINT) | H16: WAIST (16 1/2" BELOW HIGH SHOULDER POINT) | I16: WAIST (16 1/2" BELOW HIGH SHOULDER POINT) | J16: WAIST (16 1/2" BELOW HIGH SHOULDER POINT) | K16: WAIST (16 1/2" BELOW HIGH SHOULDER POINT) | L16: WAIST (16 1/2" BELOW HIGH SHOULDER POINT) | M16: WAIST (16 1/2" BELOW HIGH SHOULDER POINT) | N16: WAIST (16 1/2" BELOW HIGH SHOULDER POINT) | O16: WAIST (16 1/2" BELOW HIGH SHOULDER POINT) | T16: 0 | X16: =T16+2 -> 2 | AG16: 0.375
B17: TOP HIP ( 3" BELOW WAIST ) | C17: TOP HIP ( 3" BELOW WAIST ) | D17: TOP HIP ( 3" BELOW WAIST ) | E17: TOP HIP ( 3" BELOW WAIST ) | F17: TOP HIP ( 3" BELOW WAIST ) | G17: TOP HIP ( 3" BELOW WAIST ) | H17: TOP HIP ( 3" BELOW WAIST ) | I17: TOP HIP ( 3" BELOW WAIST ) | J17: TOP HIP ( 3" BELOW WAIST ) | K17: TOP HIP ( 3" BELOW WAIST ) | L17: TOP HIP ( 3" BELOW WAIST ) | M17: TOP HIP ( 3" BELOW WAIST ) | N17: TOP HIP ( 3" BELOW WAIST ) | O17: TOP HIP ( 3" BELOW WAIST ) | AG17: 0.375
B18: LOW HIP ( 8" BELOW WAIST) | C18: LOW HIP ( 8" BELOW WAIST) | D18: LOW HIP ( 8" BELOW WAIST) | E18: LOW HIP ( 8" BELOW WAIST) | F18: LOW HIP ( 8" BELOW WAIST) | G18: LOW HIP ( 8" BELOW WAIST) | H18: LOW HIP ( 8" BELOW WAIST) | I18: LOW HIP ( 8" BELOW WAIST) | J18: LOW HIP ( 8" BELOW WAIST) | K18: LOW HIP ( 8" BELOW WAIST) | L18: LOW HIP ( 8" BELOW WAIST) | M18: LOW HIP ( 8" BELOW WAIST) | N18: LOW HIP ( 8" BELOW WAIST) | O18: LOW HIP ( 8" BELOW WAIST) | T18: 0 | X18: =T18+2 -> 2 | AG18: 0.375
B19: HEM STRAIGHT | C19: HEM STRAIGHT | D19: HEM STRAIGHT | E19: HEM STRAIGHT | F19: HEM STRAIGHT | G19: HEM STRAIGHT | H19: HEM STRAIGHT | I19: HEM STRAIGHT | J19: HEM STRAIGHT | K19: HEM STRAIGHT | L19: HEM STRAIGHT | M19: HEM STRAIGHT | N19: HEM STRAIGHT | O19: HEM STRAIGHT | T19: 29 | X19: =T19+2 -> 31 | AG19: 0.375
B20: HEM CURVE (FOLLOW) | C20: HEM CURVE (FOLLOW) | D20: HEM CURVE (FOLLOW) | E20: HEM CURVE (FOLLOW) | F20: HEM CURVE (FOLLOW) | G20: HEM CURVE (FOLLOW) | H20: HEM CURVE (FOLLOW) | I20: HEM CURVE (FOLLOW) | J20: HEM CURVE (FOLLOW) | K20: HEM CURVE (FOLLOW) | L20: HEM CURVE (FOLLOW) | M20: HEM CURVE (FOLLOW) | N20: HEM CURVE (FOLLOW) | O20: HEM CURVE (FOLLOW) | T20: 0 | AG20: 0.375
B21: ACROSS SHOULDERS ( TOTAL ) | C21: ACROSS SHOULDERS ( TOTAL ) | D21: ACROSS SHOULDERS ( TOTAL ) | E21: ACROSS SHOULDERS ( TOTAL ) | F21: ACROSS SHOULDERS ( TOTAL ) | G21: ACROSS SHOULDERS ( TOTAL ) | H21: ACROSS SHOULDERS ( TOTAL ) | I21: ACROSS SHOULDERS ( TOTAL ) | J21: ACROSS SHOULDERS ( TOTAL ) | K21: ACROSS SHOULDERS ( TOTAL ) | L21: ACROSS SHOULDERS ( TOTAL ) | M21: ACROSS SHOULDERS ( TOTAL ) | N21: ACROSS SHOULDERS ( TOTAL ) | O21: ACROSS SHOULDERS ( TOTAL ) | T21: 0 | X21: =T21+1 -> 1 | AG21: 0.375
B22: SHOULDER LENGTH AT SEAM | C22: SHOULDER LENGTH AT SEAM | D22: SHOULDER LENGTH AT SEAM | E22: SHOULDER LENGTH AT SEAM | F22: SHOULDER LENGTH AT SEAM | G22: SHOULDER LENGTH AT SEAM | H22: SHOULDER LENGTH AT SEAM | I22: SHOULDER LENGTH AT SEAM | J22: SHOULDER LENGTH AT SEAM | K22: SHOULDER LENGTH AT SEAM | L22: SHOULDER LENGTH AT SEAM | M22: SHOULDER LENGTH AT SEAM | N22: SHOULDER LENGTH AT SEAM | O22: SHOULDER LENGTH AT SEAM | T22: 0 | X22: 2.25 | AG22: 0.375
B23: ACROSS FRONT (5" BELOW HIGH SHOULDER POINT) | C23: ACROSS FRONT (5" BELOW HIGH SHOULDER POINT) | D23: ACROSS FRONT (5" BELOW HIGH SHOULDER POINT) | E23: ACROSS FRONT (5" BELOW HIGH SHOULDER POINT) | F23: ACROSS FRONT (5" BELOW HIGH SHOULDER POINT) | G23: ACROSS FRONT (5" BELOW HIGH SHOULDER POINT) | H23: ACROSS FRONT (5" BELOW HIGH SHOULDER POINT) | I23: ACROSS FRONT (5" BELOW HIGH SHOULDER POINT) | J23: ACROSS FRONT (5" BELOW HIGH SHOULDER POINT) | K23: ACROSS FRONT (5" BELOW HIGH SHOULDER POINT) | L23: ACROSS FRONT (5" BELOW HIGH SHOULDER POINT) | M23: ACROSS FRONT (5" BELOW HIGH SHOULDER POINT) | N23: ACROSS FRONT (5" BELOW HIGH SHOULDER POINT) | O23: ACROSS FRONT (5" BELOW HIGH SHOULDER POINT) | T23: 0 | X23: =T23+1 -> 1 | AG23: 0.375
B24: ACROSS BACK (5" BELOW HIGH SHOULDER POINT) | C24: ACROSS BACK (5" BELOW HIGH SHOULDER POINT) | D24: ACROSS BACK (5" BELOW HIGH SHOULDER POINT) | E24: ACROSS BACK (5" BELOW HIGH SHOULDER POINT) | F24: ACROSS BACK (5" BELOW HIGH SHOULDER POINT) | G24: ACROSS BACK (5" BELOW HIGH SHOULDER POINT) | H24: ACROSS BACK (5" BELOW HIGH SHOULDER POINT) | I24: ACROSS BACK (5" BELOW HIGH SHOULDER POINT) | J24: ACROSS BACK (5" BELOW HIGH SHOULDER POINT) | K24: ACROSS BACK (5" BELOW HIGH SHOULDER POINT) | L24: ACROSS BACK (5" BELOW HIGH SHOULDER POINT) | M24: ACROSS BACK (5" BELOW HIGH SHOULDER POINT) | N24: ACROSS BACK (5" BELOW HIGH SHOULDER POINT) | O24: ACROSS BACK (5" BELOW HIGH SHOULDER POINT) | T24: 0 | X24: =T24+1 -> 1 | AG24: 0.375
B25: OVERARM (FROM SLEEVE CAP TO HEM)-SHORT SLEEVE | C25: OVERARM (FROM SLEEVE CAP TO HEM)-SHORT SLEEVE | D25: OVERARM (FROM SLEEVE CAP TO HEM)-SHORT SLEEVE | E25: OVERARM (FROM SLEEVE CAP TO HEM)-SHORT SLEEVE | F25: OVERARM (FROM SLEEVE CAP TO HEM)-SHORT SLEEVE | G25: OVERARM (FROM SLEEVE CAP TO HEM)-SHORT SLEEVE | H25: OVERARM (FROM SLEEVE CAP TO HEM)-SHORT SLEEVE | I25: OVERARM (FROM SLEEVE CAP TO HEM)-SHORT SLEEVE | J25: OVERARM (FROM SLEEVE CAP TO HEM)-SHORT SLEEVE | K25: OVERARM (FROM SLEEVE CAP TO HEM)-SHORT SLEEVE | L25: OVERARM (FROM SLEEVE CAP TO HEM)-SHORT SLEEVE | M25: OVERARM (FROM SLEEVE CAP TO HEM)-SHORT SLEEVE | N25: OVERARM (FROM SLEEVE CAP TO HEM)-SHORT SLEEVE | O25: OVERARM (FROM SLEEVE CAP TO HEM)-SHORT SLEEVE | AG25: 0.25
B26: OVERARM (FROM SLEEVE CAP TO HEM)- 3/4 SLEEVE | C26: OVERARM (FROM SLEEVE CAP TO HEM)- 3/4 SLEEVE | D26: OVERARM (FROM SLEEVE CAP TO HEM)- 3/4 SLEEVE | E26: OVERARM (FROM SLEEVE CAP TO HEM)- 3/4 SLEEVE | F26: OVERARM (FROM SLEEVE CAP TO HEM)- 3/4 SLEEVE | G26: OVERARM (FROM SLEEVE CAP TO HEM)- 3/4 SLEEVE | H26: OVERARM (FROM SLEEVE CAP TO HEM)- 3/4 SLEEVE | I26: OVERARM (FROM SLEEVE CAP TO HEM)- 3/4 SLEEVE | J26: OVERARM (FROM SLEEVE CAP TO HEM)- 3/4 SLEEVE | K26: OVERARM (FROM SLEEVE CAP TO HEM)- 3/4 SLEEVE | L26: OVERARM (FROM SLEEVE CAP TO HEM)- 3/4 SLEEVE | M26: OVERARM (FROM SLEEVE CAP TO HEM)- 3/4 SLEEVE | N26: OVERARM (FROM SLEEVE CAP TO HEM)- 3/4 SLEEVE | O26: OVERARM (FROM SLEEVE CAP TO HEM)- 3/4 SLEEVE | AG26: 0.25
B27: OVERARM (FROM SLEEVE CAP TO HEM)- LONG SLEEVE | C27: OVERARM (FROM SLEEVE CAP TO HEM)- LONG SLEEVE | D27: OVERARM (FROM SLEEVE CAP TO HEM)- LONG SLEEVE | E27: OVERARM (FROM SLEEVE CAP TO HEM)- LONG SLEEVE | F27: OVERARM (FROM SLEEVE CAP TO HEM)- LONG SLEEVE | G27: OVERARM (FROM SLEEVE CAP TO HEM)- LONG SLEEVE | H27: OVERARM (FROM SLEEVE CAP TO HEM)- LONG SLEEVE | I27: OVERARM (FROM SLEEVE CAP TO HEM)- LONG SLEEVE | J27: OVERARM (FROM SLEEVE CAP TO HEM)- LONG SLEEVE | K27: OVERARM (FROM SLEEVE CAP TO HEM)- LONG SLEEVE | L27: OVERARM (FROM SLEEVE CAP TO HEM)- LONG SLEEVE | M27: OVERARM (FROM SLEEVE CAP TO HEM)- LONG SLEEVE | N27: OVERARM (FROM SLEEVE CAP TO HEM)- LONG SLEEVE | O27: OVERARM (FROM SLEEVE CAP TO HEM)- LONG SLEEVE | AG27: 0.375
B28: 1/2 ARMHOLE STRAIGHT | C28: 1/2 ARMHOLE STRAIGHT | D28: 1/2 ARMHOLE STRAIGHT | E28: 1/2 ARMHOLE STRAIGHT | F28: 1/2 ARMHOLE STRAIGHT | G28: 1/2 ARMHOLE STRAIGHT | H28: 1/2 ARMHOLE STRAIGHT | I28: 1/2 ARMHOLE STRAIGHT | J28: 1/2 ARMHOLE STRAIGHT | K28: 1/2 ARMHOLE STRAIGHT | L28: 1/2 ARMHOLE STRAIGHT | M28: 1/2 ARMHOLE STRAIGHT | N28: 1/2 ARMHOLE STRAIGHT | O28: 1/2 ARMHOLE STRAIGHT | T28: 0 | X28: =T28+0.75 -> 0.75 | AG28: 0.25
B29: BICEP (1" BELOW ARMHOLE) | C29: BICEP (1" BELOW ARMHOLE) | D29: BICEP (1" BELOW ARMHOLE) | E29: BICEP (1" BELOW ARMHOLE) | F29: BICEP (1" BELOW ARMHOLE) | G29: BICEP (1" BELOW ARMHOLE) | H29: BICEP (1" BELOW ARMHOLE) | I29: BICEP (1" BELOW ARMHOLE) | J29: BICEP (1" BELOW ARMHOLE) | K29: BICEP (1" BELOW ARMHOLE) | L29: BICEP (1" BELOW ARMHOLE) | M29: BICEP (1" BELOW ARMHOLE) | N29: BICEP (1" BELOW ARMHOLE) | O29: BICEP (1" BELOW ARMHOLE) | T29: 0 | AG29: 0.25
B30: ELBOW (8 1/2" BELOW ARMHOLE) | C30: ELBOW (8 1/2" BELOW ARMHOLE) | D30: ELBOW (8 1/2" BELOW ARMHOLE) | E30: ELBOW (8 1/2" BELOW ARMHOLE) | F30: ELBOW (8 1/2" BELOW ARMHOLE) | G30: ELBOW (8 1/2" BELOW ARMHOLE) | H30: ELBOW (8 1/2" BELOW ARMHOLE) | I30: ELBOW (8 1/2" BELOW ARMHOLE) | J30: ELBOW (8 1/2" BELOW ARMHOLE) | K30: ELBOW (8 1/2" BELOW ARMHOLE) | L30: ELBOW (8 1/2" BELOW ARMHOLE) | M30: ELBOW (8 1/2" BELOW ARMHOLE) | N30: ELBOW (8 1/2" BELOW ARMHOLE) | O30: ELBOW (8 1/2" BELOW ARMHOLE) | AG30: 0.25
B31: SHORT SLEEVE OPENING | C31: SHORT SLEEVE OPENING | D31: SHORT SLEEVE OPENING | E31: SHORT SLEEVE OPENING | F31: SHORT SLEEVE OPENING | G31: SHORT SLEEVE OPENING | H31: SHORT SLEEVE OPENING | I31: SHORT SLEEVE OPENING | J31: SHORT SLEEVE OPENING | K31: SHORT SLEEVE OPENING | L31: SHORT SLEEVE OPENING | M31: SHORT SLEEVE OPENING | N31: SHORT SLEEVE OPENING | O31: SHORT SLEEVE OPENING | AG31: 0.25
B32: 3/4 SLEEVE OPENING | C32: 3/4 SLEEVE OPENING | D32: 3/4 SLEEVE OPENING | E32: 3/4 SLEEVE OPENING | F32: 3/4 SLEEVE OPENING | G32: 3/4 SLEEVE OPENING | H32: 3/4 SLEEVE OPENING | I32: 3/4 SLEEVE OPENING | J32: 3/4 SLEEVE OPENING | K32: 3/4 SLEEVE OPENING | L32: 3/4 SLEEVE OPENING | M32: 3/4 SLEEVE OPENING | N32: 3/4 SLEEVE OPENING | O32: 3/4 SLEEVE OPENING | AG32: 0.25
B33: LONG SLEEVE OPENING | C33: LONG SLEEVE OPENING | D33: LONG SLEEVE OPENING | E33: LONG SLEEVE OPENING | F33: LONG SLEEVE OPENING | G33: LONG SLEEVE OPENING | H33: LONG SLEEVE OPENING | I33: LONG SLEEVE OPENING | J33: LONG SLEEVE OPENING | K33: LONG SLEEVE OPENING | L33: LONG SLEEVE OPENING | M33: LONG SLEEVE OPENING | N33: LONG SLEEVE OPENING | O33: LONG SLEEVE OPENING | AG33: 1/4
B34: SLEEVE CAP HEIGHT ( FROM TOP OF SLEEVE TO UNDERARM ) | C34: SLEEVE CAP HEIGHT ( FROM TOP OF SLEEVE TO UNDERARM ) | D34: SLEEVE CAP HEIGHT ( FROM TOP OF SLEEVE TO UNDERARM ) | E34: SLEEVE CAP HEIGHT ( FROM TOP OF SLEEVE TO UNDERARM ) | F34: SLEEVE CAP HEIGHT ( FROM TOP OF SLEEVE TO UNDERARM ) | G34: SLEEVE CAP HEIGHT ( FROM TOP OF SLEEVE TO UNDERARM ) | H34: SLEEVE CAP HEIGHT ( FROM TOP OF SLEEVE TO UNDERARM ) | I34: SLEEVE CAP HEIGHT ( FROM TOP OF SLEEVE TO UNDERARM ) | J34: SLEEVE CAP HEIGHT ( FROM TOP OF SLEEVE TO UNDERARM ) | K34: SLEEVE CAP HEIGHT ( FROM TOP OF SLEEVE TO UNDERARM ) | L34: SLEEVE CAP HEIGHT ( FROM TOP OF SLEEVE TO UNDERARM ) | M34: SLEEVE CAP HEIGHT ( FROM TOP OF SLEEVE TO UNDERARM ) | N34: SLEEVE CAP HEIGHT ( FROM TOP OF SLEEVE TO UNDERARM ) | O34: SLEEVE CAP HEIGHT ( FROM TOP OF SLEEVE TO UNDERARM ) | AG34: 0
B35: SHOULDER SLOPE ( HSP TO SHOULDER ARMHOLE SEAM ) | C35: SHOULDER SLOPE ( HSP TO SHOULDER ARMHOLE SEAM ) | D35: SHOULDER SLOPE ( HSP TO SHOULDER ARMHOLE SEAM ) | E35: SHOULDER SLOPE ( HSP TO SHOULDER ARMHOLE SEAM ) | F35: SHOULDER SLOPE ( HSP TO SHOULDER ARMHOLE SEAM ) | G35: SHOULDER SLOPE ( HSP TO SHOULDER ARMHOLE SEAM ) | H35: SHOULDER SLOPE ( HSP TO SHOULDER ARMHOLE SEAM ) | I35: SHOULDER SLOPE ( HSP TO SHOULDER ARMHOLE SEAM ) | J35: SHOULDER SLOPE ( HSP TO SHOULDER ARMHOLE SEAM ) | K35: SHOULDER SLOPE ( HSP TO SHOULDER ARMHOLE SEAM ) | L35: SHOULDER SLOPE ( HSP TO SHOULDER ARMHOLE SEAM ) | M35: SHOULDER SLOPE ( HSP TO SHOULDER ARMHOLE SEAM ) | N35: SHOULDER SLOPE ( HSP TO SHOULDER ARMHOLE SEAM ) | O35: SHOULDER SLOPE ( HSP TO SHOULDER ARMHOLE SEAM ) | AG35: 0
B36: NECK WIDTH (HSP TO HSP) ON BACK | C36: NECK WIDTH (HSP TO HSP) ON BACK | D36: NECK WIDTH (HSP TO HSP) ON BACK | E36: NECK WIDTH (HSP TO HSP) ON BACK | F36: NECK WIDTH (HSP TO HSP) ON BACK | G36: NECK WIDTH (HSP TO HSP) ON BACK | H36: NECK WIDTH (HSP TO HSP) ON BACK | I36: NECK WIDTH (HSP TO HSP) ON BACK | J36: NECK WIDTH (HSP TO HSP) ON BACK | K36: NECK WIDTH (HSP TO HSP) ON BACK | L36: NECK WIDTH (HSP TO HSP) ON BACK | M36: NECK WIDTH (HSP TO HSP) ON BACK | N36: NECK WIDTH (HSP TO HSP) ON BACK | O36: NECK WIDTH (HSP TO HSP) ON BACK | T36: 0 | X36: =T36+1/2 -> 0.5 | AG36: 0.25
B37: FRONT NECK DROP ( FROM HSP TO CENTER FRONT NECK EDGE OR SEAM ) | C37: FRONT NECK DROP ( FROM HSP TO CENTER FRONT NECK EDGE OR SEAM ) | D37: FRONT NECK DROP ( FROM HSP TO CENTER FRONT NECK EDGE OR SEAM ) | E37: FRONT NECK DROP ( FROM HSP TO CENTER FRONT NECK EDGE OR SEAM ) | F37: FRONT NECK DROP ( FROM HSP TO CENTER FRONT NECK EDGE OR SEAM ) | G37: FRONT NECK DROP ( FROM HSP TO CENTER FRONT NECK EDGE OR SEAM ) | H37: FRONT NECK DROP ( FROM HSP TO CENTER FRONT NECK EDGE OR SEAM ) | I37: FRONT NECK DROP ( FROM HSP TO CENTER FRONT NECK EDGE OR SEAM ) | J37: FRONT NECK DROP ( FROM HSP TO CENTER FRONT NECK EDGE OR SEAM ) | K37: FRONT NECK DROP ( FROM HSP TO CENTER FRONT NECK EDGE OR SEAM ) | L37: FRONT NECK DROP ( FROM HSP TO CENTER FRONT NECK EDGE OR SEAM ) | M37: FRONT NECK DROP ( FROM HSP TO CENTER FRONT NECK EDGE OR SEAM ) | N37: FRONT NECK DROP ( FROM HSP TO CENTER FRONT NECK EDGE OR SEAM ) | O37: FRONT NECK DROP ( FROM HSP TO CENTER FRONT NECK EDGE OR SEAM ) | T37: 0 | X37: =T37+0.375 -> 0.375 | AG37: 0.25
B38: BACK NECK DROP ( FROM HSP TO CENTER BACK NECK EDGE OR SEAM ) | C38: BACK NECK DROP ( FROM HSP TO CENTER BACK NECK EDGE OR SEAM ) | D38: BACK NECK DROP ( FROM HSP TO CENTER BACK NECK EDGE OR SEAM ) | E38: BACK NECK DROP ( FROM HSP TO CENTER BACK NECK EDGE OR SEAM ) | F38: BACK NECK DROP ( FROM HSP TO CENTER BACK NECK EDGE OR SEAM ) | G38: BACK NECK DROP ( FROM HSP TO CENTER BACK NECK EDGE OR SEAM ) | H38: BACK NECK DROP ( FROM HSP TO CENTER BACK NECK EDGE OR SEAM ) | I38: BACK NECK DROP ( FROM HSP TO CENTER BACK NECK EDGE OR SEAM ) | J38: BACK NECK DROP ( FROM HSP TO CENTER BACK NECK EDGE OR SEAM ) | K38: BACK NECK DROP ( FROM HSP TO CENTER BACK NECK EDGE OR SEAM ) | L38: BACK NECK DROP ( FROM HSP TO CENTER BACK NECK EDGE OR SEAM ) | M38: BACK NECK DROP ( FROM HSP TO CENTER BACK NECK EDGE OR SEAM ) | N38: BACK NECK DROP ( FROM HSP TO CENTER BACK NECK EDGE OR SEAM ) | O38: BACK NECK DROP ( FROM HSP TO CENTER BACK NECK EDGE OR SEAM ) | T38: 0 | X38: =T38+0 -> 0 | AG38: 0.25
B39: 1/2 NECK CIRCUMFERENCE | C39: 1/2 NECK CIRCUMFERENCE | D39: 1/2 NECK CIRCUMFERENCE | E39: 1/2 NECK CIRCUMFERENCE | F39: 1/2 NECK CIRCUMFERENCE | G39: 1/2 NECK CIRCUMFERENCE | H39: 1/2 NECK CIRCUMFERENCE | I39: 1/2 NECK CIRCUMFERENCE | J39: 1/2 NECK CIRCUMFERENCE | K39: 1/2 NECK CIRCUMFERENCE | L39: 1/2 NECK CIRCUMFERENCE | M39: 1/2 NECK CIRCUMFERENCE | N39: 1/2 NECK CIRCUMFERENCE | O39: 1/2 NECK CIRCUMFERENCE | AG39: 0.25
B40: COLLAR DEPTH ( AT C.B. NECK ) | C40: COLLAR DEPTH ( AT C.B. NECK ) | D40: COLLAR DEPTH ( AT C.B. NECK ) | E40: COLLAR DEPTH ( AT C.B. NECK ) | F40: COLLAR DEPTH ( AT C.B. NECK ) | G40: COLLAR DEPTH ( AT C.B. NECK ) | H40: COLLAR DEPTH ( AT C.B. NECK ) | I40: COLLAR DEPTH ( AT C.B. NECK ) | J40: COLLAR DEPTH ( AT C.B. NECK ) | K40: COLLAR DEPTH ( AT C.B. NECK ) | L40: COLLAR DEPTH ( AT C.B. NECK ) | M40: COLLAR DEPTH ( AT C.B. NECK ) | N40: COLLAR DEPTH ( AT C.B. NECK ) | O40: COLLAR DEPTH ( AT C.B. NECK ) | AG40: 0
B41: STAND DEPTH | C41: STAND DEPTH | D41: STAND DEPTH | E41: STAND DEPTH | F41: STAND DEPTH | G41: STAND DEPTH | H41: STAND DEPTH | I41: STAND DEPTH | J41: STAND DEPTH | K41: STAND DEPTH | L41: STAND DEPTH | M41: STAND DEPTH | N41: STAND DEPTH | O41: STAND DEPTH | AG41: 0
B42: COLLAR LENGTH | C42: COLLAR LENGTH | D42: COLLAR LENGTH | E42: COLLAR LENGTH | F42: COLLAR LENGTH | G42: COLLAR LENGTH | H42: COLLAR LENGTH | I42: COLLAR LENGTH | J42: COLLAR LENGTH | K42: COLLAR LENGTH | L42: COLLAR LENGTH | M42: COLLAR LENGTH | N42: COLLAR LENGTH | O42: COLLAR LENGTH | AG42: 0.25
B43: NECK TRIM DEPTH | C43: NECK TRIM DEPTH | D43: NECK TRIM DEPTH | E43: NECK TRIM DEPTH | F43: NECK TRIM DEPTH | G43: NECK TRIM DEPTH | H43: NECK TRIM DEPTH | I43: NECK TRIM DEPTH | J43: NECK TRIM DEPTH | K43: NECK TRIM DEPTH | L43: NECK TRIM DEPTH | M43: NECK TRIM DEPTH | N43: NECK TRIM DEPTH | O43: NECK TRIM DEPTH | AG43: 0
B44: CUFF DEPTH | C44: CUFF DEPTH | D44: CUFF DEPTH | E44: CUFF DEPTH | F44: CUFF DEPTH | G44: CUFF DEPTH | H44: CUFF DEPTH | I44: CUFF DEPTH | J44: CUFF DEPTH | K44: CUFF DEPTH | L44: CUFF DEPTH | M44: CUFF DEPTH | N44: CUFF DEPTH | O44: CUFF DEPTH | AG44: 0
B45: SLEEVE HEM DEPTH | C45: SLEEVE HEM DEPTH | D45: SLEEVE HEM DEPTH | E45: SLEEVE HEM DEPTH | F45: SLEEVE HEM DEPTH | G45: SLEEVE HEM DEPTH | H45: SLEEVE HEM DEPTH | I45: SLEEVE HEM DEPTH | J45: SLEEVE HEM DEPTH | K45: SLEEVE HEM DEPTH | L45: SLEEVE HEM DEPTH | M45: SLEEVE HEM DEPTH | N45: SLEEVE HEM DEPTH | O45: SLEEVE HEM DEPTH | AG45: 0
B46: BOTTOM HEM DEPTH | C46: BOTTOM HEM DEPTH | D46: BOTTOM HEM DEPTH | E46: BOTTOM HEM DEPTH | F46: BOTTOM HEM DEPTH | G46: BOTTOM HEM DEPTH | H46: BOTTOM HEM DEPTH | I46: BOTTOM HEM DEPTH | J46: BOTTOM HEM DEPTH | K46: BOTTOM HEM DEPTH | L46: BOTTOM HEM DEPTH | M46: BOTTOM HEM DEPTH | N46: BOTTOM HEM DEPTH | O46: BOTTOM HEM DEPTH | AG46: 0
B47: HSP TO BUST POINT | C47: HSP TO BUST POINT | D47: HSP TO BUST POINT | E47: HSP TO BUST POINT | F47: HSP TO BUST POINT | G47: HSP TO BUST POINT | H47: HSP TO BUST POINT | I47: HSP TO BUST POINT | J47: HSP TO BUST POINT | K47: HSP TO BUST POINT | L47: HSP TO BUST POINT | M47: HSP TO BUST POINT | N47: HSP TO BUST POINT | O47: HSP TO BUST POINT | AG47: 0
B52: Sample Approved?
B53: If sample is NOT approved, then submit 2nd Pre-Production Samples. If sample is APPROVED, then submit Production Samples.

Sheet Pre-Production Sample (hidden)
L2: Create Date: | Q2: ='ORIGINAL PHOTO'!Q2:W2 -> MARCH 15/2017
L3: Vendor Name: | Q3: ='ORIGINAL PHOTO'!Q3:AI3 -> 0
L4: Vndr.Item No.: | Q4: ='ORIGINAL PHOTO'!Q4:W4 -> 0 | AA4: GC Item No.: | AE4: ='ORIGINAL PHOTO'!AE4:AI4 -> 0
L5: Size Range: | Q5: ='ORIGINAL PHOTO'!Q5:W5 -> S-M-L-XL | AA5: Season: | AD5: ='ORIGINAL PHOTO'!AD5:AI5 -> Spring Summer 2018
L6: Description: | Q6: ='ORIGINAL PHOTO'!Q6:AI6 -> MEN'S LONG SLEEVE ZIP FRONT SCOOP HEM HOODIE WITH LINED HOOD
B8: PRE-PRODUCTION COMMENTS -- MEN'S TOP | T8: Date: | AN8: L
B9: (Measurements on flat / inches) | P9: S | T9: M | X9: L | AB9: XL | AG9: Tolerance + / - (on flat) | AN9: LXL
AN10: M
B11: BACK LENGTH FROM (HIGH SHOULDER POINT) | C11: BACK LENGTH FROM (HIGH SHOULDER POINT) | D11: BACK LENGTH FROM (HIGH SHOULDER POINT) | E11: BACK LENGTH FROM (HIGH SHOULDER POINT) | F11: BACK LENGTH FROM (HIGH SHOULDER POINT) | G11: BACK LENGTH FROM (HIGH SHOULDER POINT) | H11: BACK LENGTH FROM (HIGH SHOULDER POINT) | I11: BACK LENGTH FROM (HIGH SHOULDER POINT) | J11: BACK LENGTH FROM (HIGH SHOULDER POINT) | K11: BACK LENGTH FROM (HIGH SHOULDER POINT) | L11: BACK LENGTH FROM (HIGH SHOULDER POINT) | M11: BACK LENGTH FROM (HIGH SHOULDER POINT) | N11: BACK LENGTH FROM (HIGH SHOULDER POINT) | O11: BACK LENGTH FROM (HIGH SHOULDER POINT) | AG11: 0.375 | AN11: S
B12: CENTER BACK LENGTH ( FROM NECK TO HEM ) | C12: CENTER BACK LENGTH ( FROM NECK TO HEM ) | D12: CENTER BACK LENGTH ( FROM NECK TO HEM ) | E12: CENTER BACK LENGTH ( FROM NECK TO HEM ) | F12: CENTER BACK LENGTH ( FROM NECK TO HEM ) | G12: CENTER BACK LENGTH ( FROM NECK TO HEM ) | H12: CENTER BACK LENGTH ( FROM NECK TO HEM ) | I12: CENTER BACK LENGTH ( FROM NECK TO HEM ) | J12: CENTER BACK LENGTH ( FROM NECK TO HEM ) | K12: CENTER BACK LENGTH ( FROM NECK TO HEM ) | L12: CENTER BACK LENGTH ( FROM NECK TO HEM ) | M12: CENTER BACK LENGTH ( FROM NECK TO HEM ) | N12: CENTER BACK LENGTH ( FROM NECK TO HEM ) | O12: CENTER BACK LENGTH ( FROM NECK TO HEM ) | AG12: 0.375 | AN12: SM
B13: FRONT LENGTH FROM (HIGH SHOULDER POINT) | C13: FRONT LENGTH FROM (HIGH SHOULDER POINT) | D13: FRONT LENGTH FROM (HIGH SHOULDER POINT) | E13: FRONT LENGTH FROM (HIGH SHOULDER POINT) | F13: FRONT LENGTH FROM (HIGH SHOULDER POINT) | G13: FRONT LENGTH FROM (HIGH SHOULDER POINT) | H13: FRONT LENGTH FROM (HIGH SHOULDER POINT) | I13: FRONT LENGTH FROM (HIGH SHOULDER POINT) | J13: FRONT LENGTH FROM (HIGH SHOULDER POINT) | K13: FRONT LENGTH FROM (HIGH SHOULDER POINT) | L13: FRONT LENGTH FROM (HIGH SHOULDER POINT) | M13: FRONT LENGTH FROM (HIGH SHOULDER POINT) | N13: FRONT LENGTH FROM (HIGH SHOULDER POINT) | O13: FRONT LENGTH FROM (HIGH SHOULDER POINT) | AG13: 0.375 | AN13: XL
B14: FRONT LENGTH (FROM CENTRE FRONT NECK TO HEM) | C14: FRONT LENGTH (FROM CENTRE FRONT NECK TO HEM) | D14: FRONT LENGTH (FROM CENTRE FRONT NECK TO HEM) | E14: FRONT LENGTH (FROM CENTRE FRONT NECK TO HEM) | F14: FRONT LENGTH (FROM CENTRE FRONT NECK TO HEM) | G14: FRONT LENGTH (FROM CENTRE FRONT NECK TO HEM) | H14: FRONT LENGTH (FROM CENTRE FRONT NECK TO HEM) | I14: FRONT LENGTH (FROM CENTRE FRONT NECK TO HEM) | J14: FRONT LENGTH (FROM CENTRE FRONT NECK TO HEM) | K14: FRONT LENGTH (FROM CENTRE FRONT NECK TO HEM) | L14: FRONT LENGTH (FROM CENTRE FRONT NECK TO HEM) | M14: FRONT LENGTH (FROM CENTRE FRONT NECK TO HEM) | N14: FRONT LENGTH (FROM CENTRE FRONT NECK TO HEM) | O14: FRONT LENGTH (FROM CENTRE FRONT NECK TO HEM) | AG14: 0.375 | AN14: XXL
B15: CHEST (1" BELOW ARMHOLE) | C15: CHEST (1" BELOW ARMHOLE) | D15: CHEST (1" BELOW ARMHOLE) | E15: CHEST (1" BELOW ARMHOLE) | F15: CHEST (1" BELOW ARMHOLE) | G15: CHEST (1" BELOW ARMHOLE) | H15: CHEST (1" BELOW ARMHOLE) | I15: CHEST (1" BELOW ARMHOLE) | J15: CHEST (1" BELOW ARMHOLE) | K15: CHEST (1" BELOW ARMHOLE) | L15: CHEST (1" BELOW ARMHOLE) | M15: CHEST (1" BELOW ARMHOLE) | N15: CHEST (1" BELOW ARMHOLE) | O15: CHEST (1" BELOW ARMHOLE) | AG15: 0.375 | AN15: XXXL
B16: WAIST (16 1/2" BELOW HIGH SHOULDER POINT) | C16: WAIST (16 1/2" BELOW HIGH SHOULDER POINT) | D16: WAIST (16 1/2" BELOW HIGH SHOULDER POINT) | E16: WAIST (16 1/2" BELOW HIGH SHOULDER POINT) | F16: WAIST (16 1/2" BELOW HIGH SHOULDER POINT) | G16: WAIST (16 1/2" BELOW HIGH SHOULDER POINT) | H16: WAIST (16 1/2" BELOW HIGH SHOULDER POINT) | I16: WAIST (16 1/2" BELOW HIGH SHOULDER POINT) | J16: WAIST (16 1/2" BELOW HIGH SHOULDER POINT) | K16: WAIST (16 1/2" BELOW HIGH SHOULDER POINT) | L16: WAIST (16 1/2" BELOW HIGH SHOULDER POINT) | M16: WAIST (16 1/2" BELOW HIGH SHOULDER POINT) | N16: WAIST (16 1/2" BELOW HIGH SHOULDER POINT) | O16: WAIST (16 1/2" BELOW HIGH SHOULDER POINT) | AG16: 0.375
B17: TOP HIP ( 3" BELOW WAIST ) | C17: TOP HIP ( 3" BELOW WAIST ) | D17: TOP HIP ( 3" BELOW WAIST ) | E17: TOP HIP ( 3" BELOW WAIST ) | F17: TOP HIP ( 3" BELOW WAIST ) | G17: TOP HIP ( 3" BELOW WAIST ) | H17: TOP HIP ( 3" BELOW WAIST ) | I17: TOP HIP ( 3" BELOW WAIST ) | J17: TOP HIP ( 3" BELOW WAIST ) | K17: TOP HIP ( 3" BELOW WAIST ) | L17: TOP HIP ( 3" BELOW WAIST ) | M17: TOP HIP ( 3" BELOW WAIST ) | N17: TOP HIP ( 3" BELOW WAIST ) | O17: TOP HIP ( 3" BELOW WAIST ) | AG17: 0.375
B18: LOW HIP ( 8" BELOW WAIST) | C18: LOW HIP ( 8" BELOW WAIST) | D18: LOW HIP ( 8" BELOW WAIST) | E18: LOW HIP ( 8" BELOW WAIST) | F18: LOW HIP ( 8" BELOW WAIST) | G18: LOW HIP ( 8" BELOW WAIST) | H18: LOW HIP ( 8" BELOW WAIST) | I18: LOW HIP ( 8" BELOW WAIST) | J18: LOW HIP ( 8" BELOW WAIST) | K18: LOW HIP ( 8" BELOW WAIST) | L18: LOW HIP ( 8" BELOW WAIST) | M18: LOW HIP ( 8" BELOW WAIST) | N18: LOW HIP ( 8" BELOW WAIST) | O18: LOW HIP ( 8" BELOW WAIST) | AG18: 0.375
B19: HEM STRAIGHT | C19: HEM STRAIGHT | D19: HEM STRAIGHT | E19: HEM STRAIGHT | F19: HEM STRAIGHT | G19: HEM STRAIGHT | H19: HEM STRAIGHT | I19: HEM STRAIGHT | J19: HEM STRAIGHT | K19: HEM STRAIGHT | L19: HEM STRAIGHT | M19: HEM STRAIGHT | N19: HEM STRAIGHT | O19: HEM STRAIGHT | AG19: 0.375
B20: HEM CURVE (FOLLOW) | C20: HEM CURVE (FOLLOW) | D20: HEM CURVE (FOLLOW) | E20: HEM CURVE (FOLLOW) | F20: HEM CURVE (FOLLOW) | G20: HEM CURVE (FOLLOW) | H20: HEM CURVE (FOLLOW) | I20: HEM CURVE (FOLLOW) | J20: HEM CURVE (FOLLOW) | K20: HEM CURVE (FOLLOW) | L20: HEM CURVE (FOLLOW) | M20: HEM CURVE (FOLLOW) | N20: HEM CURVE (FOLLOW) | O20: HEM CURVE (FOLLOW) | AG20: 0.375
B21: ACROSS SHOULDERS ( TOTAL ) | C21: ACROSS SHOULDERS ( TOTAL ) | D21: ACROSS SHOULDERS ( TOTAL ) | E21: ACROSS SHOULDERS ( TOTAL ) | F21: ACROSS SHOULDERS ( TOTAL ) | G21: ACROSS SHOULDERS ( TOTAL ) | H21: ACROSS SHOULDERS ( TOTAL ) | I21: ACROSS SHOULDERS ( TOTAL ) | J21: ACROSS SHOULDERS ( TOTAL ) | K21: ACROSS SHOULDERS ( TOTAL ) | L21: ACROSS SHOULDERS ( TOTAL ) | M21: ACROSS SHOULDERS ( TOTAL ) | N21: ACROSS SHOULDERS ( TOTAL ) | O21: ACROSS SHOULDERS ( TOTAL ) | AG21: 0.375
B22: SHOULDER LENGTH AT SEAM | C22: SHOULDER LENGTH AT SEAM | D22: SHOULDER LENGTH AT SEAM | E22: SHOULDER LENGTH AT SEAM | F22: SHOULDER LENGTH AT SEAM | G22: SHOULDER LENGTH AT SEAM | H22: SHOULDER LENGTH AT SEAM | I22: SHOULDER LENGTH AT SEAM | J22: SHOULDER LENGTH AT SEAM | K22: SHOULDER LENGTH AT SEAM | L22: SHOULDER LENGTH AT SEAM | M22: SHOULDER LENGTH AT SEAM | N22: SHOULDER LENGTH AT SEAM | O22: SHOULDER LENGTH AT SEAM | AG22: 0.375
B23: ACROSS FRONT (5" BELOW HIGH SHOULDER POINT) | C23: ACROSS FRONT (5" BELOW HIGH SHOULDER POINT) | D23: ACROSS FRONT (5" BELOW HIGH SHOULDER POINT) | E23: ACROSS FRONT (5" BELOW HIGH SHOULDER POINT) | F23: ACROSS FRONT (5" BELOW HIGH SHOULDER POINT) | G23: ACROSS FRONT (5" BELOW HIGH SHOULDER POINT) | H23: ACROSS FRONT (5" BELOW HIGH SHOULDER POINT) | I23: ACROSS FRONT (5" BELOW HIGH SHOULDER POINT) | J23: ACROSS FRONT (5" BELOW HIGH SHOULDER POINT) | K23: ACROSS FRONT (5" BELOW HIGH SHOULDER POINT) | L23: ACROSS FRONT (5" BELOW HIGH SHOULDER POINT) | M23: ACROSS FRONT (5" BELOW HIGH SHOULDER POINT) | N23: ACROSS FRONT (5" BELOW HIGH SHOULDER POINT) | O23: ACROSS FRONT (5" BELOW HIGH SHOULDER POINT) | AG23: 0.375
B24: ACROSS BACK (5" BELOW HIGH SHOULDER POINT) | C24: ACROSS BACK (5" BELOW HIGH SHOULDER POINT) | D24: ACROSS BACK (5" BELOW HIGH SHOULDER POINT) | E24: ACROSS BACK (5" BELOW HIGH SHOULDER POINT) | F24: ACROSS BACK (5" BELOW HIGH SHOULDER POINT) | G24: ACROSS BACK (5" BELOW HIGH SHOULDER POINT) | H24: ACROSS BACK (5" BELOW HIGH SHOULDER POINT) | I24: ACROSS BACK (5" BELOW HIGH SHOULDER POINT) | J24: ACROSS BACK (5" BELOW HIGH SHOULDER POINT) | K24: ACROSS BACK (5" BELOW HIGH SHOULDER POINT) | L24: ACROSS BACK (5" BELOW HIGH SHOULDER POINT) | M24: ACROSS BACK (5" BELOW HIGH SHOULDER POINT) | N24: ACROSS BACK (5" BELOW HIGH SHOULDER POINT) | O24: ACROSS BACK (5" BELOW HIGH SHOULDER POINT) | AG24: 0.25
B25: OVERARM (FROM SLEEVE CAP TO HEM)-SHORT SLEEVE | C25: OVERARM (FROM SLEEVE CAP TO HEM)-SHORT SLEEVE | D25: OVERARM (FROM SLEEVE CAP TO HEM)-SHORT SLEEVE | E25: OVERARM (FROM SLEEVE CAP TO HEM)-SHORT SLEEVE | F25: OVERARM (FROM SLEEVE CAP TO HEM)-SHORT SLEEVE | G25: OVERARM (FROM SLEEVE CAP TO HEM)-SHORT SLEEVE | H25: OVERARM (FROM SLEEVE CAP TO HEM)-SHORT SLEEVE | I25: OVERARM (FROM SLEEVE CAP TO HEM)-SHORT SLEEVE | J25: OVERARM (FROM SLEEVE CAP TO HEM)-SHORT SLEEVE | K25: OVERARM (FROM SLEEVE CAP TO HEM)-SHORT SLEEVE | L25: OVERARM (FROM SLEEVE CAP TO HEM)-SHORT SLEEVE | M25: OVERARM (FROM SLEEVE CAP TO HEM)-SHORT SLEEVE | N25: OVERARM (FROM SLEEVE CAP TO HEM)-SHORT SLEEVE | O25: OVERARM (FROM SLEEVE CAP TO HEM)-SHORT SLEEVE | AG25: 0.25
B26: OVERARM (FROM SLEEVE CAP TO HEM)- 3/4 SLEEVE | C26: OVERARM (FROM SLEEVE CAP TO HEM)- 3/4 SLEEVE | D26: OVERARM (FROM SLEEVE CAP TO HEM)- 3/4 SLEEVE | E26: OVERARM (FROM SLEEVE CAP TO HEM)- 3/4 SLEEVE | F26: OVERARM (FROM SLEEVE CAP TO HEM)- 3/4 SLEEVE | G26: OVERARM (FROM SLEEVE CAP TO HEM)- 3/4 SLEEVE | H26: OVERARM (FROM SLEEVE CAP TO HEM)- 3/4 SLEEVE | I26: OVERARM (FROM SLEEVE CAP TO HEM)- 3/4 SLEEVE | J26: OVERARM (FROM SLEEVE CAP TO HEM)- 3/4 SLEEVE | K26: OVERARM (FROM SLEEVE CAP TO HEM)- 3/4 SLEEVE | L26: OVERARM (FROM SLEEVE CAP TO HEM)- 3/4 SLEEVE | M26: OVERARM (FROM SLEEVE CAP TO HEM)- 3/4 SLEEVE | N26: OVERARM (FROM SLEEVE CAP TO HEM)- 3/4 SLEEVE | O26: OVERARM (FROM SLEEVE CAP TO HEM)- 3/4 SLEEVE | AG26: 0.375
B27: OVERARM (FROM SLEEVE CAP TO HEM)- LONG SLEEVE | C27: OVERARM (FROM SLEEVE CAP TO HEM)- LONG SLEEVE | D27: OVERARM (FROM SLEEVE CAP TO HEM)- LONG SLEEVE | E27: OVERARM (FROM SLEEVE CAP TO HEM)- LONG SLEEVE | F27: OVERARM (FROM SLEEVE CAP TO HEM)- LONG SLEEVE | G27: OVERARM (FROM SLEEVE CAP TO HEM)- LONG SLEEVE | H27: OVERARM (FROM SLEEVE CAP TO HEM)- LONG SLEEVE | I27: OVERARM (FROM SLEEVE CAP TO HEM)- LONG SLEEVE | J27: OVERARM (FROM SLEEVE CAP TO HEM)- LONG SLEEVE | K27: OVERARM (FROM SLEEVE CAP TO HEM)- LONG SLEEVE | L27: OVERARM (FROM SLEEVE CAP TO HEM)- LONG SLEEVE | M27: OVERARM (FROM SLEEVE CAP TO HEM)- LONG SLEEVE | N27: OVERARM (FROM SLEEVE CAP TO HEM)- LONG SLEEVE | O27: OVERARM (FROM SLEEVE CAP TO HEM)- LONG SLEEVE | AG27: 0.25
B28: 1/2 ARMHOLE STRAIGHT | C28: 1/2 ARMHOLE STRAIGHT | D28: 1/2 ARMHOLE STRAIGHT | E28: 1/2 ARMHOLE STRAIGHT | F28: 1/2 ARMHOLE STRAIGHT | G28: 1/2 ARMHOLE STRAIGHT | H28: 1/2 ARMHOLE STRAIGHT | I28: 1/2 ARMHOLE STRAIGHT | J28: 1/2 ARMHOLE STRAIGHT | K28: 1/2 ARMHOLE STRAIGHT | L28: 1/2 ARMHOLE STRAIGHT | M28: 1/2 ARMHOLE STRAIGHT | N28: 1/2 ARMHOLE STRAIGHT | O28: 1/2 ARMHOLE STRAIGHT | AG28: 0.25
B29: BICEP (1" BELOW ARMHOLE) | C29: BICEP (1" BELOW ARMHOLE) | D29: BICEP (1" BELOW ARMHOLE) | E29: BICEP (1" BELOW ARMHOLE) | F29: BICEP (1" BELOW ARMHOLE) | G29: BICEP (1" BELOW ARMHOLE) | H29: BICEP (1" BELOW ARMHOLE) | I29: BICEP (1" BELOW ARMHOLE) | J29: BICEP (1" BELOW ARMHOLE) | K29: BICEP (1" BELOW ARMHOLE) | L29: BICEP (1" BELOW ARMHOLE) | M29: BICEP (1" BELOW ARMHOLE) | N29: BICEP (1" BELOW ARMHOLE) | O29: BICEP (1" BELOW ARMHOLE) | AG29: 0.25
B30: ELBOW (8 1/2" BELOW ARMHOLE) | C30: ELBOW (8 1/2" BELOW ARMHOLE) | D30: ELBOW (8 1/2" BELOW ARMHOLE) | E30: ELBOW (8 1/2" BELOW ARMHOLE) | F30: ELBOW (8 1/2" BELOW ARMHOLE) | G30: ELBOW (8 1/2" BELOW ARMHOLE) | H30: ELBOW (8 1/2" BELOW ARMHOLE) | I30: ELBOW (8 1/2" BELOW ARMHOLE) | J30: ELBOW (8 1/2" BELOW ARMHOLE) | K30: ELBOW (8 1/2" BELOW ARMHOLE) | L30: ELBOW (8 1/2" BELOW ARMHOLE) | M30: ELBOW (8 1/2" BELOW ARMHOLE) | N30: ELBOW (8 1/2" BELOW ARMHOLE) | O30: ELBOW (8 1/2" BELOW ARMHOLE) | AG30: 0.25
B31: SHORT SLEEVE OPENING | C31: SHORT SLEEVE OPENING | D31: SHORT SLEEVE OPENING | E31: SHORT SLEEVE OPENING | F31: SHORT SLEEVE OPENING | G31: SHORT SLEEVE OPENING | H31: SHORT SLEEVE OPENING | I31: SHORT SLEEVE OPENING | J31: SHORT SLEEVE OPENING | K31: SHORT SLEEVE OPENING | L31: SHORT SLEEVE OPENING | M31: SHORT SLEEVE OPENING | N31: SHORT SLEEVE OPENING | O31: SHORT SLEEVE OPENING | AG31: 0.25
B32: 3/4 SLEEVE OPENING | C32: 3/4 SLEEVE OPENING | D32: 3/4 SLEEVE OPENING | E32: 3/4 SLEEVE OPENING | F32: 3/4 SLEEVE OPENING | G32: 3/4 SLEEVE OPENING | H32: 3/4 SLEEVE OPENING | I32: 3/4 SLEEVE OPENING | J32: 3/4 SLEEVE OPENING | K32: 3/4 SLEEVE OPENING | L32: 3/4 SLEEVE OPENING | M32: 3/4 SLEEVE OPENING | N32: 3/4 SLEEVE OPENING | O32: 3/4 SLEEVE OPENING | AG32: 0.25
B33: LONG SLEEVE OPENING | C33: LONG SLEEVE OPENING | D33: LONG SLEEVE OPENING | E33: LONG SLEEVE OPENING | F33: LONG SLEEVE OPENING | G33: LONG SLEEVE OPENING | H33: LONG SLEEVE OPENING | I33: LONG SLEEVE OPENING | J33: LONG SLEEVE OPENING | K33: LONG SLEEVE OPENING | L33: LONG SLEEVE OPENING | M33: LONG SLEEVE OPENING | N33: LONG SLEEVE OPENING | O33: LONG SLEEVE OPENING | AG33: 1/4
B34: SLEEVE CAP HEIGHT ( FROM TOP OF SLEEVE TO UNDERARM ) | C34: SLEEVE CAP HEIGHT ( FROM TOP OF SLEEVE TO UNDERARM ) | D34: SLEEVE CAP HEIGHT ( FROM TOP OF SLEEVE TO UNDERARM ) | E34: SLEEVE CAP HEIGHT ( FROM TOP OF SLEEVE TO UNDERARM ) | F34: SLEEVE CAP HEIGHT ( FROM TOP OF SLEEVE TO UNDERARM ) | G34: SLEEVE CAP HEIGHT ( FROM TOP OF SLEEVE TO UNDERARM ) | H34: SLEEVE CAP HEIGHT ( FROM TOP OF SLEEVE TO UNDERARM ) | I34: SLEEVE CAP HEIGHT ( FROM TOP OF SLEEVE TO UNDERARM ) | J34: SLEEVE CAP HEIGHT ( FROM TOP OF SLEEVE TO UNDERARM ) | K34: SLEEVE CAP HEIGHT ( FROM TOP OF SLEEVE TO UNDERARM ) | L34: SLEEVE CAP HEIGHT ( FROM TOP OF SLEEVE TO UNDERARM ) | M34: SLEEVE CAP HEIGHT ( FROM TOP OF SLEEVE TO UNDERARM ) | N34: SLEEVE CAP HEIGHT ( FROM TOP OF SLEEVE TO UNDERARM ) | O34: SLEEVE CAP HEIGHT ( FROM TOP OF SLEEVE TO UNDERARM ) | AG34: 0
B35: SHOULDER SLOPE ( HSP TO SHOULDER ARMHOLE SEAM ) | C35: SHOULDER SLOPE ( HSP TO SHOULDER ARMHOLE SEAM ) | D35: SHOULDER SLOPE ( HSP TO SHOULDER ARMHOLE SEAM ) | E35: SHOULDER SLOPE ( HSP TO SHOULDER ARMHOLE SEAM ) | F35: SHOULDER SLOPE ( HSP TO SHOULDER ARMHOLE SEAM ) | G35: SHOULDER SLOPE ( HSP TO SHOULDER ARMHOLE SEAM ) | H35: SHOULDER SLOPE ( HSP TO SHOULDER ARMHOLE SEAM ) | I35: SHOULDER SLOPE ( HSP TO SHOULDER ARMHOLE SEAM ) | J35: SHOULDER SLOPE ( HSP TO SHOULDER ARMHOLE SEAM ) | K35: SHOULDER SLOPE ( HSP TO SHOULDER ARMHOLE SEAM ) | L35: SHOULDER SLOPE ( HSP TO SHOULDER ARMHOLE SEAM ) | M35: SHOULDER SLOPE ( HSP TO SHOULDER ARMHOLE SEAM ) | N35: SHOULDER SLOPE ( HSP TO SHOULDER ARMHOLE SEAM ) | O35: SHOULDER SLOPE ( HSP TO SHOULDER ARMHOLE SEAM ) | AG35: 0
B36: NECK WIDTH (HSP TO HSP) ON BACK | C36: NECK WIDTH (HSP TO HSP) ON BACK | D36: NECK WIDTH (HSP TO HSP) ON BACK | E36: NECK WIDTH (HSP TO HSP) ON BACK | F36: NECK WIDTH (HSP TO HSP) ON BACK | G36: NECK WIDTH (HSP TO HSP) ON BACK | H36: NECK WIDTH (HSP TO HSP) ON BACK | I36: NECK WIDTH (HSP TO HSP) ON BACK | J36: NECK WIDTH (HSP TO HSP) ON BACK | K36: NECK WIDTH (HSP TO HSP) ON BACK | L36: NECK WIDTH (HSP TO HSP) ON BACK | M36: NECK WIDTH (HSP TO HSP) ON BACK | N36: NECK WIDTH (HSP TO HSP) ON BACK | O36: NECK WIDTH (HSP TO HSP) ON BACK | AG36: 0.25
B37: FRONT NECK DROP ( FROM HSP TO CENTER FRONT NECK EDGE OR SEAM ) | C37: FRONT NECK DROP ( FROM HSP TO CENTER FRONT NECK EDGE OR SEAM ) | D37: FRONT NECK DROP ( FROM HSP TO CENTER FRONT NECK EDGE OR SEAM ) | E37: FRONT NECK DROP ( FROM HSP TO CENTER FRONT NECK EDGE OR SEAM ) | F37: FRONT NECK DROP ( FROM HSP TO CENTER FRONT NECK EDGE OR SEAM ) | G37: FRONT NECK DROP ( FROM HSP TO CENTER FRONT NECK EDGE OR SEAM ) | H37: FRONT NECK DROP ( FROM HSP TO CENTER FRONT NECK EDGE OR SEAM ) | I37: FRONT NECK DROP ( FROM HSP TO CENTER FRONT NECK EDGE OR SEAM ) | J37: FRONT NECK DROP ( FROM HSP TO CENTER FRONT NECK EDGE OR SEAM ) | K37: FRONT NECK DROP ( FROM HSP TO CENTER FRONT NECK EDGE OR SEAM ) | L37: FRONT NECK DROP ( FROM HSP TO CENTER FRONT NECK EDGE OR SEAM ) | M37: FRONT NECK DROP ( FROM HSP TO CENTER FRONT NECK EDGE OR SEAM ) | N37: FRONT NECK DROP ( FROM HSP TO CENTER FRONT NECK EDGE OR SEAM ) | O37: FRONT NECK DROP ( FROM HSP TO CENTER FRONT NECK EDGE OR SEAM ) | AG37: 0.25
B38: BACK NECK DROP ( FROM HSP TO CENTER BACK NECK EDGE OR SEAM ) | C38: BACK NECK DROP ( FROM HSP TO CENTER BACK NECK EDGE OR SEAM ) | D38: BACK NECK DROP ( FROM HSP TO CENTER BACK NECK EDGE OR SEAM ) | E38: BACK NECK DROP ( FROM HSP TO CENTER BACK NECK EDGE OR SEAM ) | F38: BACK NECK DROP ( FROM HSP TO CENTER BACK NECK EDGE OR SEAM ) | G38: BACK NECK DROP ( FROM HSP TO CENTER BACK NECK EDGE OR SEAM ) | H38: BACK NECK DROP ( FROM HSP TO CENTER BACK NECK EDGE OR SEAM ) | I38: BACK NECK DROP ( FROM HSP TO CENTER BACK NECK EDGE OR SEAM ) | J38: BACK NECK DROP ( FROM HSP TO CENTER BACK NECK EDGE OR SEAM ) | K38: BACK NECK DROP ( FROM HSP TO CENTER BACK NECK EDGE OR SEAM ) | L38: BACK NECK DROP ( FROM HSP TO CENTER BACK NECK EDGE OR SEAM ) | M38: BACK NECK DROP ( FROM HSP TO CENTER BACK NECK EDGE OR SEAM ) | N38: BACK NECK DROP ( FROM HSP TO CENTER BACK NECK EDGE OR SEAM ) | O38: BACK NECK DROP ( FROM HSP TO CENTER BACK NECK EDGE OR SEAM ) | AG38: 0.25
B39: 1/2 NECK CIRCUMFERENCE | C39: 1/2 NECK CIRCUMFERENCE | D39: 1/2 NECK CIRCUMFERENCE | E39: 1/2 NECK CIRCUMFERENCE | F39: 1/2 NECK CIRCUMFERENCE | G39: 1/2 NECK CIRCUMFERENCE | H39: 1/2 NECK CIRCUMFERENCE | I39: 1/2 NECK CIRCUMFERENCE | J39: 1/2 NECK CIRCUMFERENCE | K39: 1/2 NECK CIRCUMFERENCE | L39: 1/2 NECK CIRCUMFERENCE | M39: 1/2 NECK CIRCUMFERENCE | N39: 1/2 NECK CIRCUMFERENCE | O39: 1/2 NECK CIRCUMFERENCE | AG39: 0.25
B40: COLLAR DEPTH ( AT C.B. NECK ) | C40: COLLAR DEPTH ( AT C.B. NECK ) | D40: COLLAR DEPTH ( AT C.B. NECK ) | E40: COLLAR DEPTH ( AT C.B. NECK ) | F40: COLLAR DEPTH ( AT C.B. NECK ) | G40: COLLAR DEPTH ( AT C.B. NECK ) | H40: COLLAR DEPTH ( AT C.B. NECK ) | I40: COLLAR DEPTH ( AT C.B. NECK ) | J40: COLLAR DEPTH ( AT C.B. NECK ) | K40: COLLAR DEPTH ( AT C.B. NECK ) | L40: COLLAR DEPTH ( AT C.B. NECK ) | M40: COLLAR DEPTH ( AT C.B. NECK ) | N40: COLLAR DEPTH ( AT C.B. NECK ) | O40: COLLAR DEPTH ( AT C.B. NECK ) | AG40: 0
B41: STAND DEPTH | C41: STAND DEPTH | D41: STAND DEPTH | E41: STAND DEPTH | F41: STAND DEPTH | G41: STAND DEPTH | H41: STAND DEPTH | I41: STAND DEPTH | J41: STAND DEPTH | K41: STAND DEPTH | L41: STAND DEPTH | M41: STAND DEPTH | N41: STAND DEPTH | O41: STAND DEPTH | AG41: 0
B42: COLLAR LENGTH | C42: COLLAR LENGTH | D42: COLLAR LENGTH | E42: COLLAR LENGTH | F42: COLLAR LENGTH | G42: COLLAR LENGTH | H42: COLLAR LENGTH | I42: COLLAR LENGTH | J42: COLLAR LENGTH | K42: COLLAR LENGTH | L42: COLLAR LENGTH | M42: COLLAR LENGTH | N42: COLLAR LENGTH | O42: COLLAR LENGTH | AG42: 0.25
B43: NECK TRIM DEPTH | C43: NECK TRIM DEPTH | D43: NECK TRIM DEPTH | E43: NECK TRIM DEPTH | F43: NECK TRIM DEPTH | G43: NECK TRIM DEPTH | H43: NECK TRIM DEPTH | I43: NECK TRIM DEPTH | J43: NECK TRIM DEPTH | K43: NECK TRIM DEPTH | L43: NECK TRIM DEPTH | M43: NECK TRIM DEPTH | N43: NECK TRIM DEPTH | O43: NECK TRIM DEPTH | AG43: 0
B44: CUFF DEPTH | C44: CUFF DEPTH | D44: CUFF DEPTH | E44: CUFF DEPTH | F44: CUFF DEPTH | G44: CUFF DEPTH | H44: CUFF DEPTH | I44: CUFF DEPTH | J44: CUFF DEPTH | K44: CUFF DEPTH | L44: CUFF DEPTH | M44: CUFF DEPTH | N44: CUFF DEPTH | O44: CUFF DEPTH | AG44: 0
B45: SLEEVE HEM DEPTH | C45: SLEEVE HEM DEPTH | D45: SLEEVE HEM DEPTH | E45: SLEEVE HEM DEPTH | F45: SLEEVE HEM DEPTH | G45: SLEEVE HEM DEPTH | H45: SLEEVE HEM DEPTH | I45: SLEEVE HEM DEPTH | J45: SLEEVE HEM DEPTH | K45: SLEEVE HEM DEPTH | L45: SLEEVE HEM DEPTH | M45: SLEEVE HEM DEPTH | N45: SLEEVE HEM DEPTH | O45: SLEEVE HEM DEPTH | AG45: 0
B46: BOTTOM HEM DEPTH | C46: BOTTOM HEM DEPTH | D46: BOTTOM HEM DEPTH | E46: BOTTOM HEM DEPTH | F46: BOTTOM HEM DEPTH | G46: BOTTOM HEM DEPTH | H46: BOTTOM HEM DEPTH | I46: BOTTOM HEM DEPTH | J46: BOTTOM HEM DEPTH | K46: BOTTOM HEM DEPTH | L46: BOTTOM HEM DEPTH | M46: BOTTOM HEM DEPTH | N46: BOTTOM HEM DEPTH | O46: BOTTOM HEM DEPTH | AG46: 0
B47: HSP TO BUST POINT | C47: HSP TO BUST POINT | D47: HSP TO BUST POINT | E47: HSP TO BUST POINT | F47: HSP TO BUST POINT | G47: HSP TO BUST POINT | H47: HSP TO BUST POINT | I47: HSP TO BUST POINT | J47: HSP TO BUST POINT | K47: HSP TO BUST POINT | L47: HSP TO BUST POINT | M47: HSP TO BUST POINT | N47: HSP TO BUST POINT | O47: HSP TO BUST POINT | AG47: 0
B52: Sample Approved?
B53: If sample is NOT approved, then submit 2nd Pre-Production Samples. If sample is APPROVED, then submit Production Samples.

Sheet PreProduction Photo Comments (hidden)
L2: Create Date: | Q2: ='ORIGINAL PHOTO'!Q2:W2 -> MARCH 15/2017
L3: Vendor Name: | Q3: ='ORIGINAL PHOTO'!Q3:AI3 -> 0
L4: Vndr.Item No.: | Q4: ='ORIGINAL PHOTO'!Q4:W4 -> 0 | AA4: GC Item No.: | AE4: ='ORIGINAL PHOTO'!AE4:AI4 -> 0
L5: Size Range: | Q5: ='ORIGINAL PHOTO'!Q5:W5 -> S-M-L-XL | AA5: Season: | AD5: ='ORIGINAL PHOTO'!AD5:AI5 -> Spring Summer 2018
L6: Description: | Q6: ='ORIGINAL PHOTO'!Q6:AI6 -> MEN'S LONG SLEEVE ZIP FRONT SCOOP HEM HOODIE WITH LINED HOOD
B8: PRE-PRODUCTION PHOTO COMMENTS-- MEN'S TOP | T8: Date: | AN8: L
AN9: LXL
AN10: M
AN11: S
AN12: SM
AN13: XL
AN14: XXL
AN15: XXXL

Sheet Production Comments (hidden)
L2: Create Date: | Q2: ='ORIGINAL PHOTO'!Q2:W2 -> MARCH 15/2017
L3: Vendor Name: | Q3: ='ORIGINAL PHOTO'!Q3:AI3 -> 0
L4: Vndr.Item No.: | Q4: ='ORIGINAL PHOTO'!Q4:W4 -> 0 | AA4: GC Item No.: | AE4: ='ORIGINAL PHOTO'!AE4:AI4 -> 0
L5: Size Range: | Q5: ='ORIGINAL PHOTO'!Q5:W5 -> S-M-L-XL | AA5: Season: | AD5: ='ORIGINAL PHOTO'!AD5:AI5 -> Spring Summer 2018
L6: Description:
B8: PRODUCTION COMMENTS -- MEN'S TOP | T8: Date: | AO8: L
B9: (Measurements on flat / inches) | P9: S | R9: 1st Colour | T9: 2nd Colour | V9: 3rd Colour | X9: 4th Colour | Z9: 5th Colour | AB9: 6th Colour | AD9: 7th Colour | AF9: 8th Colour | AH9: Tolerance + / - (on flat) | AO9: LXL
AO10: M
B11: BACK LENGTH FROM (HIGH SHOULDER POINT) | C11: BACK LENGTH FROM (HIGH SHOULDER POINT) | D11: BACK LENGTH FROM (HIGH SHOULDER POINT) | E11: BACK LENGTH FROM (HIGH SHOULDER POINT) | F11: BACK LENGTH FROM (HIGH SHOULDER POINT) | G11: BACK LENGTH FROM (HIGH SHOULDER POINT) | H11: BACK LENGTH FROM (HIGH SHOULDER POINT) | I11: BACK LENGTH FROM (HIGH SHOULDER POINT) | J11: BACK LENGTH FROM (HIGH SHOULDER POINT) | K11: BACK LENGTH FROM (HIGH SHOULDER POINT) | L11: BACK LENGTH FROM (HIGH SHOULDER POINT) | M11: BACK LENGTH FROM (HIGH SHOULDER POINT) | N11: BACK LENGTH FROM (HIGH SHOULDER POINT) | O11: BACK LENGTH FROM (HIGH SHOULDER POINT) | AH11: 0.375 | AO11: S
B12: CENTER BACK LENGTH ( FROM NECK TO HEM ) | C12: CENTER BACK LENGTH ( FROM NECK TO HEM ) | D12: CENTER BACK LENGTH ( FROM NECK TO HEM ) | E12: CENTER BACK LENGTH ( FROM NECK TO HEM ) | F12: CENTER BACK LENGTH ( FROM NECK TO HEM ) | G12: CENTER BACK LENGTH ( FROM NECK TO HEM ) | H12: CENTER BACK LENGTH ( FROM NECK TO HEM ) | I12: CENTER BACK LENGTH ( FROM NECK TO HEM ) | J12: CENTER BACK LENGTH ( FROM NECK TO HEM ) | K12: CENTER BACK LENGTH ( FROM NECK TO HEM ) | L12: CENTER BACK LENGTH ( FROM NECK TO HEM ) | M12: CENTER BACK LENGTH ( FROM NECK TO HEM ) | N12: CENTER BACK LENGTH ( FROM NECK TO HEM ) | O12: CENTER BACK LENGTH ( FROM NECK TO HEM ) | AH12: 0.375 | AO12: SM
B13: FRONT LENGTH FROM (HIGH SHOULDER POINT) | C13: FRONT LENGTH FROM (HIGH SHOULDER POINT) | D13: FRONT LENGTH FROM (HIGH SHOULDER POINT) | E13: FRONT LENGTH FROM (HIGH SHOULDER POINT) | F13: FRONT LENGTH FROM (HIGH SHOULDER POINT) | G13: FRONT LENGTH FROM (HIGH SHOULDER POINT) | H13: FRONT LENGTH FROM (HIGH SHOULDER POINT) | I13: FRONT LENGTH FROM (HIGH SHOULDER POINT) | J13: FRONT LENGTH FROM (HIGH SHOULDER POINT) | K13: FRONT LENGTH FROM (HIGH SHOULDER POINT) | L13: FRONT LENGTH FROM (HIGH SHOULDER POINT) | M13: FRONT LENGTH FROM (HIGH SHOULDER POINT) | N13: FRONT LENGTH FROM (HIGH SHOULDER POINT) | O13: FRONT LENGTH FROM (HIGH SHOULDER POINT) | AH13: 0.375 | AO13: XL
B14: FRONT LENGTH (FROM CENTRE FRONT NECK TO HEM) | C14: FRONT LENGTH (FROM CENTRE FRONT NECK TO HEM) | D14: FRONT LENGTH (FROM CENTRE FRONT NECK TO HEM) | E14: FRONT LENGTH (FROM CENTRE FRONT NECK TO HEM) | F14: FRONT LENGTH (FROM CENTRE FRONT NECK TO HEM) | G14: FRONT LENGTH (FROM CENTRE FRONT NECK TO HEM) | H14: FRONT LENGTH (FROM CENTRE FRONT NECK TO HEM) | I14: FRONT LENGTH (FROM CENTRE FRONT NECK TO HEM) | J14: FRONT LENGTH (FROM CENTRE FRONT NECK TO HEM) | K14: FRONT LENGTH (FROM CENTRE FRONT NECK TO HEM) | L14: FRONT LENGTH (FROM CENTRE FRONT NECK TO HEM) | M14: FRONT LENGTH (FROM CENTRE FRONT NECK TO HEM) | N14: FRONT LENGTH (FROM CENTRE FRONT NECK TO HEM) | O14: FRONT LENGTH (FROM CENTRE FRONT NECK TO HEM) | AH14: 0.375 | AO14: XXL
B15: CHEST (1" BELOW ARMHOLE) | C15: CHEST (1" BELOW ARMHOLE) | D15: CHEST (1" BELOW ARMHOLE) | E15: CHEST (1" BELOW ARMHOLE) | F15: CHEST (1" BELOW ARMHOLE) | G15: CHEST (1" BELOW ARMHOLE) | H15: CHEST (1" BELOW ARMHOLE) | I15: CHEST (1" BELOW ARMHOLE) | J15: CHEST (1" BELOW ARMHOLE) | K15: CHEST (1" BELOW ARMHOLE) | L15: CHEST (1" BELOW ARMHOLE) | M15: CHEST (1" BELOW ARMHOLE) | N15: CHEST (1" BELOW ARMHOLE) | O15: CHEST (1" BELOW ARMHOLE) | AH15: 0.375 | AO15: XXXL
B16: WAIST (16 1/2" BELOW HIGH SHOULDER POINT) | C16: WAIST (16 1/2" BELOW HIGH SHOULDER POINT) | D16: WAIST (16 1/2" BELOW HIGH SHOULDER POINT) | E16: WAIST (16 1/2" BELOW HIGH SHOULDER POINT) | F16: WAIST (16 1/2" BELOW HIGH SHOULDER POINT) | G16: WAIST (16 1/2" BELOW HIGH SHOULDER POINT) | H16: WAIST (16 1/2" BELOW HIGH SHOULDER POINT) | I16: WAIST (16 1/2" BELOW HIGH SHOULDER POINT) | J16: WAIST (16 1/2" BELOW HIGH SHOULDER POINT) | K16: WAIST (16 1/2" BELOW HIGH SHOULDER POINT) | L16: WAIST (16 1/2" BELOW HIGH SHOULDER POINT) | M16: WAIST (16 1/2" BELOW HIGH SHOULDER POINT) | N16: WAIST (16 1/2" BELOW HIGH SHOULDER POINT) | O16: WAIST (16 1/2" BELOW HIGH SHOULDER POINT) | AH16: 0.375
B17: TOP HIP ( 3" BELOW WAIST ) | C17: TOP HIP ( 3" BELOW WAIST ) | D17: TOP HIP ( 3" BELOW WAIST ) | E17: TOP HIP ( 3" BELOW WAIST ) | F17: TOP HIP ( 3" BELOW WAIST ) | G17: TOP HIP ( 3" BELOW WAIST ) | H17: TOP HIP ( 3" BELOW WAIST ) | I17: TOP HIP ( 3" BELOW WAIST ) | J17: TOP HIP ( 3" BELOW WAIST ) | K17: TOP HIP ( 3" BELOW WAIST ) | L17: TOP HIP ( 3" BELOW WAIST ) | M17: TOP HIP ( 3" BELOW WAIST ) | N17: TOP HIP ( 3" BELOW WAIST ) | O17: TOP HIP ( 3" BELOW WAIST ) | AH17: 0.375
B18: LOW HIP ( 8" BELOW WAIST) | C18: LOW HIP ( 8" BELOW WAIST) | D18: LOW HIP ( 8" BELOW WAIST) | E18: LOW HIP ( 8" BELOW WAIST) | F18: LOW HIP ( 8" BELOW WAIST) | G18: LOW HIP ( 8" BELOW WAIST) | H18: LOW HIP ( 8" BELOW WAIST) | I18: LOW HIP ( 8" BELOW WAIST) | J18: LOW HIP ( 8" BELOW WAIST) | K18: LOW HIP ( 8" BELOW WAIST) | L18: LOW HIP ( 8" BELOW WAIST) | M18: LOW HIP ( 8" BELOW WAIST) | N18: LOW HIP ( 8" BELOW WAIST) | O18: LOW HIP ( 8" BELOW WAIST) | AH18: 0.375
B19: HEM STRAIGHT | C19: HEM STRAIGHT | D19: HEM STRAIGHT | E19: HEM STRAIGHT | F19: HEM STRAIGHT | G19: HEM STRAIGHT | H19: HEM STRAIGHT | I19: HEM STRAIGHT | J19: HEM STRAIGHT | K19: HEM STRAIGHT | L19: HEM STRAIGHT | M19: HEM STRAIGHT | N19: HEM STRAIGHT | O19: HEM STRAIGHT | AH19: 0.375
B20: HEM CURVE (FOLLOW) | C20: HEM CURVE (FOLLOW) | D20: HEM CURVE (FOLLOW) | E20: HEM CURVE (FOLLOW) | F20: HEM CURVE (FOLLOW) | G20: HEM CURVE (FOLLOW) | H20: HEM CURVE (FOLLOW) | I20: HEM CURVE (FOLLOW) | J20: HEM CURVE (FOLLOW) | K20: HEM CURVE (FOLLOW) | L20: HEM CURVE (FOLLOW) | M20: HEM CURVE (FOLLOW) | N20: HEM CURVE (FOLLOW) | O20: HEM CURVE (FOLLOW) | AH20: 0.375
B21: ACROSS SHOULDERS ( TOTAL ) | C21: ACROSS SHOULDERS ( TOTAL ) | D21: ACROSS SHOULDERS ( TOTAL ) | E21: ACROSS SHOULDERS ( TOTAL ) | F21: ACROSS SHOULDERS ( TOTAL ) | G21: ACROSS SHOULDERS ( TOTAL ) | H21: ACROSS SHOULDERS ( TOTAL ) | I21: ACROSS SHOULDERS ( TOTAL ) | J21: ACROSS SHOULDERS ( TOTAL ) | K21: ACROSS SHOULDERS ( TOTAL ) | L21: ACROSS SHOULDERS ( TOTAL ) | M21: ACROSS SHOULDERS ( TOTAL ) | N21: ACROSS SHOULDERS ( TOTAL ) | O21: ACROSS SHOULDERS ( TOTAL ) | AH21: 0.375
B22: SHOULDER LENGTH AT SEAM | C22: SHOULDER LENGTH AT SEAM | D22: SHOULDER LENGTH AT SEAM | E22: SHOULDER LENGTH AT SEAM | F22: SHOULDER LENGTH AT SEAM | G22: SHOULDER LENGTH AT SEAM | H22: SHOULDER LENGTH AT SEAM | I22: SHOULDER LENGTH AT SEAM | J22: SHOULDER LENGTH AT SEAM | K22: SHOULDER LENGTH AT SEAM | L22: SHOULDER LENGTH AT SEAM | M22: SHOULDER LENGTH AT SEAM | N22: SHOULDER LENGTH AT SEAM | O22: SHOULDER LENGTH AT SEAM | AH22: 0.375
B23: ACROSS FRONT (5" BELOW HIGH SHOULDER POINT) | C23: ACROSS FRONT (5" BELOW HIGH SHOULDER POINT) | D23: ACROSS FRONT (5" BELOW HIGH SHOULDER POINT) | E23: ACROSS FRONT (5" BELOW HIGH SHOULDER POINT) | F23: ACROSS FRONT (5" BELOW HIGH SHOULDER POINT) | G23: ACROSS FRONT (5" BELOW HIGH SHOULDER POINT) | H23: ACROSS FRONT (5" BELOW HIGH SHOULDER POINT) | I23: ACROSS FRONT (5" BELOW HIGH SHOULDER POINT) | J23: ACROSS FRONT (5" BELOW HIGH SHOULDER POINT) | K23: ACROSS FRONT (5" BELOW HIGH SHOULDER POINT) | L23: ACROSS FRONT (5" BELOW HIGH SHOULDER POINT) | M23: ACROSS FRONT (5" BELOW HIGH SHOULDER POINT) | N23: ACROSS FRONT (5" BELOW HIGH SHOULDER POINT) | O23: ACROSS FRONT (5" BELOW HIGH SHOULDER POINT) | AH23: 0.375
B24: ACROSS BACK (5" BELOW HIGH SHOULDER POINT) | C24: ACROSS BACK (5" BELOW HIGH SHOULDER POINT) | D24: ACROSS BACK (5" BELOW HIGH SHOULDER POINT) | E24: ACROSS BACK (5" BELOW HIGH SHOULDER POINT) | F24: ACROSS BACK (5" BELOW HIGH SHOULDER POINT) | G24: ACROSS BACK (5" BELOW HIGH SHOULDER POINT) | H24: ACROSS BACK (5" BELOW HIGH SHOULDER POINT) | I24: ACROSS BACK (5" BELOW HIGH SHOULDER POINT) | J24: ACROSS BACK (5" BELOW HIGH SHOULDER POINT) | K24: ACROSS BACK (5" BELOW HIGH SHOULDER POINT) | L24: ACROSS BACK (5" BELOW HIGH SHOULDER POINT) | M24: ACROSS BACK (5" BELOW HIGH SHOULDER POINT) | N24: ACROSS BACK (5" BELOW HIGH SHOULDER POINT) | O24: ACROSS BACK (5" BELOW HIGH SHOULDER POINT) | AH24: 0.25
B25: OVERARM (FROM SLEEVE CAP TO HEM)-SHORT SLEEVE | C25: OVERARM (FROM SLEEVE CAP TO HEM)-SHORT SLEEVE | D25: OVERARM (FROM SLEEVE CAP TO HEM)-SHORT SLEEVE | E25: OVERARM (FROM SLEEVE CAP TO HEM)-SHORT SLEEVE | F25: OVERARM (FROM SLEEVE CAP TO HEM)-SHORT SLEEVE | G25: OVERARM (FROM SLEEVE CAP TO HEM)-SHORT SLEEVE | H25: OVERARM (FROM SLEEVE CAP TO HEM)-SHORT SLEEVE | I25: OVERARM (FROM SLEEVE CAP TO HEM)-SHORT SLEEVE | J25: OVERARM (FROM SLEEVE CAP TO HEM)-SHORT SLEEVE | K25: OVERARM (FROM SLEEVE CAP TO HEM)-SHORT SLEEVE | L25: OVERARM (FROM SLEEVE CAP TO HEM)-SHORT SLEEVE | M25: OVERARM (FROM SLEEVE CAP TO HEM)-SHORT SLEEVE | N25: OVERARM (FROM SLEEVE CAP TO HEM)-SHORT SLEEVE | O25: OVERARM (FROM SLEEVE CAP TO HEM)-SHORT SLEEVE | AH25: 0.25
B26: OVERARM (FROM SLEEVE CAP TO HEM)- 3/4 SLEEVE | C26: OVERARM (FROM SLEEVE CAP TO HEM)- 3/4 SLEEVE | D26: OVERARM (FROM SLEEVE CAP TO HEM)- 3/4 SLEEVE | E26: OVERARM (FROM SLEEVE CAP TO HEM)- 3/4 SLEEVE | F26: OVERARM (FROM SLEEVE CAP TO HEM)- 3/4 SLEEVE | G26: OVERARM (FROM SLEEVE CAP TO HEM)- 3/4 SLEEVE | H26: OVERARM (FROM SLEEVE CAP TO HEM)- 3/4 SLEEVE | I26: OVERARM (FROM SLEEVE CAP TO HEM)- 3/4 SLEEVE | J26: OVERARM (FROM SLEEVE CAP TO HEM)- 3/4 SLEEVE | K26: OVERARM (FROM SLEEVE CAP TO HEM)- 3/4 SLEEVE | L26: OVERARM (FROM SLEEVE CAP TO HEM)- 3/4 SLEEVE | M26: OVERARM (FROM SLEEVE CAP TO HEM)- 3/4 SLEEVE | N26: OVERARM (FROM SLEEVE CAP TO HEM)- 3/4 SLEEVE | O26: OVERARM (FROM SLEEVE CAP TO HEM)- 3/4 SLEEVE | AH26: 0.375
B27: OVERARM (FROM SLEEVE CAP TO HEM)- LONG SLEEVE | C27: OVERARM (FROM SLEEVE CAP TO HEM)- LONG SLEEVE | D27: OVERARM (FROM SLEEVE CAP TO HEM)- LONG SLEEVE | E27: OVERARM (FROM SLEEVE CAP TO HEM)- LONG SLEEVE | F27: OVERARM (FROM SLEEVE CAP TO HEM)- LONG SLEEVE | G27: OVERARM (FROM SLEEVE CAP TO HEM)- LONG SLEEVE | H27: OVERARM (FROM SLEEVE CAP TO HEM)- LONG SLEEVE | I27: OVERARM (FROM SLEEVE CAP TO HEM)- LONG SLEEVE | J27: OVERARM (FROM SLEEVE CAP TO HEM)- LONG SLEEVE | K27: OVERARM (FROM SLEEVE CAP TO HEM)- LONG SLEEVE | L27: OVERARM (FROM SLEEVE CAP TO HEM)- LONG SLEEVE | M27: OVERARM (FROM SLEEVE CAP TO HEM)- LONG SLEEVE | N27: OVERARM (FROM SLEEVE CAP TO HEM)- LONG SLEEVE | O27: OVERARM (FROM SLEEVE CAP TO HEM)- LONG SLEEVE | AH27: 0.25
B28: 1/2 ARMHOLE STRAIGHT | C28: 1/2 ARMHOLE STRAIGHT | D28: 1/2 ARMHOLE STRAIGHT | E28: 1/2 ARMHOLE STRAIGHT | F28: 1/2 ARMHOLE STRAIGHT | G28: 1/2 ARMHOLE STRAIGHT | H28: 1/2 ARMHOLE STRAIGHT | I28: 1/2 ARMHOLE STRAIGHT | J28: 1/2 ARMHOLE STRAIGHT | K28: 1/2 ARMHOLE STRAIGHT | L28: 1/2 ARMHOLE STRAIGHT | M28: 1/2 ARMHOLE STRAIGHT | N28: 1/2 ARMHOLE STRAIGHT | O28: 1/2 ARMHOLE STRAIGHT | AH28: 0.25
B29: BICEP (1" BELOW ARMHOLE) | C29: BICEP (1" BELOW ARMHOLE) | D29: BICEP (1" BELOW ARMHOLE) | E29: BICEP (1" BELOW ARMHOLE) | F29: BICEP (1" BELOW ARMHOLE) | G29: BICEP (1" BELOW ARMHOLE) | H29: BICEP (1" BELOW ARMHOLE) | I29: BICEP (1" BELOW ARMHOLE) | J29: BICEP (1" BELOW ARMHOLE) | K29: BICEP (1" BELOW ARMHOLE) | L29: BICEP (1" BELOW ARMHOLE) | M29: BICEP (1" BELOW ARMHOLE) | N29: BICEP (1" BELOW ARMHOLE) | O29: BICEP (1" BELOW ARMHOLE) | AH29: 0.25
B30: ELBOW (8 1/2" BELOW ARMHOLE) | C30: ELBOW (8 1/2" BELOW ARMHOLE) | D30: ELBOW (8 1/2" BELOW ARMHOLE) | E30: ELBOW (8 1/2" BELOW ARMHOLE) | F30: ELBOW (8 1/2" BELOW ARMHOLE) | G30: ELBOW (8 1/2" BELOW ARMHOLE) | H30: ELBOW (8 1/2" BELOW ARMHOLE) | I30: ELBOW (8 1/2" BELOW ARMHOLE) | J30: ELBOW (8 1/2" BELOW ARMHOLE) | K30: ELBOW (8 1/2" BELOW ARMHOLE) | L30: ELBOW (8 1/2" BELOW ARMHOLE) | M30: ELBOW (8 1/2" BELOW ARMHOLE) | N30: ELBOW (8 1/2" BELOW ARMHOLE) | O30: ELBOW (8 1/2" BELOW ARMHOLE) | AH30: 0.25
B31: SHORT SLEEVE OPENING | C31: SHORT SLEEVE OPENING | D31: SHORT SLEEVE OPENING | E31: SHORT SLEEVE OPENING | F31: SHORT SLEEVE OPENING | G31: SHORT SLEEVE OPENING | H31: SHORT SLEEVE OPENING | I31: SHORT SLEEVE OPENING | J31: SHORT SLEEVE OPENING | K31: SHORT SLEEVE OPENING | L31: SHORT SLEEVE OPENING | M31: SHORT SLEEVE OPENING | N31: SHORT SLEEVE OPENING | O31: SHORT SLEEVE OPENING | AH31: 0.25
B32: 3/4 SLEEVE OPENING | C32: 3/4 SLEEVE OPENING | D32: 3/4 SLEEVE OPENING | E32: 3/4 SLEEVE OPENING | F32: 3/4 SLEEVE OPENING | G32: 3/4 SLEEVE OPENING | H32: 3/4 SLEEVE OPENING | I32: 3/4 SLEEVE OPENING | J32: 3/4 SLEEVE OPENING | K32: 3/4 SLEEVE OPENING | L32: 3/4 SLEEVE OPENING | M32: 3/4 SLEEVE OPENING | N32: 3/4 SLEEVE OPENING | O32: 3/4 SLEEVE OPENING | AH32: 0.25
B33: LONG SLEEVE OPENING | C33: LONG SLEEVE OPENING | D33: LONG SLEEVE OPENING | E33: LONG SLEEVE OPENING | F33: LONG SLEEVE OPENING | G33: LONG SLEEVE OPENING | H33: LONG SLEEVE OPENING | I33: LONG SLEEVE OPENING | J33: LONG SLEEVE OPENING | K33: LONG SLEEVE OPENING | L33: LONG SLEEVE OPENING | M33: LONG SLEEVE OPENING | N33: LONG SLEEVE OPENING | O33: LONG SLEEVE OPENING | AH33: 1/4
B34: SLEEVE CAP HEIGHT ( FROM TOP OF SLEEVE TO UNDERARM ) | C34: SLEEVE CAP HEIGHT ( FROM TOP OF SLEEVE TO UNDERARM ) | D34: SLEEVE CAP HEIGHT ( FROM TOP OF SLEEVE TO UNDERARM ) | E34: SLEEVE CAP HEIGHT ( FROM TOP OF SLEEVE TO UNDERARM ) | F34: SLEEVE CAP HEIGHT ( FROM TOP OF SLEEVE TO UNDERARM ) | G34: SLEEVE CAP HEIGHT ( FROM TOP OF SLEEVE TO UNDERARM ) | H34: SLEEVE CAP HEIGHT ( FROM TOP OF SLEEVE TO UNDERARM ) | I34: SLEEVE CAP HEIGHT ( FROM TOP OF SLEEVE TO UNDERARM ) | J34: SLEEVE CAP HEIGHT ( FROM TOP OF SLEEVE TO UNDERARM ) | K34: SLEEVE CAP HEIGHT ( FROM TOP OF SLEEVE TO UNDERARM ) | L34: SLEEVE CAP HEIGHT ( FROM TOP OF SLEEVE TO UNDERARM ) | M34: SLEEVE CAP HEIGHT ( FROM TOP OF SLEEVE TO UNDERARM ) | N34: SLEEVE CAP HEIGHT ( FROM TOP OF SLEEVE TO UNDERARM ) | O34: SLEEVE CAP HEIGHT ( FROM TOP OF SLEEVE TO UNDERARM ) | AH34: 0
B35: SHOULDER SLOPE ( HSP TO SHOULDER ARMHOLE SEAM ) | C35: SHOULDER SLOPE ( HSP TO SHOULDER ARMHOLE SEAM ) | D35: SHOULDER SLOPE ( HSP TO SHOULDER ARMHOLE SEAM ) | E35: SHOULDER SLOPE ( HSP TO SHOULDER ARMHOLE SEAM ) | F35: SHOULDER SLOPE ( HSP TO SHOULDER ARMHOLE SEAM ) | G35: SHOULDER SLOPE ( HSP TO SHOULDER ARMHOLE SEAM ) | H35: SHOULDER SLOPE ( HSP TO SHOULDER ARMHOLE SEAM ) | I35: SHOULDER SLOPE ( HSP TO SHOULDER ARMHOLE SEAM ) | J35: SHOULDER SLOPE ( HSP TO SHOULDER ARMHOLE SEAM ) | K35: SHOULDER SLOPE ( HSP TO SHOULDER ARMHOLE SEAM ) | L35: SHOULDER SLOPE ( HSP TO SHOULDER ARMHOLE SEAM ) | M35: SHOULDER SLOPE ( HSP TO SHOULDER ARMHOLE SEAM ) | N35: SHOULDER SLOPE ( HSP TO SHOULDER ARMHOLE SEAM ) | O35: SHOULDER SLOPE ( HSP TO SHOULDER ARMHOLE SEAM ) | AH35: 0
B36: NECK WIDTH (HSP TO HSP) ON BACK | C36: NECK WIDTH (HSP TO HSP) ON BACK | D36: NECK WIDTH (HSP TO HSP) ON BACK | E36: NECK WIDTH (HSP TO HSP) ON BACK | F36: NECK WIDTH (HSP TO HSP) ON BACK | G36: NECK WIDTH (HSP TO HSP) ON BACK | H36: NECK WIDTH (HSP TO HSP) ON BACK | I36: NECK WIDTH (HSP TO HSP) ON BACK | J36: NECK WIDTH (HSP TO HSP) ON BACK | K36: NECK WIDTH (HSP TO HSP) ON BACK | L36: NECK WIDTH (HSP TO HSP) ON BACK | M36: NECK WIDTH (HSP TO HSP) ON BACK | N36: NECK WIDTH (HSP TO HSP) ON BACK | O36: NECK WIDTH (HSP TO HSP) ON BACK | AH36: 0.25
B37: FRONT NECK DROP ( FROM HSP TO CENTER FRONT NECK EDGE OR SEAM ) | C37: FRONT NECK DROP ( FROM HSP TO CENTER FRONT NECK EDGE OR SEAM ) | D37: FRONT NECK DROP ( FROM HSP TO CENTER FRONT NECK EDGE OR SEAM ) | E37: FRONT NECK DROP ( FROM HSP TO CENTER FRONT NECK EDGE OR SEAM ) | F37: FRONT NECK DROP ( FROM HSP TO CENTER FRONT NECK EDGE OR SEAM ) | G37: FRONT NECK DROP ( FROM HSP TO CENTER FRONT NECK EDGE OR SEAM ) | H37: FRONT NECK DROP ( FROM HSP TO CENTER FRONT NECK EDGE OR SEAM ) | I37: FRONT NECK DROP ( FROM HSP TO CENTER FRONT NECK EDGE OR SEAM ) | J37: FRONT NECK DROP ( FROM HSP TO CENTER FRONT NECK EDGE OR SEAM ) | K37: FRONT NECK DROP ( FROM HSP TO CENTER FRONT NECK EDGE OR SEAM ) | L37: FRONT NECK DROP ( FROM HSP TO CENTER FRONT NECK EDGE OR SEAM ) | M37: FRONT NECK DROP ( FROM HSP TO CENTER FRONT NECK EDGE OR SEAM ) | N37: FRONT NECK DROP ( FROM HSP TO CENTER FRONT NECK EDGE OR SEAM ) | O37: FRONT NECK DROP ( FROM HSP TO CENTER FRONT NECK EDGE OR SEAM ) | AH37: 0.25
B38: BACK NECK DROP ( FROM HSP TO CENTER BACK NECK EDGE OR SEAM ) | C38: BACK NECK DROP ( FROM HSP TO CENTER BACK NECK EDGE OR SEAM ) | D38: BACK NECK DROP ( FROM HSP TO CENTER BACK NECK EDGE OR SEAM ) | E38: BACK NECK DROP ( FROM HSP TO CENTER BACK NECK EDGE OR SEAM ) | F38: BACK NECK DROP ( FROM HSP TO CENTER BACK NECK EDGE OR SEAM ) | G38: BACK NECK DROP ( FROM HSP TO CENTER BACK NECK EDGE OR SEAM ) | H38: BACK NECK DROP ( FROM HSP TO CENTER BACK NECK EDGE OR SEAM ) | I38: BACK NECK DROP ( FROM HSP TO CENTER BACK NECK EDGE OR SEAM ) | J38: BACK NECK DROP ( FROM HSP TO CENTER BACK NECK EDGE OR SEAM ) | K38: BACK NECK DROP ( FROM HSP TO CENTER BACK NECK EDGE OR SEAM ) | L38: BACK NECK DROP ( FROM HSP TO CENTER BACK NECK EDGE OR SEAM ) | M38: BACK NECK DROP ( FROM HSP TO CENTER BACK NECK EDGE OR SEAM ) | N38: BACK NECK DROP ( FROM HSP TO CENTER BACK NECK EDGE OR SEAM ) | O38: BACK NECK DROP ( FROM HSP TO CENTER BACK NECK EDGE OR SEAM ) | AH38: 0.25
B39: 1/2 NECK CIRCUMFERENCE | C39: 1/2 NECK CIRCUMFERENCE | D39: 1/2 NECK CIRCUMFERENCE | E39: 1/2 NECK CIRCUMFERENCE | F39: 1/2 NECK CIRCUMFERENCE | G39: 1/2 NECK CIRCUMFERENCE | H39: 1/2 NECK CIRCUMFERENCE | I39: 1/2 NECK CIRCUMFERENCE | J39: 1/2 NECK CIRCUMFERENCE | K39: 1/2 NECK CIRCUMFERENCE | L39: 1/2 NECK CIRCUMFERENCE | M39: 1/2 NECK CIRCUMFERENCE | N39: 1/2 NECK CIRCUMFERENCE | O39: 1/2 NECK CIRCUMFERENCE | AH39: 0.25
B40: COLLAR DEPTH ( AT C.B. NECK ) | C40: COLLAR DEPTH ( AT C.B. NECK ) | D40: COLLAR DEPTH ( AT C.B. NECK ) | E40: COLLAR DEPTH ( AT C.B. NECK ) | F40: COLLAR DEPTH ( AT C.B. NECK ) | G40: COLLAR DEPTH ( AT C.B. NECK ) | H40: COLLAR DEPTH ( AT C.B. NECK ) | I40: COLLAR DEPTH ( AT C.B. NECK ) | J40: COLLAR DEPTH ( AT C.B. NECK ) | K40: COLLAR DEPTH ( AT C.B. NECK ) | L40: COLLAR DEPTH ( AT C.B. NECK ) | M40: COLLAR DEPTH ( AT C.B. NECK ) | N40: COLLAR DEPTH ( AT C.B. NECK ) | O40: COLLAR DEPTH ( AT C.B. NECK ) | AH40: 0
B41: STAND DEPTH | C41: STAND DEPTH | D41: STAND DEPTH | E41: STAND DEPTH | F41: STAND DEPTH | G41: STAND DEPTH | H41: STAND DEPTH | I41: STAND DEPTH | J41: STAND DEPTH | K41: STAND DEPTH | L41: STAND DEPTH | M41: STAND DEPTH | N41: STAND DEPTH | O41: STAND DEPTH | AH41: 0
B42: COLLAR LENGTH | C42: COLLAR LENGTH | D42: COLLAR LENGTH | E42: COLLAR LENGTH | F42: COLLAR LENGTH | G42: COLLAR LENGTH | H42: COLLAR LENGTH | I42: COLLAR LENGTH | J42: COLLAR LENGTH | K42: COLLAR LENGTH | L42: COLLAR LENGTH | M42: COLLAR LENGTH | N42: COLLAR LENGTH | O42: COLLAR LENGTH | AH42: 0.25
B43: NECK TRIM DEPTH | C43: NECK TRIM DEPTH | D43: NECK TRIM DEPTH | E43: NECK TRIM DEPTH | F43: NECK TRIM DEPTH | G43: NECK TRIM DEPTH | H43: NECK TRIM DEPTH | I43: NECK TRIM DEPTH | J43: NECK TRIM DEPTH | K43: NECK TRIM DEPTH | L43: NECK TRIM DEPTH | M43: NECK TRIM DEPTH | N43: NECK TRIM DEPTH | O43: NECK TRIM DEPTH | AH43: 0
B44: CUFF DEPTH | C44: CUFF DEPTH | D44: CUFF DEPTH | E44: CUFF DEPTH | F44: CUFF DEPTH | G44: CUFF DEPTH | H44: CUFF DEPTH | I44: CUFF DEPTH | J44: CUFF DEPTH | K44: CUFF DEPTH | L44: CUFF DEPTH | M44: CUFF DEPTH | N44: CUFF DEPTH | O44: CUFF DEPTH | AH44: 0
B45: SLEEVE HEM DEPTH | C45: SLEEVE HEM DEPTH | D45: SLEEVE HEM DEPTH | E45: SLEEVE HEM DEPTH | F45: SLEEVE HEM DEPTH | G45: SLEEVE HEM DEPTH | H45: SLEEVE HEM DEPTH | I45: SLEEVE HEM DEPTH | J45: SLEEVE HEM DEPTH | K45: SLEEVE HEM DEPTH | L45: SLEEVE HEM DEPTH | M45: SLEEVE HEM DEPTH | N45: SLEEVE HEM DEPTH | O45: SLEEVE HEM DEPTH | AH45: 0
B46: BOTTOM HEM DEPTH | C46: BOTTOM HEM DEPTH | D46: BOTTOM HEM DEPTH | E46: BOTTOM HEM DEPTH | F46: BOTTOM HEM DEPTH | G46: BOTTOM HEM DEPTH | H46: BOTTOM HEM DEPTH | I46: BOTTOM HEM DEPTH | J46: BOTTOM HEM DEPTH | K46: BOTTOM HEM DEPTH | L46: BOTTOM HEM DEPTH | M46: BOTTOM HEM DEPTH | N46: BOTTOM HEM DEPTH | O46: BOTTOM HEM DEPTH | AH46: 0
B47: HSP TO BUST POINT | C47: HSP TO BUST POINT | D47: HSP TO BUST POINT | E47: HSP TO BUST POINT | F47: HSP TO BUST POINT | G47: HSP TO BUST POINT | H47: HSP TO BUST POINT | I47: HSP TO BUST POINT | J47: HSP TO BUST POINT | K47: HSP TO BUST POINT | L47: HSP TO BUST POINT | M47: HSP TO BUST POINT | N47: HSP TO BUST POINT | O47: HSP TO BUST POINT | AH47: 0
B52: Production Samples
B53: Approved ?

Sheet Production Photo Comment (hidden)
L2: Create Date: | Q2: ='ORIGINAL PHOTO'!Q2:W2 -> MARCH 15/2017
L3: Vendor Name: | Q3: ='ORIGINAL PHOTO'!Q3:AI3 -> 0
L4: Vndr.Item No.: | Q4: ='ORIGINAL PHOTO'!Q4:W4 -> 0 | AA4: GC Item No.: | AE4: ='ORIGINAL PHOTO'!AE4:AI4 -> 0
L5: Size Range: | Q5: ='ORIGINAL PHOTO'!Q5:W5 -> S-M-L-XL | AA5: Season: | AD5: ='ORIGINAL PHOTO'!AD5:AI5 -> Spring Summer 2018
L6: Description: | Q6: ='ORIGINAL PHOTO'!Q6:AI6 -> MEN'S LONG SLEEVE ZIP FRONT SCOOP HEM HOODIE WITH LINED HOOD
B8: PRODUCTION PHOTO COMMENTS-- MEN'S TOP | T8: Date: | AN8: L
AN9: LXL
AN10: M
AN11: S
AN12: SM
AN13: XL
AN14: XXL
AN15: XXXL
